Ref No,Fund Type,Dept,Cost Centre Description    ,Description    ,Creditor Name    ,GL Code Net Amount,Payment date        
2,Revenue,CCHD,Supporting People Programme,Grants to Voluntary Bodies,1625 Independent People,17214.75, 01-Feb-2013
3,Revenue,CCHD,Home Care - Elderly - South,Other Small Contracts,3 Trees Community Support Ltd,94.56, 07-Feb-2013
4,Revenue,CCHD,Home Care - Elderly - North,Other Small Contracts,3 Trees Community Support Ltd,1229.28, 07-Feb-2013
5,Revenue,CCHD,Day Care - North,Private & Voluntary Day Care,3 Trees Community Support Ltd,82.74, 07-Feb-2013
6,Revenue,CCHD,Home Care - Elderly - South,Other Small Contracts,3 Trees Community Support Ltd,94.56, 12-Feb-2013
7,Revenue,CCHD,Home Care - Elderly - North,Other Small Contracts,3 Trees Community Support Ltd,1623.28, 12-Feb-2013
8,Revenue,CCHD,Day Care - North,Private & Voluntary Day Care,3 Trees Community Support Ltd,78.8, 12-Feb-2013
9,Revenue,CCHD,Home Care - Elderly - South,Other Small Contracts,3 Trees Community Support Ltd,94.56, 25-Feb-2013
10,Revenue,CCHD,Home Care - Elderly - North,Other Small Contracts,3 Trees Community Support Ltd,1623.28, 25-Feb-2013
11,Revenue,CCHD,Day Care - North,Private & Voluntary Day Care,3 Trees Community Support Ltd,90.62, 25-Feb-2013
12,Revenue,CCHD,Supported Living - PS,Private & Voluntary Home Care,3 Trees Community Support Ltd,545.28, 20-Feb-2013
13,Revenue,CCHD,Supported Living - PS,Private & Voluntary Home Care,3 Trees Community Support Ltd,1163.22, 20-Feb-2013
14,Revenue,CCHD,Purchase of Non-Res Care - KD,Private & Voluntary Day Care,3 Trees Community Support Ltd,4079.88, 14-Feb-2013
15,Revenue,CCHD,Supported Living - KD,Private & Voluntary Home Care,3 Trees Community Support Ltd,1341.55, 26-Feb-2013
16,Revenue,CCHD,Supported Living - PS,Private & Voluntary Home Care,3 Trees Community Support Ltd,1814.52, 26-Feb-2013
17,Revenue,CCHD,Purchase of Non-Res Care - KD,Private & Voluntary Day Care,3 Trees Community Support Ltd,1488.62, 14-Feb-2013
18,Revenue,CCHD,Purchase of Non-Res Care - KD,Private & Voluntary Day Care,3 Trees Community Support Ltd,1555.12, 28-Feb-2013
19,Revenue,CCHD,Supported Living - KD,Private & Voluntary Home Care,3 Trees Community Support Ltd,7560.24, 12-Feb-2013
20,Revenue,CCHD,Purchase of Non-Res Care - KD,Private & Voluntary Day Care,3 Trees Community Support Ltd,1183.04, 20-Feb-2013
21,Revenue,CCHD,Purchase of Non-Res Care - KD,Private & Voluntary Day Care,3 Trees Community Support Ltd,5018.47, 19-Feb-2013
22,Revenue,CCHD,Purchase of Non-Res Care - PS,Private & Voluntary Day Care,3 Trees Community Support Ltd,3119.23, 27-Feb-2013
23,Revenue,CCHD,Bed Purchasing - Under 65s PWLD - South,Residential Homes,5Th Floor Harlech Court,15679.72, 19-Feb-2013
24,Revenue,CCHD,Bed purchasing - Under 65s PWLD - North,Residential Homes,5Th Floor Harlech Court,16197.04, 19-Feb-2013
25,Revenue,CCHD,Direct Payments - Phys Dis - North,Grants to Voluntary Bodies,A4E Management Limited,22857.93, 06-Feb-2013
26,Revenue,CCHD,Frenchay Hospital Purchasing,Nursing Homes,Aabletone Nursing Home,1295.2, 19-Feb-2013
27,Revenue,CCHD,Frenchay Hospital Purchasing,Residential Homes,Abbey Grange,1280.92, 19-Feb-2013
28,Revenue,CCHD,Bed and Breakfast,Storage & Removal,Ablemove-Wottons,520, 04-Feb-2013
29,Revenue,CCHD,Bed and Breakfast,Bed & Breakfast,Ablemove-Wottons,420, 21-Feb-2013
30,Revenue,CCHD,Day Care - South,Private & Voluntary Day Care,About Me Care and Support Limited,1978.11, 07-Feb-2013
31,Revenue,CCHD,Day Care - North,Private & Voluntary Day Care,About Me Care and Support Limited,1241.96, 07-Feb-2013
32,Revenue,CCHD,Swift Dump Code,Residential Homes,Acacia Care Limited,10590.47, 21-Feb-2013
33,Revenue,CCHD,Day Care - North,Private & Voluntary Day Care,Action on Hearing Loss,523.44, 25-Feb-2013
34,Revenue,CCHD,Day Care - North,Private & Voluntary Day Care,Age UK South Gloucestershire,1022.16, 25-Feb-2013
35,Revenue,CCHD,Day Care - South,Private & Voluntary Day Care,Age UK South Gloucestershire,1087.16, 21-Feb-2013
36,Revenue,CCHD,Day Care - South,Private & Voluntary Day Care,Age UK South Gloucestershire,1064.75, 25-Feb-2013
37,Revenue,CCHD,Home Care - Elderly - South,Other Small Contracts,Agincare Chippenham,1517.04, 20-Feb-2013
38,Revenue,CCHD,Home Care - Elderly - North,Other Small Contracts,Agincare Chippenham,15.48, 20-Feb-2013
39,Revenue,CCHD,Home Care - Elderly - South,Other Small Contracts,Agincare Chippenham,1226.79, 06-Feb-2013
40,Revenue,CCHD,Home Care - Elderly - North,Other Small Contracts,Agincare Chippenham,42.57, 06-Feb-2013
41,Revenue,CCHD,Home Care - Elderly - South,Other Small Contracts,Agincare Chippenham,1393.2, 14-Feb-2013
42,Revenue,CCHD,Home Care - Elderly - North,Other Small Contracts,Agincare Chippenham,50.31, 14-Feb-2013
43,Revenue,CCHD,Home Care - Elderly - South,Other Small Contracts,Agincare UK Limited,851.4, 22-Feb-2013
44,Revenue,CCHD,Home Care - Elderly - North,Other Small Contracts,Agincare UK Limited,81.27, 22-Feb-2013
45,Revenue,CCHD,Day Care - South,Private & Voluntary Day Care,Agincare UK Limited,158.67, 22-Feb-2013
46,Revenue,CCHD,Elderly MH Day Care North,Private & Voluntary Day Care,Agincare UK Limited,116.1, 22-Feb-2013
47,Revenue,CCHD,Home Care - Elderly - South,Other Small Contracts,Agincare UK Limited,859.14, 06-Feb-2013
48,Revenue,CCHD,Home Care - Elderly - North,Other Small Contracts,Agincare UK Limited,81.27, 06-Feb-2013
49,Revenue,CCHD,Day Care - South,Private & Voluntary Day Care,Agincare UK Limited,170.28, 06-Feb-2013
50,Revenue,CCHD,Elderly MH Day Care North,Private & Voluntary Day Care,Agincare UK Limited,108.36, 06-Feb-2013
51,Revenue,CCHD,Home Care - Elderly - South,Other Small Contracts,Agincare UK Limited,870.75, 14-Feb-2013
52,Revenue,CCHD,Home Care - Elderly - North,Other Small Contracts,Agincare UK Limited,73.53, 14-Feb-2013
53,Revenue,CCHD,Day Care - South,Private & Voluntary Day Care,Agincare UK Limited,131.58, 14-Feb-2013
54,Revenue,CCHD,Elderly MH Day Care North,Private & Voluntary Day Care,Agincare UK Limited,116.1, 14-Feb-2013
55,Revenue,CCHD,S117 Placements PCT,Residential Homes,Alexandra House,6810.28, 19-Feb-2013
56,Revenue,CCHD,Section 117 Placements MH Younger,Residential Homes,Alexandra House,6340, 19-Feb-2013
57,Revenue,CCHD,Home Care - Elderly - South,Other Small Contracts,Allied Healthcare Group,518.16, 25-Feb-2013
58,Revenue,CCHD,Home Care - Elderly - North,Other Small Contracts,Allied Healthcare Group,1793.69, 25-Feb-2013
59,Revenue,CCHD,Day Care - North,Private & Voluntary Day Care,Allied Healthcare Group,45.72, 25-Feb-2013
60,Revenue,CCHD,Home Care - Elderly - South,Other Small Contracts,Allied Healthcare Group,339.09, 25-Feb-2013
61,Revenue,CCHD,Home Care - Elderly - North,Other Small Contracts,Allied Healthcare Group,830.43, 25-Feb-2013
62,Revenue,CCHD,Day Care - North,Private & Voluntary Day Care,Allied Healthcare Group,7.62, 25-Feb-2013
63,Revenue,CCHD,Home Care - Elderly - South,Other Small Contracts,Allied Healthcare Group,464.82, 25-Feb-2013
64,Revenue,CCHD,Home Care - Elderly - North,Other Small Contracts,Allied Healthcare Group,1152.56, 25-Feb-2013
65,Revenue,CCHD,Day Care - North,Private & Voluntary Day Care,Allied Healthcare Group,41.91, 25-Feb-2013
66,Revenue,CCHD,Home Care - Elderly - South,Other Small Contracts,Allied Healthcare Group,476.25, 25-Feb-2013
67,Revenue,CCHD,Home Care - Elderly - North,Other Small Contracts,Allied Healthcare Group,1725.63, 25-Feb-2013
68,Revenue,CCHD,Day Care - North,Private & Voluntary Day Care,Allied Healthcare Group,22.86, 25-Feb-2013
69,Revenue,CCHD,Home Care - Elderly - South,Other Small Contracts,Allied Healthcare Group,491.49, 25-Feb-2013
70,Revenue,CCHD,Home Care - Elderly - North,Other Small Contracts,Allied Healthcare Group,1588.47, 25-Feb-2013
71,Revenue,CCHD,Day Care - North,Private & Voluntary Day Care,Allied Healthcare Group,53.34, 25-Feb-2013
72,Revenue,CCHD,Home Care - Elderly - South,Other Small Contracts,Allied Healthcare Group,453.39, 26-Feb-2013
73,Revenue,CCHD,Home Care - Elderly - North,Other Small Contracts,Allied Healthcare Group,1592.28, 26-Feb-2013
74,Revenue,CCHD,Day Care - North,Private & Voluntary Day Care,Allied Healthcare Group,45.72, 26-Feb-2013
75,Revenue,CCHD,Home Care - Elderly - South,Other Small Contracts,Allied Healthcare Group,476.25, 25-Feb-2013
76,Revenue,CCHD,Home Care - Elderly - North,Other Small Contracts,Allied Healthcare Group,979.54, 25-Feb-2013
77,Revenue,CCHD,Day Care - North,Private & Voluntary Day Care,Allied Healthcare Group,45.72, 25-Feb-2013
78,Revenue,CCHD,Home Care - Elderly - South,Other Small Contracts,Allied Healthcare Group,483.87, 20-Feb-2013
79,Revenue,CCHD,Home Care - Elderly - North,Other Small Contracts,Allied Healthcare Group,1775.16, 20-Feb-2013
80,Revenue,CCHD,Day Care - North,Private & Voluntary Day Care,Allied Healthcare Group,45.72, 20-Feb-2013
81,Revenue,CCHD,Home Care - Elderly - South,Other Small Contracts,Allied Healthcare Group,480.06, 25-Feb-2013
82,Revenue,CCHD,Home Care - Elderly - North,Other Small Contracts,Allied Healthcare Group,1333.2, 25-Feb-2013
83,Revenue,CCHD,Day Care - North,Private & Voluntary Day Care,Allied Healthcare Group,45.72, 25-Feb-2013
84,Revenue,CCHD,Home Care - Elderly - South,Other Small Contracts,Allied Healthcare Group,499.11, 25-Feb-2013
85,Revenue,CCHD,Home Care - Elderly - North,Other Small Contracts,Allied Healthcare Group,1592.28, 25-Feb-2013
86,Revenue,CCHD,Day Care - North,Private & Voluntary Day Care,Allied Healthcare Group,45.72, 25-Feb-2013
87,Revenue,CCHD,Home Care - Elderly - South,Other Small Contracts,Allied Healthcare Group,514.35, 26-Feb-2013
88,Revenue,CCHD,Home Care - Elderly - North,Other Small Contracts,Allied Healthcare Group,1813.26, 26-Feb-2013
89,Revenue,CCHD,Day Care - North,Private & Voluntary Day Care,Allied Healthcare Group,41.91, 26-Feb-2013
90,Revenue,CCHD,Home Care - Elderly - South,Other Small Contracts,Allied Healthcare Group,483.87, 25-Feb-2013
91,Revenue,CCHD,Home Care - Elderly - North,Other Small Contracts,Allied Healthcare Group,1337.01, 25-Feb-2013
92,Revenue,CCHD,Day Care - North,Private & Voluntary Day Care,Allied Healthcare Group,45.72, 25-Feb-2013
93,Revenue,CCHD,Home Care - Elderly - South,Other Small Contracts,Allied Healthcare Group,365.76, 20-Feb-2013
94,Revenue,CCHD,Home Care - Elderly - North,Other Small Contracts,Allied Healthcare Group,1329.39, 20-Feb-2013
95,Revenue,CCHD,Day Care - North,Private & Voluntary Day Care,Allied Healthcare Group,22.86, 20-Feb-2013
96,Revenue,CCHD,Frenchay Hospital Purchasing,Residential Homes,Amber Care Ltd,1290.2, 19-Feb-2013
97,Revenue,CCHD,Southmead Hospital Purchasing,Nursing Homes,Ambleside Nusing Ho!,1416.4, 19-Feb-2013
98,Revenue,CCHD,Woodleaze,Prop.Serv. General Repairs,Amy Flooring Limited,1550, 13-Feb-2013
99,Revenue,CCHD,Frenchay Hospital Purchasing,Residential Homes,Anbridge Care Home,828.88, 19-Feb-2013
100,Revenue,CCHD,Bed Purchasing - Elderly - North,Nursing Homes,Annabel House,5463.37, 19-Feb-2013
101,Revenue,CCHD,Bed purchasing - Under 65s PWLD - North,Residential Homes,Ark Care Homes Ltd,10067.92, 19-Feb-2013
102,Revenue,CCHD,Bed Purchasing - Elderly - South,Residential Homes,Ashbourne House Care Home Limited,1102.96, 19-Feb-2013
103,Revenue,CCHD,Bed and Breakfast,Bed & Breakfast,Ashley Guest Houses Limited,696, 06-Feb-2013
104,Revenue,CCHD,Bed and Breakfast,Bed & Breakfast,Ashley Guest Houses Limited,960, 13-Feb-2013
105,Revenue,CCHD,Bed and Breakfast,Bed & Breakfast,Ashley Guest Houses Limited,1008, 20-Feb-2013
106,Revenue,CCHD,Bed and Breakfast,Bed & Breakfast,Ashley Guest Houses Limited,1152, 27-Feb-2013
107,Revenue,CCHD,Bed and Breakfast,Bed & Breakfast,Ashley Guest Houses Limited,552, 01-Feb-2013
108,Revenue,CCHD,Bed and Breakfast,Bed & Breakfast,Ashley Guest Houses Limited,504, 01-Feb-2013
109,Revenue,CCHD,Bed Purchasing - S28A - Over 65- North,Residential Homes,Aspects &  Milestones Trust,3882.32, 19-Feb-2013
110,Revenue,CCHD,Bed Purchasing - Elderly - South,Residential Homes,Aspects &  Milestones Trust,1398.4, 19-Feb-2013
111,Revenue,CCHD,Bed Purchasing - Under 65s PWLD - South,Residential Homes,Aspects &  Milestones Trust,5909.2, 19-Feb-2013
112,Revenue,CCHD,Bed Purchasing - Elderly S117- North,Residential Homes,Aspects &  Milestones Trust,1325.92, 19-Feb-2013
113,Revenue,CCHD,Bed purchasing - Elderly PWLD - North,Residential Homes,Aspects &  Milestones Trust,3554.88, 19-Feb-2013
114,Revenue,CCHD,Bed Purchasing - Under 65s PWLD - South,Residential Homes,Aspects &  Milestones Trust,5227.12, 19-Feb-2013
115,Revenue,CCHD,Bed Purchasing - Under 65s PWLD - South,Residential Homes,Aspects &  Milestones Trust,5683.72, 19-Feb-2013
116,Revenue,CCHD,Bed Purchasing - Under 65s PWLD - South,Nursing Homes,Aspects &  Milestones Trust,2766.32, 19-Feb-2013
117,Revenue,CCHD,Bed Purchasing - Elderly S117- North,Nursing Homes,Aspects &  Milestones Trust,1944, 19-Feb-2013
118,Revenue,CCHD,Bed purchasing - Elderly MH - North,Nursing Homes,Aspects &  Milestones Trust,1430.08, 19-Feb-2013
119,Revenue,CCHD,Section 117 Placements MH Younger,Nursing Homes,Aspects &  Milestones Trust,1600, 19-Feb-2013
120,Revenue,CCHD,Bed purchasing - Elderly PWLD - South,Residential Homes,Aspects &  Milestones Trust,3199.56, 19-Feb-2013
121,Revenue,CCHD,Bed purchasing - Elderly PWLD - South,Residential Homes,Aspects &  Milestones Trust,4357.8, 19-Feb-2013
122,Revenue,CCHD,Bed purchasing -S28A  Under 65 - North,Nursing Homes,Aspects &  Milestones Trust,5800.72, 19-Feb-2013
123,Revenue,CCHD,Bed purchasing -S28A  Under 65 - North,Residential Homes,Aspects &  Milestones Trust,5183.96, 19-Feb-2013
124,Revenue,CCHD,Bed Purchasing - Under 65s PWLD - South,Residential Homes,Aspects &  Milestones Trust,3495.32, 19-Feb-2013
125,Revenue,CCHD,Bed purchasing - S28A Under 65 - South,Residential Homes,Aspects &  Milestones Trust,5327.8, 19-Feb-2013
126,Revenue,CCHD,Bed Purchasing - Elderly MH - South,Residential Homes,Aspects &  Milestones Trust,1283.2, 19-Feb-2013
127,Revenue,CCHD,Bed Purchasing - Under 65s PWLD - South,Residential Homes,Aspects &  Milestones Trust,5721.6, 19-Feb-2013
128,Revenue,CCHD,Bed purchasing - S28A Under 65 - South,Nursing Homes,Aspects &  Milestones Trust,7576.08, 19-Feb-2013
129,Revenue,CCHD,MH Purchasing - Younger,Residential Homes,Aspects &  Milestones Trust,11898.05, 19-Feb-2013
130,Revenue,CCHD,Bed purchasing - Elderly PWLD - South,Residential Homes,Aspects &  Milestones Trust,5276.32, 19-Feb-2013
131,Revenue,CCHD,Bed purchasing - Elderly PWLD - South,Residential Homes,Aspects &  Milestones Trust,3791.92, 19-Feb-2013
132,Revenue,CCHD,Bed purchasing - Elderly PWLD - North,Residential Homes,Aspects &  Milestones Trust,4732.52, 19-Feb-2013
133,Revenue,CCHD,Bed purchasing -S28A  Under 65 - North,Residential Homes,Aspects &  Milestones Trust,5268.68, 19-Feb-2013
134,Revenue,CCHD,Bed purchasing -S28A  Under 65 - North,Residential Homes,Aspects &  Milestones Trust,6125.96, 19-Feb-2013
135,Revenue,CCHD,Bed purchasing -S28A  Under 65 - North,Nursing Homes,Aspects &  Milestones Trust,6213.88, 19-Feb-2013
136,Revenue,CCHD,Bed Purchasing - Under 65s PWLD - South,Residential Homes,Aspects &  Milestones Trust,3699.6, 19-Feb-2013
137,Revenue,CCHD,Bed purchasing -S28A  Under 65 - North,Residential Homes,Aspects &  Milestones Trust,6125.96, 19-Feb-2013
138,Revenue,CCHD,Bed purchasing - S28A Under 65 - South,Residential Homes,Aspects &  Milestones Trust,4856.92, 19-Feb-2013
139,Revenue,CCHD,Bed Purchasing - S28A - Over 65- North,Residential Homes,Aspects &  Milestones Trust,6453.44, 19-Feb-2013
140,Revenue,CCHD,Bed Purchasing - LD S28A- Over 65- South,Residential Homes,Aspects &  Milestones Trust,4015.52, 19-Feb-2013
141,Revenue,CCHD,Bed purchasing -S28A  Under 65 - North,Residential Homes,Aspects &  Milestones Trust,6125.96, 19-Feb-2013
142,Revenue,CCHD,Bed purchasing -S28A  Under 65 - North,Residential Homes,Aspects &  Milestones Trust,6125.96, 19-Feb-2013
143,Revenue,CCHD,Bed Purchasing - LD S28A- Over 65- South,Residential Homes,Aspects &  Milestones Trust,3905.44, 19-Feb-2013
144,Revenue,CCHD,Bed purchasing - S28A Under 65 - South,Residential Homes,Aspects &  Milestones Trust,5052.2, 19-Feb-2013
145,Revenue,CCHD,Bed purchasing - S28A Under 65 - South,Residential Homes,Aspects &  Milestones Trust,6626.28, 19-Feb-2013
146,Revenue,CCHD,Bed purchasing - S28A Under 65 - South,Residential Homes,Aspects &  Milestones Trust,4047.8, 19-Feb-2013
147,Revenue,CCHD,Bed Purchasing - LD S28A- Over 65- South,Residential Homes,Aspects &  Milestones Trust,5824.28, 19-Feb-2013
148,Revenue,CCHD,Bed Purchasing - S28A - Over 65- North,Residential Homes,Aspects &  Milestones Trust,3397.72, 19-Feb-2013
149,Revenue,CCHD,Bed Purchasing - LD S28A- Over 65- South,Residential Homes,Aspects &  Milestones Trust,4760.52, 19-Feb-2013
150,Revenue,CCHD,Bed Purchasing - LD S28A- Over 65- South,Residential Homes,Aspects &  Milestones Trust,4908.2, 19-Feb-2013
151,Revenue,CCHD,Bed Purchasing - LD S28A- Over 65- South,Residential Homes,Aspects &  Milestones Trust,4622.6, 19-Feb-2013
152,Revenue,CCHD,Bed Purchasing - LD S28A- Over 65- South,Residential Homes,Aspects &  Milestones Trust,5383.48, 19-Feb-2013
153,Revenue,CCHD,Bed purchasing -S28A  Under 65 - North,Residential Homes,Aspects &  Milestones Trust,7309.52, 19-Feb-2013
154,Revenue,CCHD,Bed purchasing -S28A  Under 65 - North,Nursing Homes,Aspects &  Milestones Trust,6296.44, 19-Feb-2013
155,Revenue,CCHD,Bed Purchasing - LD S28A- Over 65- South,Residential Homes,Aspects &  Milestones Trust,3492.92, 19-Feb-2013
156,Revenue,CCHD,Bed Purchasing - LD S28A- Over 65- South,Residential Homes,Aspects &  Milestones Trust,3251.48, 19-Feb-2013
157,Revenue,CCHD,Bed Purchasing - S28A - Over 65- North,Residential Homes,Aspects &  Milestones Trust,3308.72, 19-Feb-2013
158,Revenue,CCHD,Bed Purchasing - LD S28A- Over 65- South,Residential Homes,Aspects &  Milestones Trust,4720.44, 19-Feb-2013
159,Revenue,CCHD,Section 117 Placements MH Younger,Residential Homes,Aspects &  Milestones Trust,1324, 19-Feb-2013
160,Revenue,CCHD,Bed purchasing - Elderly MH - North,Residential Homes,Aspects &  Milestones Trust,849.48, 19-Feb-2013
161,Revenue,CCHD,Bed purchasing - S28A Under 65 - South,Residential Homes,Aspects &  Milestones Trust,4790.96, 19-Feb-2013
162,Revenue,CCHD,Bed purchasing - Elderly PWLD - North,Residential Homes,Aspects &  Milestones Trust,5424.04, 19-Feb-2013
163,Revenue,CCHD,Bed purchasing - Under 65s PWLD - North,Residential Homes,Aspects &  Milestones Trust,5511.12, 19-Feb-2013
164,Revenue,CCHD,Bed purchasing - Elderly MH - North,Nursing Homes,Aspects &  Milestones Trust,1096.68, 19-Feb-2013
165,Revenue,CCHD,Bed Purchasing - Under 65s PWLD - South,Residential Homes,Aspects &  Milestones Trust,3849.4, 19-Feb-2013
166,Revenue,CCHD,Bed purchasing -S28A  Under 65 - North,Residential Homes,Aspects &  Milestones Trust,5771.6, 19-Feb-2013
167,Revenue,CCHD,Bed Purchasing - S28A - Over 65- North,Residential Homes,Aspects &  Milestones Trust,3271.48, 19-Feb-2013
168,Revenue,CCHD,Section 117 Placements MH Younger,Residential Homes,Aspects &  Milestones Trust,1716, 19-Feb-2013
169,Revenue,CCHD,MH Purchasing - Younger,Residential Homes,Aspects &  Milestones Trust,1012.6, 19-Feb-2013
170,Revenue,CCHD,Bed Purchasing - S28A - Over 65- North,Residential Homes,Aspects &  Milestones Trust,3511.28, 19-Feb-2013
171,Revenue,CCHD,Bed purchasing - S28A Under 65 - South,Residential Homes,Aspects &  Milestones Trust,3563.92, 19-Feb-2013
172,Revenue,CCHD,Bed purchasing - S28A Under 65 - South,Residential Homes,Aspects &  Milestones Trust,5052.2, 19-Feb-2013
173,Revenue,CCHD,Bed purchasing - S28A Under 65 - South,Residential Homes,Aspects &  Milestones Trust,6024.64, 19-Feb-2013
174,Revenue,CCHD,Bed Purchasing - LD S28A- Over 65- South,Residential Homes,Aspects &  Milestones Trust,5898.16, 19-Feb-2013
175,Revenue,CCHD,Bed Purchasing - LD S28A- Over 65- South,Residential Homes,Aspects &  Milestones Trust,4164.96, 19-Feb-2013
176,Revenue,CCHD,Bed Purchasing - LD S28A- Over 65- South,Residential Homes,Aspects &  Milestones Trust,4720.44, 19-Feb-2013
177,Revenue,CCHD,Bed Purchasing - LD S28A- Over 65- South,Residential Homes,Aspects &  Milestones Trust,5607.6, 19-Feb-2013
178,Revenue,CCHD,Bed purchasing - S28A Under 65 - South,Residential Homes,Aspects &  Milestones Trust,37999.6, 19-Feb-2013
179,Revenue,CCHD,Bed Purchasing - LD S28A- Over 65- South,Residential Homes,Aspects &  Milestones Trust,4902.32, 19-Feb-2013
180,Revenue,CCHD,Bed purchasing -S28A  Under 65 - North,Residential Homes,Aspects &  Milestones Trust,4743.92, 19-Feb-2013
181,Revenue,CCHD,Bed Purchasing - S28A - Over 65- North,Residential Homes,Aspects &  Milestones Trust,4885.4, 19-Feb-2013
182,Revenue,CCHD,Bed Purchasing - S28A - Over 65- North,Residential Homes,Aspects &  Milestones Trust,5473.64, 19-Feb-2013
183,Revenue,CCHD,Bed purchasing - S28A Under 65 - South,Residential Homes,Aspects &  Milestones Trust,4611.44, 19-Feb-2013
184,Revenue,CCHD,Bed Purchasing - S28A - Over 65- North,Residential Homes,Aspects &  Milestones Trust,4885.4, 19-Feb-2013
185,Revenue,CCHD,Bed purchasing - S28A Under 65 - South,Residential Homes,Aspects &  Milestones Trust,4569, 19-Feb-2013
186,Revenue,CCHD,Bed purchasing -S28A  Under 65 - North,Residential Homes,Aspects &  Milestones Trust,6125.96, 19-Feb-2013
187,Revenue,CCHD,Bed Purchasing - S28A - Over 65- North,Residential Homes,Aspects &  Milestones Trust,5621.68, 19-Feb-2013
188,Revenue,CCHD,Bed purchasing -S28A  Under 65 - North,Residential Homes,Aspects &  Milestones Trust,3468.84, 19-Feb-2013
189,Revenue,CCHD,Bed Purchasing - S28A - Over 65- North,Residential Homes,Aspects &  Milestones Trust,3275.16, 19-Feb-2013
190,Revenue,CCHD,Bed Purchasing - S28A - Over 65- North,Residential Homes,Aspects &  Milestones Trust,3412.88, 19-Feb-2013
191,Revenue,CCHD,Bed Purchasing - LD S28A- Over 65- South,Residential Homes,Aspects &  Milestones Trust,3204.2, 19-Feb-2013
192,Revenue,CCHD,Bed purchasing - Elderly S117 - South,Nursing Homes,Aspects &  Milestones Trust,1945.16, 19-Feb-2013
193,Revenue,CCHD,Bed Purchasing - Elderly - South,Nursing Homes,Aspects &  Milestones Trust,1456.88, 19-Feb-2013
194,Revenue,CCHD,Bed purchasing - Under 65s PWLD - North,Residential Homes,Aspects &  Milestones Trust,6125.96, 19-Feb-2013
195,Revenue,CCHD,MH Purchasing - Younger,Nursing Homes,Aspects &  Milestones Trust,920.56, 19-Feb-2013
196,Revenue,CCHD,MH Purchasing - Younger,Nursing Homes,Aspects &  Milestones Trust,939.2, 19-Feb-2013
197,Revenue,CCHD,MH Purchasing - Younger,Residential Homes,Aspects &  Milestones Trust,1012.6, 19-Feb-2013
198,Revenue,CCHD,Bed purchasing - Elderly PWLD - South,Residential Homes,Aspects &  Milestones Trust,3399.76, 19-Feb-2013
199,Revenue,CCHD,Bed purchasing - S28A Under 65 - South,Residential Homes,Aspects &  Milestones Trust,7168.2, 19-Feb-2013
200,Revenue,CCHD,Bed purchasing - S28A Under 65 - South,Residential Homes,Aspects &  Milestones Trust,4866.72, 19-Feb-2013
201,Revenue,CCHD,Bed Purchasing - LD S28A- Over 65- South,Residential Homes,Aspects &  Milestones Trust,4628.68, 19-Feb-2013
202,Revenue,CCHD,Bed Purchasing - Under 65s PWLD - South,Residential Homes,Aspects &  Milestones Trust,4173.08, 19-Feb-2013
203,Revenue,CCHD,Bed Purchasing - LD S28A- Over 65- South,Nursing Homes,Aspects &  Milestones Trust,4196.4, 19-Feb-2013
204,Revenue,CCHD,Bed Purchasing - LD S28A- Over 65- South,Residential Homes,Aspects &  Milestones Trust,5898.16, 19-Feb-2013
205,Revenue,CCHD,Bed Purchasing - LD S28A- Over 65- South,Residential Homes,Aspects &  Milestones Trust,3973.08, 19-Feb-2013
206,Revenue,CCHD,Bed Purchasing - LD S28A- Over 65- South,Residential Homes,Aspects &  Milestones Trust,4406.8, 19-Feb-2013
207,Revenue,CCHD,Bed Purchasing - LD S28A- Over 65- South,Residential Homes,Aspects &  Milestones Trust,5155.88, 19-Feb-2013
208,Revenue,CCHD,Bed Purchasing - Elderly MH - South,Residential Homes,Aspects &  Milestones Trust,1206.56, 19-Feb-2013
209,Revenue,CCHD,Bed Purchasing - Elderly S117- North,Nursing Homes,Aspects &  Milestones Trust,1944, 19-Feb-2013
210,Revenue,CCHD,Bed Purchasing - Elderly S117- North,Nursing Homes,Aspects &  Milestones Trust,1944, 19-Feb-2013
211,Revenue,CCHD,Bed Purchasing - Elderly S117- North,Residential Homes,Aspects &  Milestones Trust,1324, 19-Feb-2013
212,Revenue,CCHD,Bed purchasing - Under 65s PWLD - North,Residential Homes,Aspects & Milestones Trust,8841.64, 19-Feb-2013
213,Revenue,CCHD,Bed purchasing - Under 65s PWLD - North,Residential Homes,Aspects 2 Limited,6873.04, 19-Feb-2013
214,Revenue,CCHD,Supporting People Programme,Grants to Voluntary Bodies,Aspects and Milestones Trust,2391.34, 01-Feb-2013
215,Revenue,CCHD,Supporting People Programme,Grants to Voluntary Bodies,Aspects and Milestones Trust,1575.46, 01-Feb-2013
216,Revenue,CCHD,Supporting People Programme,Grants to Voluntary Bodies,Aspects and Milestones Trust,3142.43, 01-Feb-2013
217,Revenue,CCHD,Supporting People Programme,Grants to Voluntary Bodies,Aspects and Milestones Trust,1918.88, 01-Feb-2013
218,Revenue,CCHD,Supported Living - KD,Private & Voluntary Home Care,Aspirations Support Bristol Limited,5182.04, 12-Feb-2013
219,Revenue,CCHD,Supported Living - PS,Private & Voluntary Home Care,Aspirations Support Bristol Limited,3925.83, 11-Feb-2013
220,Revenue,CCHD,Supported Living - PS,Private & Voluntary Home Care,Aspirations Support Bristol Limited,3944.31, 11-Feb-2013
221,Revenue,CCHD,Supported Living - KD,Private & Voluntary Home Care,Aspirations Support Bristol Limited,5958.58, 14-Feb-2013
222,Revenue,CCHD,Supported Living - PS,Private & Voluntary Home Care,Aspirations Support Bristol Limited,4766.8, 11-Feb-2013
223,Revenue,CCHD,Purchase of Non-Res Care - PS,Private & Voluntary Day Care,Aspirations Support Bristol Limited,2475.72, 12-Feb-2013
224,Revenue,CCHD,Supported Living - KD,Private & Voluntary Home Care,Aspirations Support Bristol Limited,8213.14, 14-Feb-2013
225,Revenue,CCHD,Supported Living - PS,Private & Voluntary Home Care,Aspirations Support Bristol Limited,646.38, 12-Feb-2013
226,Revenue,CCHD,Supported Living - KD,Private & Voluntary Home Care,Autism Solutions Limited,2892.98, 28-Feb-2013
227,Revenue,CCHD,Bed Purchasing - Under 65s PWLD - South,Residential Homes,Autism Specialised Care Homes,5515.04, 19-Feb-2013
228,Revenue,CCHD,Younger Adult Mental Health,Management Contract - Unisys,Avon & Wiltshire Mental Health,5000, 01-Feb-2013
229,Revenue,CCHD,Purchase of Non-Res Care - KD,Private & Voluntary Day Care,Avon Autistic Foundation Limited,2659.72, 26-Feb-2013
230,Revenue,CCHD,Purchase of Non-Res Care - KD,Private & Voluntary Day Care,Avon Autistic Foundation Limited,3847.82, 15-Feb-2013
231,Revenue,CCHD,Bed Purchasing - Elderly - South,Residential Homes,Beaufort House,1150, 19-Feb-2013
232,Revenue,CCHD,Bed Purchasing - Elderly - South,Residential Homes,Beaufort House,3726.71, 19-Feb-2013
233,Revenue,CCHD,Bed purchasing - Elderly MH - North,Residential Homes,Beaufort House,1418.36, 19-Feb-2013
234,Revenue,CCHD,Frenchay Hospital Purchasing,Residential Homes,Beaufort House,1276.24, 19-Feb-2013
235,Revenue,CCHD,Bed Purchasing - Elderly - North,Residential Homes,Beaufort House,1697.4, 19-Feb-2013
236,Revenue,CCHD,Bed purchasing - Elderly MH - North,Residential Homes,Beaufort House,875.84, 19-Feb-2013
237,Revenue,CCHD,Bed purchasing - Elderly MH - North,Residential Homes,Beaufort House,1011.32, 19-Feb-2013
238,Revenue,CCHD,Bed purchasing - Elderly MH - North,Residential Homes,Beaufort House,1672.68, 19-Feb-2013
239,Revenue,CCHD,Bed Purchasing - Elderly - North,Residential Homes,Beaufort House,1509.12, 19-Feb-2013
240,Revenue,CCHD,Bed purchasing - Elderly PWLD - South,Residential Homes,Bedrock Lodge,2858.6, 19-Feb-2013
241,Revenue,CCHD,Section 117 Placements MH Younger,Residential Homes,Bedrock Lodge,1820.2, 19-Feb-2013
242,Revenue,CCHD,Frenchay Hospital Purchasing,Nursing Homes,Beech House,701.44, 19-Feb-2013
243,Revenue,CCHD,Bed Purchasing - Elderly - North,Nursing Homes,Beech House,693.44, 19-Feb-2013
244,Revenue,CCHD,South Glos Users in South Glos Homes,Nursing Homes,Beech House,1040.41, 19-Feb-2013
245,Revenue,CCHD,Bed Purchasing - Elderly - North,Nursing Homes,Beech House,680.24, 19-Feb-2013
246,Revenue,CCHD,Bed Purchasing - Elderly - North,Nursing Homes,Beech House,2202.92, 19-Feb-2013
247,Revenue,CCHD,Bed Purchasing - Elderly - North,Residential Homes,Blossom Field,1027.6, 19-Feb-2013
248,Revenue,CCHD,Bed purchasing - Elderly MH - North,Nursing Homes,Blossom Field,1391.16, 19-Feb-2013
249,Revenue,CCHD,Bed Purchasing - Elderly - South,Nursing Homes,Blossom Field,1867.2, 19-Feb-2013
250,Revenue,CCHD,Bed Purchasing - Elderly - South,Nursing Homes,Blossom Fields,2961.76, 12-Feb-2013
251,Revenue,CCHD,Bed Purchasing - Elderly - North,Nursing Homes,Blossom Fields,5998.5, 12-Feb-2013
252,Revenue,CCHD,South Glos Users in South Glos Homes,Nursing Homes,Blossom Fields,1304.4, 12-Feb-2013
253,Revenue,CCHD,Bed purchasing - Elderly MH - North,Nursing Homes,Blossom Fields,1536.24, 12-Feb-2013
254,Revenue,CCHD,Frenchay Hospital Purchasing,Nursing Homes,Bradbury House,1366.76, 19-Feb-2013
255,Revenue,CCHD,Bed purchasing - Under 65s PWLD - North,Residential Homes,Bradbury House,8685.6, 19-Feb-2013
256,Revenue,CCHD,Home Care - Elderly - South,Other Small Contracts,Bradley House Home Care Services,75.06, 12-Feb-2013
257,Revenue,CCHD,Home Care - Elderly - North,Other Small Contracts,Bradley House Home Care Services,1134.24, 12-Feb-2013
258,Revenue,CCHD,Day Care - North,Private & Voluntary Day Care,Bradley House Home Care Services,116.76, 12-Feb-2013
259,Revenue,CCHD,Home Care - Elderly - South,Other Small Contracts,Bradley House Home Care Services,70.89, 20-Feb-2013
260,Revenue,CCHD,Home Care - Elderly - North,Other Small Contracts,Bradley House Home Care Services,1063.35, 20-Feb-2013
261,Revenue,CCHD,Day Care - North,Private & Voluntary Day Care,Bradley House Home Care Services,108.42, 20-Feb-2013
262,Revenue,CCHD,Home Care - Elderly - South,Other Small Contracts,Bradley House Home Care Services,79.23, 28-Feb-2013
263,Revenue,CCHD,Home Care - Elderly - North,Other Small Contracts,Bradley House Home Care Services,946.59, 28-Feb-2013
264,Revenue,CCHD,Day Care - North,Private & Voluntary Day Care,Bradley House Home Care Services,129.27, 28-Feb-2013
265,Revenue,CCHD,Home Care - Elderly - South,Other Small Contracts,Bradley House Home Care Services,75.06, 11-Feb-2013
266,Revenue,CCHD,Home Care - Elderly - North,Other Small Contracts,Bradley House Home Care Services,1084.2, 11-Feb-2013
267,Revenue,CCHD,Day Care - North,Private & Voluntary Day Care,Bradley House Home Care Services,100.08, 11-Feb-2013
268,Revenue,CCHD,Home Care - Elderly - South,Other Small Contracts,Bradley House Home Care Services,75.06, 11-Feb-2013
269,Revenue,CCHD,Home Care - Elderly - North,Other Small Contracts,Bradley House Home Care Services,1100.88, 11-Feb-2013
270,Revenue,CCHD,Day Care - North,Private & Voluntary Day Care,Bradley House Home Care Services,125.1, 11-Feb-2013
271,Revenue,CCHD,Alexandra Way,"Provisions (Food, etc)",Brake Bros,532.17, 06-Feb-2013
272,Revenue,CCHD,Woodleaze,"Provisions (Food, etc)",Brake Bros,817.04, 14-Feb-2013
273,Revenue,CCHD,Woodleaze,"Provisions (Food, etc)",Brake Bros,531.59, 14-Feb-2013
274,Revenue,CCHD,Alexandra Way,"Provisions (Food, etc)",Brake Bros,597.96, 13-Feb-2013
275,Revenue,CCHD,Woodleaze,"Provisions (Food, etc)",Brake Bros,839.25, 14-Feb-2013
276,Revenue,CCHD,Bed Purchasing - Elderly - North,Residential Homes,Bridge House Care Home,1227.08, 19-Feb-2013
277,Revenue,CCHD,Bed Purchasing - Elderly - North,Residential Homes,Bridge House Care Home,1503.04, 19-Feb-2013
278,Revenue,CCHD,Bed Purchasing - Elderly - North,Residential Homes,Bridge House Care Home,1074, 19-Feb-2013
279,Revenue,CCHD,Bed Purchasing - Elderly - North,Residential Homes,Bridge House Care Home,1322.96, 19-Feb-2013
280,Revenue,CCHD,Bed Purchasing - Elderly MH - South,Residential Homes,Brightbow,2529, 19-Feb-2013
281,Revenue,CCHD,MH Purchasing - Younger,Residential Homes,Brightbow,922.36, 19-Feb-2013
282,Revenue,CCHD,Homelessness Grant,Other Supplies & Services,Bristol City Council,5573.09, 25-Feb-2013
283,Revenue,CCHD,Supported Living - KD,Private & Voluntary Home Care,Bristol Houses UK Limited,1281.84, 01-Feb-2013
284,Revenue,CCHD,Supported Living - KD,Private & Voluntary Home Care,Bristol Houses UK Limited,1290.56, 07-Feb-2013
285,Revenue,CCHD,Supported Living - KD,Private & Voluntary Home Care,Bristol Houses UK Limited,1046.4, 01-Feb-2013
286,Revenue,CCHD,Supported Living - KD,Private & Voluntary Home Care,Bristol Houses UK Limited,1046.4, 01-Feb-2013
287,Revenue,CCHD,Day Care - North,Private & Voluntary Day Care,Bristol Houses UK Limited,1534.72, 01-Feb-2013
288,Revenue,CCHD,Day Care - North,Private & Voluntary Day Care,Bristol Houses UK Limited,1534.72, 04-Feb-2013
289,Revenue,CCHD,Supported Living - KD,Private & Voluntary Home Care,Bristol Houses UK Limited,776.08, 01-Feb-2013
290,Revenue,CCHD,Supported Living - KD,Private & Voluntary Home Care,Bristol Houses UK Limited,924.32, 01-Feb-2013
291,Revenue,CCHD,Supported Living - KD,Private & Voluntary Home Care,Bristol Houses UK Limited,907.5, 01-Feb-2013
292,Revenue,CCHD,Supported Living - KD,Private & Voluntary Home Care,Bristol Houses UK Limited,960, 07-Feb-2013
293,Revenue,CCHD,Younger MH non-res purchasing,Private & Voluntary Day Care,Bristol Houses UK Limited,1080, 01-Feb-2013
294,Revenue,CCHD,Younger MH non-res purchasing,Private & Voluntary Day Care,Bristol Houses UK Limited,810, 01-Feb-2013
295,Revenue,CCHD,Supported Living - KD,Private & Voluntary Home Care,Bristol Houses UK Limited,555, 01-Feb-2013
296,Revenue,CCHD,Day Care - North,Private & Voluntary Day Care,Bristol Houses UK Limited,2371.84, 01-Feb-2013
297,Revenue,CCHD,Day Care - North,Private & Voluntary Day Care,Bristol Houses UK Limited,2275.92, 04-Feb-2013
298,Revenue,CCHD,Supported Living - KD,Private & Voluntary Home Care,Bristol Houses UK Limited,599.98, 04-Feb-2013
299,Revenue,CCHD,Supported Living - KD,Private & Voluntary Home Care,Bristol Houses UK Limited,599.98, 01-Feb-2013
300,Revenue,CCHD,Supported Living - KD,Private & Voluntary Home Care,Bristol Houses UK Limited,599.98, 01-Feb-2013
301,Revenue,CCHD,Bed and Breakfast,Bed & Breakfast,Bristol Housing & Support Limited,1048, 18-Feb-2013
302,Revenue,CCHD,Bed and Breakfast,Bed & Breakfast,Bristol Housing & Support Limited,1124, 06-Feb-2013
303,Revenue,CCHD,Bed and Breakfast,Bed & Breakfast,Bristol Housing & Support Limited,1788, 25-Feb-2013
304,Revenue,CCHD,Woodleaze,Water Charges,Bristol Wessex Billing Services Limited,3860.72, 08-Feb-2013
305,Revenue,CCHD,Newton House,Water Charges,Bristol Wessex Billing Services Limited,3163.9, 28-Feb-2013
306,Revenue,CCHD,Supporting People Programme,Grants to Voluntary Bodies,Bromford Housing Group,13916.67, 01-Feb-2013
307,Revenue,CCHD,Bed Purchasing - Elderly - North,Residential Homes,Brook Lane Residential Home,877.36, 19-Feb-2013
308,Revenue,CCHD,Home Care - Elderly - North,Private & Voluntary Home Care,Brunelcare,6720, 04-Feb-2013
309,Revenue,CCHD,Home Care - Elderly - North,Private & Voluntary Home Care,Brunelcare,6720, 11-Feb-2013
310,Revenue,CCHD,Home Care - Elderly - North,Private & Voluntary Home Care,Brunelcare,6720, 18-Feb-2013
311,Revenue,CCHD,Home Care - Elderly - North,Private & Voluntary Home Care,Brunelcare,6720, 25-Feb-2013
312,Revenue,CCHD,Home Care - Elderly - South,Other Small Contracts,Brunelcare,2626, 27-Feb-2013
313,Revenue,CCHD,Home Care - Elderly - North,Other Small Contracts,Brunelcare,4141, 27-Feb-2013
314,Revenue,CCHD,Day Care - South,Private & Voluntary Day Care,Brunelcare,141.4, 27-Feb-2013
315,Revenue,CCHD,Day Care - North,Private & Voluntary Day Care,Brunelcare,72.72, 27-Feb-2013
316,Revenue,CCHD,Home care - Elderly MH - North,Other Small Contracts,Brunelcare,145.44, 27-Feb-2013
317,Revenue,CCHD,Home Care - Elderly - South,Other Small Contracts,Brunelcare,2121, 11-Feb-2013
318,Revenue,CCHD,Home Care - Elderly - North,Other Small Contracts,Brunelcare,3636, 11-Feb-2013
319,Revenue,CCHD,Day Care - South,Private & Voluntary Day Care,Brunelcare,113.12, 11-Feb-2013
320,Revenue,CCHD,Day Care - North,Private & Voluntary Day Care,Brunelcare,32.32, 11-Feb-2013
321,Revenue,CCHD,Home care - Elderly MH - North,Other Small Contracts,Brunelcare,157.56, 11-Feb-2013
322,Revenue,CCHD,Home Care - Elderly - South,Other Small Contracts,Brunelcare,2213.92, 25-Feb-2013
323,Revenue,CCHD,Home Care - Elderly - North,Other Small Contracts,Brunelcare,4193.52, 25-Feb-2013
324,Revenue,CCHD,Day Care - South,Private & Voluntary Day Care,Brunelcare,133.32, 25-Feb-2013
325,Revenue,CCHD,Day Care - North,Private & Voluntary Day Care,Brunelcare,80.8, 25-Feb-2013
326,Revenue,CCHD,Home care - Elderly MH - North,Other Small Contracts,Brunelcare,161.6, 25-Feb-2013
327,Revenue,CCHD,Home Care - Elderly - South,Other Small Contracts,Brunelcare,2739.12, 25-Feb-2013
328,Revenue,CCHD,Home Care - Elderly - North,Other Small Contracts,Brunelcare,4153.12, 25-Feb-2013
329,Revenue,CCHD,Day Care - South,Private & Voluntary Day Care,Brunelcare,137.36, 25-Feb-2013
330,Revenue,CCHD,Day Care - North,Private & Voluntary Day Care,Brunelcare,76.76, 25-Feb-2013
331,Revenue,CCHD,Home care - Elderly MH - North,Other Small Contracts,Brunelcare,161.6, 25-Feb-2013
332,Revenue,CCHD,Information Systems - Software,Computer Equipment - Purchase,BT Global Services Solutions,978.04, 11-Feb-2013
333,Revenue,CCHD,Woodleaze,Cleaning & Domestic Services,Bunzl Cleaning & Hygiene Supplies,1261.4, 04-Feb-2013
334,Revenue,CCHD,Woodleaze,Cleaning & Domestic Services,Bunzl Cleaning & Hygiene Supplies,830.24, 22-Feb-2013
335,Revenue,CCHD,Bed purchasing - Phys Dis - North,Nursing Homes,Bupa Care Services  Bridge House,5795.92, 19-Feb-2013
336,Revenue,CCHD,South Glos Users in all other LA Homes,Nursing Homes,Bupa Care Services  Bridge House,598.4, 19-Feb-2013
337,Revenue,CCHD,Bed purchasing - Elderly MH - North,Residential Homes,Bupa Care Services  Bridge House,1880, 19-Feb-2013
338,Revenue,CCHD,Supported Living - KD,Private & Voluntary Home Care,Camphill Communities Thornbury Limited,1775.92, 06-Feb-2013
339,Revenue,CCHD,Supported Living - KD,Private & Voluntary Home Care,Camphill Communities Thornbury Limited,1804.92, 05-Feb-2013
340,Revenue,CCHD,Supported Living - PS,Private & Voluntary Home Care,Camphill Communities Thornbury Limited,1736.4, 06-Feb-2013
341,Revenue,CCHD,Supported Living - KD,Private & Voluntary Home Care,Camphill Communities Thornbury Limited,2475, 06-Feb-2013
342,Revenue,CCHD,Supported Living - KD,Private & Voluntary Home Care,Camphill Communities Thornbury Limited,2572.8, 06-Feb-2013
343,Revenue,CCHD,Elderly MH Day Care South,Private & Voluntary Day Care,Camphill Communities Thornbury Limited,1804.92, 08-Feb-2013
344,Revenue,CCHD,Supported Living - KD,Private & Voluntary Home Care,Camphill Communities Thornbury Limited,2269.12, 13-Feb-2013
345,Revenue,CCHD,Supported Living - KD,Private & Voluntary Home Care,Camphill Communities Thornbury Limited,2030.28, 13-Feb-2013
346,Revenue,CCHD,Supported Living - KH,Private & Voluntary Home Care,Camphill Communities Thornbury Limited,1997.32, 13-Feb-2013
347,Revenue,CCHD,Supported Living - KD,Private & Voluntary Home Care,Camphill Communities Thornbury Limited,2112.64, 20-Feb-2013
348,Revenue,CCHD,Supported Living - KD,Private & Voluntary Home Care,Camphill Communities Thornbury Limited,1997.32, 21-Feb-2013
349,Revenue,CCHD,Supported Living - KD,Private & Voluntary Home Care,Camphill Communities Thornbury Limited,2216.04, 21-Feb-2013
350,Revenue,CCHD,Supported Living - KD,Private & Voluntary Home Care,Camphill Communities Thornbury Limited,1775.92, 21-Feb-2013
351,Revenue,CCHD,Supported Living - KD,Private & Voluntary Home Care,Camphill Communities Thornbury Limited,2086.8, 21-Feb-2013
352,Revenue,CCHD,Bed purchasing - Under 65s PWLD - North,Residential Homes,Camphill Devon Community,3185.24, 19-Feb-2013
353,Revenue,CCHD,Bed purchasing - Under 65s PWLD - North,Residential Homes,Camphill Devon Community,2234.08, 19-Feb-2013
354,Revenue,CCHD,Home Care - Elderly - South,Other Small Contracts,Care 1st Homecare,3260.25, 06-Feb-2013
355,Revenue,CCHD,Home Care - Elderly - North,Other Small Contracts,Care 1st Homecare,5811.54, 06-Feb-2013
356,Revenue,CCHD,Day Care - South,Private & Voluntary Day Care,Care 1st Homecare,113.4, 06-Feb-2013
357,Revenue,CCHD,Day Care - North,Private & Voluntary Day Care,Care 1st Homecare,97.2, 06-Feb-2013
358,Revenue,CCHD,Home Care - LD Under 65 - South,Private & Voluntary Home Care,Care 1st Homecare,48.6, 06-Feb-2013
359,Revenue,CCHD,Home Care - Elderly - South,Other Small Contracts,Care 1st Homecare,3264.3, 06-Feb-2013
360,Revenue,CCHD,Home Care - Elderly - North,Other Small Contracts,Care 1st Homecare,4523.85, 06-Feb-2013
361,Revenue,CCHD,Day Care - South,Private & Voluntary Day Care,Care 1st Homecare,113.4, 06-Feb-2013
362,Revenue,CCHD,Day Care - North,Private & Voluntary Day Care,Care 1st Homecare,89.1, 06-Feb-2013
363,Revenue,CCHD,Home Care - LD Under 65 - South,Private & Voluntary Home Care,Care 1st Homecare,48.6, 06-Feb-2013
364,Revenue,CCHD,Home Care - Elderly - South,Other Small Contracts,Care 1st Homecare,2920.05, 06-Feb-2013
365,Revenue,CCHD,Home Care - Elderly - North,Other Small Contracts,Care 1st Homecare,4037.85, 06-Feb-2013
366,Revenue,CCHD,Day Care - South,Private & Voluntary Day Care,Care 1st Homecare,113.4, 06-Feb-2013
367,Revenue,CCHD,Day Care - North,Private & Voluntary Day Care,Care 1st Homecare,89.1, 06-Feb-2013
368,Revenue,CCHD,Home Care - LD Under 65 - South,Private & Voluntary Home Care,Care 1st Homecare,97.2, 06-Feb-2013
369,Revenue,CCHD,Home Care - Elderly - South,Other Small Contracts,Care 1st Homecare,3519.45, 06-Feb-2013
370,Revenue,CCHD,Home Care - Elderly - North,Other Small Contracts,Care 1st Homecare,5014.37, 06-Feb-2013
371,Revenue,CCHD,Day Care - South,Private & Voluntary Day Care,Care 1st Homecare,113.4, 06-Feb-2013
372,Revenue,CCHD,Day Care - North,Private & Voluntary Day Care,Care 1st Homecare,89.1, 06-Feb-2013
373,Revenue,CCHD,Home Care - LD Under 65 - South,Private & Voluntary Home Care,Care 1st Homecare,64.8, 06-Feb-2013
374,Revenue,CCHD,Home Care - Elderly - South,Other Small Contracts,Care 1st Homecare,3936.6, 26-Feb-2013
375,Revenue,CCHD,Home Care - Elderly - North,Other Small Contracts,Care 1st Homecare,5244.54, 26-Feb-2013
376,Revenue,CCHD,Day Care - South,Private & Voluntary Day Care,Care 1st Homecare,97.2, 26-Feb-2013
377,Revenue,CCHD,Day Care - North,Private & Voluntary Day Care,Care 1st Homecare,48.6, 26-Feb-2013
378,Revenue,CCHD,Home Care - LD Under 65 - South,Private & Voluntary Home Care,Care 1st Homecare,113.4, 26-Feb-2013
379,Revenue,CCHD,Home Care - Elderly - South,Other Small Contracts,Care 1st Homecare,3576.15, 26-Feb-2013
380,Revenue,CCHD,Home Care - Elderly - North,Other Small Contracts,Care 1st Homecare,4811.88, 26-Feb-2013
381,Revenue,CCHD,Day Care - South,Private & Voluntary Day Care,Care 1st Homecare,89.1, 26-Feb-2013
382,Revenue,CCHD,Day Care - North,Private & Voluntary Day Care,Care 1st Homecare,81, 26-Feb-2013
383,Revenue,CCHD,Home Care - LD Under 65 - South,Private & Voluntary Home Care,Care 1st Homecare,32.4, 26-Feb-2013
384,Revenue,CCHD,Bed Purchasing - PWLD S 117 Placements,Residential Homes,Care Community Ltd,7464.72, 19-Feb-2013
385,Revenue,CCHD,Supported Living - KD,Private & Voluntary Home Care,Care Horizons Limited,5322.68, 04-Feb-2013
386,Revenue,CCHD,Supported Living - KD,Private & Voluntary Home Care,Care Horizons Limited,5402.95, 28-Feb-2013
387,Revenue,CCHD,Purchase of Non-Res Care - KD,Private & Voluntary Day Care,Care Horizons Limited,1734.2, 26-Feb-2013
388,Revenue,CCHD,Purchase of Non-Res Care - KD,Private & Voluntary Day Care,Care Horizons Limited,1206.65, 26-Feb-2013
389,Revenue,CCHD,Purchase of Non-Res Care - KD,Private & Voluntary Day Care,Care Horizons Limited,1012.81, 26-Feb-2013
390,Revenue,CCHD,Purchase of Non-Res Care - KD,Private & Voluntary Day Care,Care Horizons Limited,1451.58, 26-Feb-2013
391,Revenue,CCHD,Supported Living - PS,Private & Voluntary Home Care,Care Horizons Limited,1906.48, 20-Feb-2013
392,Revenue,CCHD,Supported Living - KD,Private & Voluntary Home Care,Care Horizons Limited,5750, 04-Feb-2013
393,Revenue,CCHD,Electronic Home Care Monitoring,Other Supplies & Services,Care Monitoring 2000 Limited,5304.7, 22-Feb-2013
394,Revenue,CCHD,Home Care - General,Other Supplies & Services,Care Monitoring 2000 Limited,6875.7, 22-Feb-2013
395,Revenue,CCHD,Electronic Home Care Monitoring,Other Supplies & Services,Care Monitoring 2000 Limited,2400, 19-Feb-2013
396,Revenue,CCHD,Electronic Home Care Monitoring,Other Supplies & Services,Care Monitoring 2000 Limited,600, 19-Feb-2013
397,Revenue,CCHD,Electronic Home Care Monitoring,Other Supplies & Services,Care Monitoring 2000 Limited,810.75, 28-Feb-2013
398,Revenue,CCHD,Electronic Home Care Monitoring,Other Supplies & Services,Care Monitoring 2000 Limited,5423.4, 19-Feb-2013
399,Revenue,CCHD,Home Care - General,Other Supplies & Services,Care Monitoring 2000 Limited,6872.8, 19-Feb-2013
400,Revenue,CCHD,Alexandra Way,Membership Fees,Care Quality Commission,5600, 14-Feb-2013
401,Revenue,CCHD,Newton House,Membership Fees,Care Quality Commission,4300, 14-Feb-2013
402,Revenue,CCHD,Woodleaze,Membership Fees,Care Quality Commission,4300, 14-Feb-2013
403,Revenue,CCHD,Home Care - General,Membership Fees,Care Quality Commission,1000, 14-Feb-2013
404,Revenue,CCHD,Shared Lives,Membership Fees,Care Quality Commission,1000, 14-Feb-2013
405,Revenue,CCHD,Home Care - Elderly - South,Other Small Contracts,Care UK,7750.78, 04-Feb-2013
406,Revenue,CCHD,Home Care - Elderly - North,Other Small Contracts,Care UK,3212.62, 04-Feb-2013
407,Revenue,CCHD,Day Care - South,Private & Voluntary Day Care,Care UK,347.62, 04-Feb-2013
408,Revenue,CCHD,Day Care - North,Private & Voluntary Day Care,Care UK,725.8, 04-Feb-2013
409,Revenue,CCHD,Home care - Elderly MH - North,Other Small Contracts,Care UK,580.64, 04-Feb-2013
410,Revenue,CCHD,Elderly MH Day Care North,Private & Voluntary Day Care,Care UK,187.18, 04-Feb-2013
411,Revenue,CCHD,Home Care - Elderly - South,Other Small Contracts,Care UK,7024.98, 04-Feb-2013
412,Revenue,CCHD,Home Care - Elderly - North,Other Small Contracts,Care UK,2635.8, 04-Feb-2013
413,Revenue,CCHD,Day Care - South,Private & Voluntary Day Care,Care UK,343.8, 04-Feb-2013
414,Revenue,CCHD,Day Care - North,Private & Voluntary Day Care,Care UK,561.54, 04-Feb-2013
415,Revenue,CCHD,Home care - Elderly MH - North,Other Small Contracts,Care UK,530.98, 04-Feb-2013
416,Revenue,CCHD,Elderly MH Day Care North,Private & Voluntary Day Care,Care UK,137.52, 04-Feb-2013
417,Revenue,CCHD,Home Care - Elderly - South,Other Small Contracts,Care UK,7540.68, 14-Feb-2013
418,Revenue,CCHD,Home Care - Elderly - North,Other Small Contracts,Care UK,3399.8, 14-Feb-2013
419,Revenue,CCHD,Day Care - South,Private & Voluntary Day Care,Care UK,347.62, 14-Feb-2013
420,Revenue,CCHD,Day Care - North,Private & Voluntary Day Care,Care UK,687.6, 14-Feb-2013
421,Revenue,CCHD,Home care - Elderly MH - North,Other Small Contracts,Care UK,557.72, 14-Feb-2013
422,Revenue,CCHD,Elderly MH Day Care North,Private & Voluntary Day Care,Care UK,183.36, 14-Feb-2013
423,Revenue,CCHD,Home Care - Elderly - South,Other Small Contracts,Carewatch (Bristol),715.7, 25-Feb-2013
424,Revenue,CCHD,Home Care - Elderly - North,Other Small Contracts,Carewatch (Bristol),1709.26, 25-Feb-2013
425,Revenue,CCHD,Day Care - North,Private & Voluntary Day Care,Carewatch (Bristol),84.2, 25-Feb-2013
426,Revenue,CCHD,Home Care - Elderly - South,Other Small Contracts,Carewatch (Bristol),762.01, 25-Feb-2013
427,Revenue,CCHD,Home Care - Elderly - North,Other Small Contracts,Carewatch (Bristol),1721.89, 25-Feb-2013
428,Revenue,CCHD,Day Care - North,Private & Voluntary Day Care,Carewatch (Bristol),79.99, 25-Feb-2013
429,Revenue,CCHD,Home Care - Elderly - South,Other Small Contracts,Carewatch (Bristol),787.27, 01-Feb-2013
430,Revenue,CCHD,Home Care - Elderly - North,Other Small Contracts,Carewatch (Bristol),1995.54, 01-Feb-2013
431,Revenue,CCHD,Home Care - Elderly - South,Other Small Contracts,Carewatch (Bristol),787.27, 01-Feb-2013
432,Revenue,CCHD,Home Care - Elderly - North,Other Small Contracts,Carewatch (Bristol),1856.61, 01-Feb-2013
433,Revenue,CCHD,Home Care - Elderly - South,Other Small Contracts,Carewatch (Bristol),753.59, 11-Feb-2013
434,Revenue,CCHD,Home Care - Elderly - North,Other Small Contracts,Carewatch (Bristol),1856.61, 11-Feb-2013
435,Revenue,CCHD,Elderly MH Day Care South,Private & Voluntary Day Care,Caring Home Healthcare Grp Ltd,1000, 14-Feb-2013
436,Revenue,CCHD,Home Care - Elderly - South,Other Small Contracts,Cash Friday at Lloyds TSB,100.36, 11-Feb-2013
437,Revenue,CCHD,Home Care - Elderly - North,Other Small Contracts,Cash Friday at Lloyds TSB,953.42, 11-Feb-2013
438,Revenue,CCHD,Day Care - North,Private & Voluntary Day Care,Cash Friday at Lloyds TSB,27.02, 11-Feb-2013
439,Revenue,CCHD,Home Care - Elderly - South,Other Small Contracts,Cash Friday at Lloyds TSB,100.36, 11-Feb-2013
440,Revenue,CCHD,Home Care - Elderly - North,Other Small Contracts,Cash Friday at Lloyds TSB,992.02, 11-Feb-2013
441,Revenue,CCHD,Day Care - North,Private & Voluntary Day Care,Cash Friday at Lloyds TSB,27.02, 11-Feb-2013
442,Revenue,CCHD,Frenchay Hospital Purchasing,Nursing Homes,Cedar Care Homes Ltd,1041.52, 19-Feb-2013
443,Revenue,CCHD,Frenchay Hospital Purchasing,Residential Homes,Centenary Care Homes Ltd,1239.2, 19-Feb-2013
444,Revenue,CCHD,Bed Purchasing - Elderly - South,Residential Homes,Cepen Lodge Care Home,2155.6, 19-Feb-2013
445,Revenue,CCHD,Southmead Hospital Purchasing,Residential Homes,Charlton House Residential Home,1372.96, 19-Feb-2013
446,Revenue,CCHD,Home Care - Elderly - South,Other Small Contracts,Cherish Able Care Limited,3242.44, 06-Feb-2013
447,Revenue,CCHD,Home Care - Elderly - North,Other Small Contracts,Cherish Able Care Limited,234.84, 06-Feb-2013
448,Revenue,CCHD,Home care - Elderly MH - North,Other Small Contracts,Cherish Able Care Limited,57.68, 06-Feb-2013
449,Revenue,CCHD,Home Care - Elderly - South,Other Small Contracts,Cherish Able Care Limited,2937.56, 14-Feb-2013
450,Revenue,CCHD,Home Care - Elderly - North,Other Small Contracts,Cherish Able Care Limited,98.88, 14-Feb-2013
451,Revenue,CCHD,Home care - Elderly MH - North,Other Small Contracts,Cherish Able Care Limited,41.2, 14-Feb-2013
452,Revenue,CCHD,Home Care - Elderly - South,Other Small Contracts,Cherish Able Care Limited,3127.08, 08-Feb-2013
453,Revenue,CCHD,Home Care - Elderly - North,Other Small Contracts,Cherish Able Care Limited,263.68, 08-Feb-2013
454,Revenue,CCHD,Home care - Elderly MH - North,Other Small Contracts,Cherish Able Care Limited,53.56, 08-Feb-2013
455,Revenue,CCHD,Home Care - Elderly - South,Other Small Contracts,Cherish Able Care Limited,3217.72, 15-Feb-2013
456,Revenue,CCHD,Home Care - Elderly - North,Other Small Contracts,Cherish Able Care Limited,255.44, 15-Feb-2013
457,Revenue,CCHD,Home care - Elderly MH - North,Other Small Contracts,Cherish Able Care Limited,57.68, 15-Feb-2013
458,Revenue,CCHD,Home Care - Elderly - South,Other Small Contracts,Cherish Able Care Limited,3118.84, 22-Feb-2013
459,Revenue,CCHD,Home care - Elderly MH - North,Other Small Contracts,Cherish Able Care Limited,53.56, 22-Feb-2013
460,Revenue,CCHD,Bed purchasing -S28A  Under 65 - North,Residential Homes,Chescombe Lodge,8489.04, 19-Feb-2013
461,Revenue,CCHD,Bed Purchasing - Under 65s PWLD - South,Residential Homes,Chosen Court,6846.32, 19-Feb-2013
462,Revenue,CCHD,Bed Purchasing - PWLD S 117 Placements,Residential Homes,Chosen Court,10082.4, 19-Feb-2013
463,Revenue,CCHD,Bed Purchasing - Under 65s PWLD - South,Residential Homes,Chosen Court,5495.84, 19-Feb-2013
464,Revenue,CCHD,Training - Adult Services,Training Expenses,Chris Garnier,650, 18-Feb-2013
465,Revenue,CCHD,Bed purchasing - Under 65s PWLD - North,Residential Homes,Church House,10256, 19-Feb-2013
466,Revenue,CCHD,Bed purchasing - Under 65s PWLD - North,Residential Homes,Church House,5761.36, 19-Feb-2013
467,Revenue,CCHD,Bed Purchasing - Elderly - South,Residential Homes,Cleeve Lodge,1597.04, 19-Feb-2013
468,Revenue,CCHD,Bed Purchasing - Elderly - North,Residential Homes,Cleeve Lodge,1009.44, 19-Feb-2013
469,Revenue,CCHD,Southmead Hospital Purchasing,Residential Homes,Cleeve Lodge,1425.36, 19-Feb-2013
470,Revenue,CCHD,Bed Purchasing - Elderly - South,Residential Homes,Cleeve Lodge,864.29, 19-Feb-2013
471,Revenue,CCHD,Bed Purchasing - Elderly - South,Residential Homes,Cleeve Lodge,1763.2, 19-Feb-2013
472,Revenue,CCHD,Bed Purchasing - Elderly - South,Residential Homes,Cleeve Lodge,1196.46, 19-Feb-2013
473,Revenue,CCHD,Bed Purchasing - Elderly - South,Residential Homes,Cleeve Lodge,1750.68, 19-Feb-2013
474,Revenue,CCHD,Bed Purchasing - Elderly - South,Residential Homes,Cleeve Lodge,1449.08, 19-Feb-2013
475,Revenue,CCHD,Bed Purchasing - Elderly - South,Residential Homes,Cleeve Lodge,2236.96, 19-Feb-2013
476,Revenue,CCHD,Bed Purchasing - Elderly - South,Residential Homes,Cleeve Lodge,1767.96, 19-Feb-2013
477,Revenue,CCHD,Bed Purchasing - Elderly - South,Residential Homes,Cleeve Lodge,1469.84, 19-Feb-2013
478,Revenue,CCHD,Frenchay Hospital Purchasing,Residential Homes,Collingwood Residential Home,1027.68, 19-Feb-2013
479,Revenue,CCHD,Bed Purchasing - Elderly - South,Residential Homes,Collingwood Residential Home,1284.12, 19-Feb-2013
480,Revenue,CCHD,Bed Purchasing - Elderly - South,Residential Homes,Collingwood Residential Home,1417.96, 19-Feb-2013
481,Revenue,CCHD,Bed Purchasing - Elderly - South,Residential Homes,Collingwood Residential Home,1058.6, 19-Feb-2013
482,Revenue,CCHD,Southmead Hospital Purchasing,Residential Homes,Collingwood Residential Home,3354.06, 19-Feb-2013
483,Revenue,CCHD,Bed Purchasing - Elderly - South,Residential Homes,Collingwood Residential Home,1323.64, 19-Feb-2013
484,Revenue,CCHD,Bed Purchasing - Elderly MH - South,Residential Homes,Collingwood Residential Home,1298.4, 19-Feb-2013
485,Revenue,CCHD,Bed Purchasing - Elderly - South,Residential Homes,Collingwood Residential Home,1373.76, 19-Feb-2013
486,Revenue,CCHD,Bed Purchasing - Elderly - South,Residential Homes,Collingwood Residential Home,1245.88, 19-Feb-2013
487,Revenue,CCHD,Bed Purchasing - Elderly - South,Residential Homes,Collingwood Residential Home,1396.72, 19-Feb-2013
488,Revenue,CCHD,Training - Adult Services,Training Expenses,ComputerWorld Training Limited,5500, 13-Feb-2013
489,Revenue,CCHD,Training - Adult Services,Training Expenses,ComputerWorld Training Limited,550, 14-Feb-2013
490,Revenue,CCHD,Bed and Breakfast,Bed & Breakfast,Connolly & Callaghan Limited,441, 05-Feb-2013
491,Revenue,CCHD,Bed and Breakfast,Bed & Breakfast,Connolly & Callaghan Limited,441, 05-Feb-2013
492,Revenue,CCHD,Bed and Breakfast,Bed & Breakfast,Connolly & Callaghan Limited,476, 05-Feb-2013
493,Revenue,CCHD,Bed and Breakfast,Bed & Breakfast,Connolly & Callaghan Limited,546, 11-Feb-2013
494,Revenue,CCHD,Bed and Breakfast,Bed & Breakfast,Connolly & Callaghan Limited,441, 11-Feb-2013
495,Revenue,CCHD,Bed and Breakfast,Bed & Breakfast,Connolly & Callaghan Limited,441, 11-Feb-2013
496,Revenue,CCHD,Bed and Breakfast,Bed & Breakfast,Connolly & Callaghan Limited,476, 11-Feb-2013
497,Revenue,CCHD,Bed and Breakfast,Bed & Breakfast,Connolly & Callaghan Limited,546, 11-Feb-2013
498,Revenue,CCHD,Bed and Breakfast,Bed & Breakfast,Connolly & Callaghan Limited,441, 11-Feb-2013
499,Revenue,CCHD,Bed and Breakfast,Bed & Breakfast,Connolly & Callaghan Limited,441, 11-Feb-2013
500,Revenue,CCHD,Bed and Breakfast,Bed & Breakfast,Connolly & Callaghan Limited,476, 11-Feb-2013
501,Revenue,CCHD,Bed and Breakfast,Bed & Breakfast,Connolly & Callaghan Limited,441, 11-Feb-2013
502,Revenue,CCHD,Bed and Breakfast,Bed & Breakfast,Connolly & Callaghan Limited,546, 11-Feb-2013
503,Revenue,CCHD,Bed and Breakfast,Bed & Breakfast,Connolly & Callaghan Limited,441, 11-Feb-2013
504,Revenue,CCHD,Bed and Breakfast,Bed & Breakfast,Connolly & Callaghan Limited,476, 11-Feb-2013
505,Revenue,CCHD,Bed and Breakfast,Bed & Breakfast,Connolly & Callaghan Limited,441, 11-Feb-2013
506,Revenue,CCHD,Woodleaze,Gas,Corona Energy Retail 3 Limited,1495.11, 05-Feb-2013
507,Revenue,CCHD,Newton House,Gas,Corona Energy Retail 3 Limited,1784.6, 05-Feb-2013
508,Revenue,CCHD,Alexandra Way,Gas,Corona Energy Retail 3 Limited,1949.85, 05-Feb-2013
509,Revenue,CCHD,Woodleaze,Gas,Corona Energy Retail 3 Limited,1454.41, 05-Feb-2013
510,Revenue,CCHD,Alexandra Way,Gas,Corona Energy Retail 3 Limited,2468.49, 05-Feb-2013
511,Revenue,CCHD,Charlton,Gas,Corona Energy Retail 3 Limited,1381.38, 05-Feb-2013
512,Revenue,CCHD,Newton House,Gas,Corona Energy Retail 3 Limited,913.93, 05-Feb-2013
513,Revenue,CCHD,Newton House,Gas,Corona Energy Retail 3 Limited,1558.59, 05-Feb-2013
514,Revenue,CCHD,Bed purchasing -S28A  Under 65 - North,Residential Homes,Cream Ii Ltd  Longrun House,7845.84, 19-Feb-2013
515,Revenue,CCHD,Bed Purchasing - Under 65s PWLD - South,Residential Homes,Cream Ii Ltd  Longrun House,5493.72, 19-Feb-2013
516,Revenue,CCHD,Bed purchasing -S28A  Under 65 - North,Residential Homes,Creedy Court,9074.84, 19-Feb-2013
517,Revenue,CCHD,Bed Purchasing - S28A - Over 65- North,Residential Homes,Creedy Court,7548.92, 19-Feb-2013
518,Revenue,CCHD,Brokerage and Information Service,Grants to Voluntary Bodies,D H I,9210.08, 27-Feb-2013
519,Revenue,CCHD,Bed Purchasing - Under 65s PWLD - South,Residential Homes,Daneswood,10754.88, 19-Feb-2013
520,Revenue,CCHD,Bed purchasing - Under 65s PWLD - North,Residential Homes,Daneswood,8901.24, 19-Feb-2013
521,Revenue,CCHD,Learning Difficulties PSL,Other Supplies & Services,Individual,2016.44, 22-Feb-2013
522,Revenue,CCHD,S28a Day Care,Private & Voluntary Day Care,DCF Premier Workshops Trust,1591, 26-Feb-2013
523,Revenue,CCHD,Purchase of Non-Res Care - KD,Private & Voluntary Day Care,Design 4 Life Ltd,1506.57, 28-Feb-2013
524,Revenue,CCHD,Purchase of Non-Res Care - KD,Private & Voluntary Day Care,Design 4 Life Ltd,1152.9, 27-Feb-2013
525,Revenue,CCHD,Bed Purchasing - Under 65s PWLD - South,Residential Homes,Devon & Cornwall Autistic Community Trus,8588.04, 19-Feb-2013
526,Revenue,CCHD,Bed Purchasing - Under 65s PWLD - South,Residential Homes,Dimensions (Uk),4763.44, 19-Feb-2013
527,Revenue,CCHD,Supported Living - PS,Private & Voluntary Home Care,Dimensions (UK) Ltd,8006.68, 19-Feb-2013
528,Revenue,CCHD,Community Support ACM - North,Other Supplies & Services,Dobbins Industrial Cleaning Limited,460, 28-Feb-2013
529,Revenue,CCHD,Home Care - Elderly - South,Other Small Contracts,DoCare Ltd,3067.68, 06-Feb-2013
530,Revenue,CCHD,Home Care - Elderly - North,Other Small Contracts,DoCare Ltd,5613.3, 06-Feb-2013
531,Revenue,CCHD,Day Care - South,Private & Voluntary Day Care,DoCare Ltd,101.64, 06-Feb-2013
532,Revenue,CCHD,Day Care - North,Private & Voluntary Day Care,DoCare Ltd,235.62, 06-Feb-2013
533,Revenue,CCHD,Home Care - Elderly - South,Other Small Contracts,DoCare Ltd,3391.08, 11-Feb-2013
534,Revenue,CCHD,Home Care - Elderly - North,Other Small Contracts,DoCare Ltd,5317.62, 11-Feb-2013
535,Revenue,CCHD,Day Care - South,Private & Voluntary Day Care,DoCare Ltd,101.64, 11-Feb-2013
536,Revenue,CCHD,Day Care - North,Private & Voluntary Day Care,DoCare Ltd,277.2, 11-Feb-2013
537,Revenue,CCHD,Home Care - Elderly - South,Other Small Contracts,DoCare Ltd,3257.1, 18-Feb-2013
538,Revenue,CCHD,Home Care - Elderly - North,Other Small Contracts,DoCare Ltd,5428.5, 18-Feb-2013
539,Revenue,CCHD,Day Care - South,Private & Voluntary Day Care,DoCare Ltd,115.5, 18-Feb-2013
540,Revenue,CCHD,Day Care - North,Private & Voluntary Day Care,DoCare Ltd,281.82, 18-Feb-2013
541,Revenue,CCHD,Home Care - Elderly - South,Other Small Contracts,DoCare Ltd,3187.8, 25-Feb-2013
542,Revenue,CCHD,Home Care - Elderly - North,Other Small Contracts,DoCare Ltd,5382.3, 25-Feb-2013
543,Revenue,CCHD,Day Care - South,Private & Voluntary Day Care,DoCare Ltd,110.88, 25-Feb-2013
544,Revenue,CCHD,Day Care - North,Private & Voluntary Day Care,DoCare Ltd,221.76, 25-Feb-2013
545,Revenue,CCHD,Bed Purchasing - Elderly - South,Nursing Homes,Dunkirk Memorial House,1158.2, 19-Feb-2013
546,Revenue,CCHD,MH Purchasing - Younger,Residential Homes,Dunraven House,1810.24, 19-Feb-2013
547,Revenue,CCHD,Bed and Breakfast,Bed & Breakfast,E J Bartlett,840, 04-Feb-2013
548,Revenue,CCHD,Bed and Breakfast,Bed & Breakfast,E J Bartlett,420, 04-Feb-2013
549,Revenue,CCHD,Bed and Breakfast,Bed & Breakfast,E J Bartlett,525, 04-Feb-2013
550,Revenue,CCHD,Bed and Breakfast,Bed & Breakfast,E J Bartlett,840, 04-Feb-2013
551,Revenue,CCHD,Bed and Breakfast,Bed & Breakfast,E J Bartlett,900, 06-Feb-2013
552,Revenue,CCHD,Bed and Breakfast,Bed & Breakfast,E J Bartlett,840, 06-Feb-2013
553,Revenue,CCHD,Bed and Breakfast,Bed & Breakfast,E J Bartlett,420, 06-Feb-2013
554,Revenue,CCHD,Bed and Breakfast,Bed & Breakfast,E J Bartlett,525, 06-Feb-2013
555,Revenue,CCHD,Bed and Breakfast,Bed & Breakfast,E J Bartlett,450, 06-Feb-2013
556,Revenue,CCHD,Bed and Breakfast,Bed & Breakfast,E J Bartlett,840, 06-Feb-2013
557,Revenue,CCHD,Bed and Breakfast,Bed & Breakfast,E J Bartlett,630, 14-Feb-2013
558,Revenue,CCHD,Bed and Breakfast,Bed & Breakfast,E J Bartlett,840, 14-Feb-2013
559,Revenue,CCHD,Bed and Breakfast,Bed & Breakfast,E J Bartlett,420, 14-Feb-2013
560,Revenue,CCHD,Bed and Breakfast,Bed & Breakfast,E J Bartlett,525, 14-Feb-2013
561,Revenue,CCHD,Bed and Breakfast,Bed & Breakfast,E J Bartlett,840, 14-Feb-2013
562,Revenue,CCHD,Bed and Breakfast,Bed & Breakfast,E J Bartlett,840, 21-Feb-2013
563,Revenue,CCHD,Bed and Breakfast,Bed & Breakfast,E J Bartlett,960, 21-Feb-2013
564,Revenue,CCHD,Bed and Breakfast,Bed & Breakfast,E J Bartlett,525, 21-Feb-2013
565,Revenue,CCHD,Bed and Breakfast,Bed & Breakfast,E J Bartlett,840, 21-Feb-2013
566,Revenue,CCHD,Bed purchasing - Under 65s PWLD - North,Residential Homes,East Court,2160.8, 19-Feb-2013
567,Revenue,CCHD,Minor Adaptations Service,Operational Equipment,Eastman & Co (Timber) Limited,652.5, 15-Feb-2013
568,Revenue,CCHD,Bed purchasing - Under 65s PWLD - North,Residential Homes,Ebley House,7384.2, 19-Feb-2013
569,Revenue,CCHD,Bed Purchasing - PWLD S 117 Placements,Residential Homes,Eclipse Office Park,5716.52, 19-Feb-2013
570,Revenue,CCHD,Bed Purchasing - Elderly - North,Residential Homes,Edgecumbe Lodge,890, 19-Feb-2013
571,Revenue,CCHD,Southmead Hospital Purchasing,Residential Homes,Edgecumbe Lodge,1239.2, 19-Feb-2013
572,Revenue,CCHD,Bed Purchasing - Elderly - South,Residential Homes,Edgecumbe Lodge,1052.84, 19-Feb-2013
573,Revenue,CCHD,Bed Purchasing - Elderly - South,Residential Homes,Edgecumbe Lodge,1302.52, 19-Feb-2013
574,Revenue,CCHD,Bed Purchasing - Elderly - South,Residential Homes,Edgecumbe Lodge,1229.4, 19-Feb-2013
575,Revenue,CCHD,Bed Purchasing - Elderly - South,Residential Homes,Edgecumbe Lodge,993.76, 19-Feb-2013
576,Revenue,CCHD,Frenchay Hospital Purchasing,Residential Homes,Edgecumbe Lodge,1110.52, 19-Feb-2013
577,Revenue,CCHD,Frenchay Hospital Purchasing,Residential Homes,Edgecumbe Lodge,1056, 19-Feb-2013
578,Revenue,CCHD,Bed Purchasing - Elderly MH - South,Residential Homes,Edgecumbe Lodge,1147.84, 19-Feb-2013
579,Revenue,CCHD,Southmead Hospital Purchasing,Residential Homes,Edgemont House Ltd,1403.2, 19-Feb-2013
580,Revenue,CCHD,Bed Purchasing - Elderly - South,Residential Homes,Edgemont House Ltd,1243.44, 19-Feb-2013
581,Revenue,CCHD,Frenchay Hospital Purchasing,Residential Homes,Edgemont House Ltd,1361.56, 19-Feb-2013
582,Revenue,CCHD,Bed Purchasing - Elderly - South,Residential Homes,Edgemont House Ltd,1403.2, 19-Feb-2013
583,Revenue,CCHD,Bed Purchasing - Elderly - South,Nursing Homes,Edgemont View Nursing Home,1418.52, 19-Feb-2013
584,Revenue,CCHD,Frenchay Hospital Purchasing,Nursing Homes,Edgemont View Nursing Home,1341.28, 19-Feb-2013
585,Revenue,CCHD,Bed Purchasing - Elderly - South,Nursing Homes,Edgemont View Nursing Home,1295.2, 19-Feb-2013
586,Revenue,CCHD,Bed Purchasing - Elderly - South,Nursing Homes,Edgemont View Nursing Home,1602.76, 19-Feb-2013
587,Revenue,CCHD,Supporting People Programme,Grants to Voluntary Bodies,Elim Housing Association Limited,4898.24, 01-Feb-2013
588,Revenue,CCHD,Home Care - Elderly - South,Other Small Contracts,Elite Home Care Ltd,2714.91, 12-Feb-2013
589,Revenue,CCHD,Under 65s -MH  Home Care Purch,Other Small Contracts,Elite Home Care Ltd,77.94, 12-Feb-2013
590,Revenue,CCHD,Home care - Elderly MH - North,Other Small Contracts,Elite Home Care Ltd,363.72, 12-Feb-2013
591,Revenue,CCHD,Home Care - Elderly - South,Other Small Contracts,Elite Home Care Ltd,3018.01, 12-Feb-2013
592,Revenue,CCHD,Home Care - Elderly - North,Other Small Contracts,Elite Home Care Ltd,12.99, 12-Feb-2013
593,Revenue,CCHD,Under 65s -MH  Home Care Purch,Other Small Contracts,Elite Home Care Ltd,86.6, 12-Feb-2013
594,Revenue,CCHD,Home care - Elderly MH - North,Other Small Contracts,Elite Home Care Ltd,363.72, 12-Feb-2013
595,Revenue,CCHD,Home Care - Elderly - South,Other Small Contracts,Elite Home Care Ltd,3321.11, 22-Feb-2013
596,Revenue,CCHD,Under 65s -MH  Home Care Purch,Other Small Contracts,Elite Home Care Ltd,86.6, 22-Feb-2013
597,Revenue,CCHD,Home care - Elderly MH - North,Other Small Contracts,Elite Home Care Ltd,368.05, 22-Feb-2013
598,Revenue,CCHD,Home Care - Elderly - South,Other Small Contracts,Elite Home Care Ltd,3195.54, 20-Feb-2013
599,Revenue,CCHD,Under 65s -MH  Home Care Purch,Other Small Contracts,Elite Home Care Ltd,86.6, 20-Feb-2013
600,Revenue,CCHD,Home care - Elderly MH - North,Other Small Contracts,Elite Home Care Ltd,363.72, 20-Feb-2013
601,Revenue,CCHD,Home Care - Elderly - South,Other Small Contracts,Elite Home Care Ltd,3502.97, 28-Feb-2013
602,Revenue,CCHD,Under 65s -MH  Home Care Purch,Other Small Contracts,Elite Home Care Ltd,86.6, 28-Feb-2013
603,Revenue,CCHD,Home care - Elderly MH - North,Other Small Contracts,Elite Home Care Ltd,363.72, 28-Feb-2013
604,Revenue,CCHD,Bed Purchasing - Elderly - South,Residential Homes,Elmbridge Residential Home Ltd,1309.56, 19-Feb-2013
605,Revenue,CCHD,Frenchay Hospital Purchasing,Nursing Homes,Elmwood Nursing Home,2213.12, 19-Feb-2013
606,Revenue,CCHD,Supporting People Programme,Grants to Voluntary Bodies,English Churches Housing Group,2069, 01-Feb-2013
607,Revenue,CCHD,Younger MH non-res purchasing,Private & Voluntary Day Care,Enham,638.72, 18-Feb-2013
608,Revenue,CCHD,Southmead Hospital Purchasing,Nursing Homes,Epworth House,1327.2, 19-Feb-2013
609,Revenue,CCHD,Home Care - Elderly - South,Other Small Contracts,Everycare (Bristol) Ltd,2650.2, 20-Feb-2013
610,Revenue,CCHD,Home Care - Elderly - North,Other Small Contracts,Everycare (Bristol) Ltd,2515.8, 20-Feb-2013
611,Revenue,CCHD,Home Care - Elderly - South,Other Small Contracts,Everycare (Bristol) Ltd,2646, 06-Feb-2013
612,Revenue,CCHD,Home Care - Elderly - North,Other Small Contracts,Everycare (Bristol) Ltd,1902.6, 06-Feb-2013
613,Revenue,CCHD,Home Care - Elderly - South,Other Small Contracts,Everycare (Bristol) Ltd,2654.4, 14-Feb-2013
614,Revenue,CCHD,Home Care - Elderly - North,Other Small Contracts,Everycare (Bristol) Ltd,2335.2, 14-Feb-2013
615,Revenue,CCHD,Bed Purchasing - Elderly MH - South,Residential Homes,Exmouth House,1382.92, 19-Feb-2013
616,Revenue,CCHD,Bed Purchasing - Elderly - South,Nursing Homes,Fairview Court,1182.44, 19-Feb-2013
617,Revenue,CCHD,Bed purchasing - Elderly MH - North,Nursing Homes,Fairview Court,1604.64, 19-Feb-2013
618,Revenue,CCHD,Bed Purchasing - Elderly MH - South,Nursing Homes,Fairview Court,1770.36, 19-Feb-2013
619,Revenue,CCHD,Bed Purchasing - Elderly MH - South,Residential Homes,Fairview Court,1403.2, 19-Feb-2013
620,Revenue,CCHD,Bed Purchasing - Elderly - South,Residential Homes,Fairview Court,2623.36, 19-Feb-2013
621,Revenue,CCHD,South Glos Users in South Glos Homes,Nursing Homes,Fairview Court,2795.14, 19-Feb-2013
622,Revenue,CCHD,Bed Purchasing - Elderly - South,Residential Homes,Fairview Court,2118.56, 19-Feb-2013
623,Revenue,CCHD,South Glos Users in South Glos Homes,Nursing Homes,Fairview Court,916.19, 19-Feb-2013
624,Revenue,CCHD,Bed Purchasing - Elderly - North,Nursing Homes,Fairview Court,1094.64, 19-Feb-2013
625,Revenue,CCHD,Bed Purchasing - Elderly MH - South,Nursing Homes,Fairview Court,1988.4, 19-Feb-2013
626,Revenue,CCHD,Frenchay Hospital Purchasing,Nursing Homes,Fairview Court Care Home,1491.69, 01-Feb-2013
627,Revenue,CCHD,South Glos Users in South Glos Homes,Nursing Homes,Fairview Court Care Home,3261, 01-Feb-2013
628,Revenue,CCHD,Bed purchasing - Phys Dis - North,Nursing Homes,Fairview Court Care Home,1976.58, 01-Feb-2013
629,Revenue,CCHD,Bed Purchasing - Elderly MH - South,Nursing Homes,Fairview Court Care Home,4727.09, 01-Feb-2013
630,Revenue,CCHD,Bed purchasing - Elderly S117 - South,Nursing Homes,Fairview Court Care Home,2550.03, 01-Feb-2013
631,Revenue,CCHD,Bed Purchasing - Elderly - South,Residential Homes,Fairview House,634.12, 19-Feb-2013
632,Revenue,CCHD,Bed Purchasing - Elderly - South,Residential Homes,Fairview House,1255.24, 19-Feb-2013
633,Revenue,CCHD,Frenchay Hospital Purchasing,Residential Homes,Fairview House,995.44, 19-Feb-2013
634,Revenue,CCHD,Bed Purchasing - Elderly - South,Residential Homes,Fairview House,926.2, 19-Feb-2013
635,Revenue,CCHD,Bed purchasing - Elderly S117 - South,Residential Homes,Fairview House,1870.92, 19-Feb-2013
636,Revenue,CCHD,Southmead Hospital Purchasing,Residential Homes,Fairview House,1021.08, 19-Feb-2013
637,Revenue,CCHD,Southmead Hospital Purchasing,Residential Homes,Fairview House,1111.28, 19-Feb-2013
638,Revenue,CCHD,Frenchay Hospital Purchasing,Residential Homes,Fairview House,13578.53, 19-Feb-2013
639,Revenue,CCHD,Frenchay Hospital Purchasing,Residential Homes,Fairview House,1078.2, 19-Feb-2013
640,Revenue,CCHD,Bed Purchasing - Elderly MH - South,Residential Homes,Fairview House,1097.2, 19-Feb-2013
641,Revenue,CCHD,Frenchay Hospital Purchasing,Residential Homes,Fairview House,1239.2, 19-Feb-2013
642,Revenue,CCHD,Southmead Hospital Purchasing,Residential Homes,Fairview House,1056.12, 19-Feb-2013
643,Revenue,CCHD,Bed Purchasing - Elderly MH - South,Residential Homes,Fairview House,1038.44, 19-Feb-2013
644,Revenue,CCHD,Bed Purchasing - Elderly MH - South,Residential Homes,Fairview House,1198.68, 19-Feb-2013
645,Revenue,CCHD,Frenchay Hospital Purchasing,Residential Homes,Faith House,1302, 19-Feb-2013
646,Revenue,CCHD,Bed purchasing - Under 65s PWLD - North,Residential Homes,Fernbank,8479.4, 19-Feb-2013
647,Revenue,CCHD,Purchase of Non-Res Care - PS,Private & Voluntary Day Care,Firstpoint Homecare Ltd,992.25, 07-Feb-2013
648,Revenue,CCHD,Purchase of Non-Res Care - PS,Private & Voluntary Day Care,Firstpoint Homecare Ltd,1282.82, 01-Feb-2013
649,Revenue,CCHD,Purchase of Non-Res Care - PS,Private & Voluntary Day Care,Firstpoint Homecare Ltd,1273.07, 01-Feb-2013
650,Revenue,CCHD,Purchase of Non-Res Care - PS,Private & Voluntary Day Care,Firstpoint Homecare Ltd,751.95, 07-Feb-2013
651,Revenue,CCHD,Purchase of Non-Res Care - PS,Private & Voluntary Day Care,Firstpoint Homecare Ltd,1273.07, 11-Feb-2013
652,Revenue,CCHD,Purchase of Non-Res Care - PS,Private & Voluntary Day Care,Firstpoint Homecare Ltd,1273.07, 20-Feb-2013
653,Revenue,CCHD,Purchase of Non-Res Care - PS,Private & Voluntary Day Care,Firstpoint Homecare Ltd,1273.07, 22-Feb-2013
654,Revenue,CCHD,Home Care - Elderly - South,Other Small Contracts,Firstpoint Homecare Ltd,1805, 11-Feb-2013
655,Revenue,CCHD,Home Care - Elderly - North,Other Small Contracts,Firstpoint Homecare Ltd,714.4, 11-Feb-2013
656,Revenue,CCHD,Day Care - South,Private & Voluntary Day Care,Firstpoint Homecare Ltd,577.6, 11-Feb-2013
657,Revenue,CCHD,Day Care - North,Private & Voluntary Day Care,Firstpoint Homecare Ltd,304, 11-Feb-2013
658,Revenue,CCHD,Under 65s -MH  Home Care Purch,Other Small Contracts,Firstpoint Homecare Ltd,87.4, 11-Feb-2013
659,Revenue,CCHD,Younger MH non-res purchasing,Private & Voluntary Day Care,Firstpoint Homecare Ltd,68.4, 11-Feb-2013
660,Revenue,CCHD,Home care - Elderly MH - North,Other Small Contracts,Firstpoint Homecare Ltd,197.6, 11-Feb-2013
661,Revenue,CCHD,Elderly MH Day Care North,Private & Voluntary Day Care,Firstpoint Homecare Ltd,45.6, 11-Feb-2013
662,Revenue,CCHD,Home Care - Elderly - South,Other Small Contracts,Firstpoint Homecare Ltd,1938, 22-Feb-2013
663,Revenue,CCHD,Home Care - Elderly - North,Other Small Contracts,Firstpoint Homecare Ltd,714.4, 22-Feb-2013
664,Revenue,CCHD,Day Care - South,Private & Voluntary Day Care,Firstpoint Homecare Ltd,509.2, 22-Feb-2013
665,Revenue,CCHD,Day Care - North,Private & Voluntary Day Care,Firstpoint Homecare Ltd,304, 22-Feb-2013
666,Revenue,CCHD,Under 65s -MH  Home Care Purch,Other Small Contracts,Firstpoint Homecare Ltd,91.2, 22-Feb-2013
667,Revenue,CCHD,Younger MH non-res purchasing,Private & Voluntary Day Care,Firstpoint Homecare Ltd,68.4, 22-Feb-2013
668,Revenue,CCHD,Home care - Elderly MH - North,Other Small Contracts,Firstpoint Homecare Ltd,197.6, 22-Feb-2013
669,Revenue,CCHD,Elderly MH Day Care North,Private & Voluntary Day Care,Firstpoint Homecare Ltd,91.2, 22-Feb-2013
670,Revenue,CCHD,Home Care - Elderly - South,Other Small Contracts,Firstpoint Homecare Ltd,1846.8, 22-Feb-2013
671,Revenue,CCHD,Home Care - Elderly - North,Other Small Contracts,Firstpoint Homecare Ltd,756.2, 22-Feb-2013
672,Revenue,CCHD,Day Care - South,Private & Voluntary Day Care,Firstpoint Homecare Ltd,444.6, 22-Feb-2013
673,Revenue,CCHD,Day Care - North,Private & Voluntary Day Care,Firstpoint Homecare Ltd,239.4, 22-Feb-2013
674,Revenue,CCHD,Under 65s -MH  Home Care Purch,Other Small Contracts,Firstpoint Homecare Ltd,91.2, 22-Feb-2013
675,Revenue,CCHD,Younger MH non-res purchasing,Private & Voluntary Day Care,Firstpoint Homecare Ltd,68.4, 22-Feb-2013
676,Revenue,CCHD,Home care - Elderly MH - North,Other Small Contracts,Firstpoint Homecare Ltd,205.2, 22-Feb-2013
677,Revenue,CCHD,Elderly MH Day Care North,Private & Voluntary Day Care,Firstpoint Homecare Ltd,91.2, 22-Feb-2013
678,Revenue,CCHD,Bed Purchasing - Elderly - South,Nursing Homes,Four Seasons Health Care,921.96, 19-Feb-2013
679,Revenue,CCHD,Bed Purchasing - Elderly - South,Nursing Homes,Four Seasons Health Care,1281.72, 19-Feb-2013
680,Revenue,CCHD,Frenchay Hospital Purchasing,Residential Homes,Four Seasons Health Care,892.12, 19-Feb-2013
681,Revenue,CCHD,Bed Purchasing - Elderly MH - South,Nursing Homes,Four Seasons Health Care,1363.2, 19-Feb-2013
682,Revenue,CCHD,South Glos Users in South Glos Homes,Nursing Homes,Four Seasons Health Care,2127.41, 19-Feb-2013
683,Revenue,CCHD,Frenchay Hospital Purchasing,Nursing Homes,Four Seasons Health Care,1363.2, 19-Feb-2013
684,Revenue,CCHD,Southmead Hospital Purchasing,Nursing Homes,Four Seasons Health Care,1363.2, 19-Feb-2013
685,Revenue,CCHD,Bed purchasing - Elderly MH - North,Residential Homes,Four Seasons Health Care,960.44, 19-Feb-2013
686,Revenue,CCHD,Southmead Hospital Purchasing,Nursing Homes,Four Seasons Health Care,818.68, 19-Feb-2013
687,Revenue,CCHD,Frenchay Hospital Purchasing,Nursing Homes,Four Seasons Health Care,1335.92, 19-Feb-2013
688,Revenue,CCHD,Bed Purchasing - Elderly - South,Nursing Homes,Four Seasons Health Care,1365.04, 19-Feb-2013
689,Revenue,CCHD,Southmead Hospital Purchasing,Nursing Homes,Four Seasons Health Care,1363.2, 19-Feb-2013
690,Revenue,CCHD,Bed Purchasing - Elderly - South,Nursing Homes,Four Seasons Health Care,1201.52, 19-Feb-2013
691,Revenue,CCHD,Bed Purchasing - Elderly - South,Nursing Homes,Four Seasons Health Care,1361.64, 19-Feb-2013
692,Revenue,CCHD,Cash for Change Discharges,Nursing Homes,Four Seasons Health Care,1363.2, 19-Feb-2013
693,Revenue,CCHD,Bed Purchasing - Elderly - South,Nursing Homes,Four Seasons Health Care,1327.2, 19-Feb-2013
694,Revenue,CCHD,Southmead Hospital Purchasing,Nursing Homes,Four Seasons Health Care,1363.2, 19-Feb-2013
695,Revenue,CCHD,Bed Purchasing - Elderly - South,Nursing Homes,Four Seasons Health Care,1260.92, 19-Feb-2013
696,Revenue,CCHD,Southmead Hospital Purchasing,Residential Homes,Four Seasons Health Care,543.56, 19-Feb-2013
697,Revenue,CCHD,Bed Purchasing - Elderly - North,Residential Homes,Four Seasons Health Care,1239.2, 19-Feb-2013
698,Revenue,CCHD,Southmead Hospital Purchasing,Nursing Homes,Four Seasons Health Care,1081, 19-Feb-2013
699,Revenue,CCHD,Bed Purchasing - Elderly - North,Nursing Homes,Four Seasons Health Care,1363.2, 19-Feb-2013
700,Revenue,CCHD,Frenchay Hospital Purchasing,Nursing Homes,Four Seasons Health Care,1235.64, 19-Feb-2013
701,Revenue,CCHD,Southmead Hospital Purchasing,Nursing Homes,Four Seasons Health Care,1269.2, 19-Feb-2013
702,Revenue,CCHD,Bed Purchasing - Elderly - South,Nursing Homes,Four Seasons Health Care,4254.68, 19-Feb-2013
703,Revenue,CCHD,Bed Purchasing - Elderly - South,Nursing Homes,Four Seasons Health Care,1353.76, 19-Feb-2013
704,Revenue,CCHD,Frenchay Hospital Purchasing,Nursing Homes,Four Seasons Health Care,1159.2, 19-Feb-2013
705,Revenue,CCHD,Bed Purchasing - Elderly - South,Nursing Homes,Four Seasons Health Care,1363.2, 19-Feb-2013
706,Revenue,CCHD,Bed Purchasing - Elderly - South,Nursing Homes,Four Seasons Health Care,1308.24, 19-Feb-2013
707,Revenue,CCHD,Bed Purchasing - Elderly MH - South,Nursing Homes,Four Seasons Health Care,1363.2, 19-Feb-2013
708,Revenue,CCHD,Bed Purchasing - Elderly - South,Nursing Homes,Four Seasons Health Care,1067.16, 19-Feb-2013
709,Revenue,CCHD,Bed Purchasing - Elderly - South,Nursing Homes,Four Seasons Health Care,1327.2, 19-Feb-2013
710,Revenue,CCHD,Frenchay Hospital Purchasing,Nursing Homes,Four Seasons Health Care,1071.6, 19-Feb-2013
711,Revenue,CCHD,Bed Purchasing - Elderly MH - South,Residential Homes,Four Seasons Health Care,1084.52, 19-Feb-2013
712,Revenue,CCHD,Bed Purchasing - Elderly - South,Nursing Homes,Four Seasons Health Care,1363.2, 19-Feb-2013
713,Revenue,CCHD,Bed Purchasing - Elderly - South,Nursing Homes,Four Seasons Health Care,1361.8, 19-Feb-2013
714,Revenue,CCHD,Southmead Hospital Purchasing,Nursing Homes,Four Seasons Health Care,947.68, 19-Feb-2013
715,Revenue,CCHD,Bed Purchasing - Elderly MH - South,Nursing Homes,Four Seasons Health Care,1212.44, 19-Feb-2013
716,Revenue,CCHD,Bed purchasing - Elderly MH - North,Nursing Homes,Four Seasons Health Care,780.24, 19-Feb-2013
717,Revenue,CCHD,Bed Purchasing - Elderly - South,Nursing Homes,Four Seasons Health Care,995.44, 19-Feb-2013
718,Revenue,CCHD,Bed Purchasing - Elderly - North,Nursing Homes,Four Seasons Health Care,956.44, 19-Feb-2013
719,Revenue,CCHD,Frenchay Hospital Purchasing,Residential Homes,Four Seasons Health Care,1605.52, 19-Feb-2013
720,Revenue,CCHD,Frenchay Hospital Purchasing,Residential Homes,Four Seasons Health Care,966.95, 19-Feb-2013
721,Revenue,CCHD,Bed Purchasing - Elderly - North,Nursing Homes,Four Seasons Health Care,833.23, 19-Feb-2013
722,Revenue,CCHD,Southmead Hospital Purchasing,Residential Homes,Four Seasons Health Care,1230.28, 19-Feb-2013
723,Revenue,CCHD,Bed Purchasing - Elderly - South,Nursing Homes,Four Seasons Health Care,1535.2, 19-Feb-2013
724,Revenue,CCHD,Frenchay Hospital Purchasing,Nursing Homes,Four Seasons Health Care,1100.52, 19-Feb-2013
725,Revenue,CCHD,Frenchay Hospital Purchasing,Nursing Homes,Four Seasons Health Care,1363.2, 19-Feb-2013
726,Revenue,CCHD,Bed Purchasing - Elderly - South,Residential Homes,Four Seasons Health Care,1112.08, 19-Feb-2013
727,Revenue,CCHD,Frenchay Hospital Purchasing,Nursing Homes,Four Seasons Health Care,1535.2, 19-Feb-2013
728,Revenue,CCHD,Bed Purchasing - Elderly - North,Nursing Homes,Four Seasons Health Care,1363.2, 19-Feb-2013
729,Revenue,CCHD,Southmead Hospital Purchasing,Nursing Homes,Four Seasons Health Care,1363.2, 19-Feb-2013
730,Revenue,CCHD,Bed Purchasing - Elderly - North,Nursing Homes,Four Seasons Health Care,1363.2, 19-Feb-2013
731,Revenue,CCHD,Bed Purchasing - Elderly - North,Nursing Homes,Four Seasons Health Care,1287.44, 19-Feb-2013
732,Revenue,CCHD,Bed purchasing - Elderly MH - North,Nursing Homes,Four Seasons Health Care,1457.48, 19-Feb-2013
733,Revenue,CCHD,Bed Purchasing - Elderly - North,Nursing Homes,Four Seasons Health Care,1264.2, 19-Feb-2013
734,Revenue,CCHD,Bed Purchasing - Elderly - North,Nursing Homes,Four Seasons Health Care,1096.56, 19-Feb-2013
735,Revenue,CCHD,Southmead Hospital Purchasing,Nursing Homes,Four Seasons Health Care,1356.56, 19-Feb-2013
736,Revenue,CCHD,Frenchay Hospital Purchasing,Residential Homes,Four Seasons Health Care,6405.4, 19-Feb-2013
737,Revenue,CCHD,Frenchay Hospital Purchasing,Residential Homes,Four Seasons Health Care,679.36, 19-Feb-2013
738,Revenue,CCHD,Frenchay Hospital Purchasing,Nursing Homes,Four Seasons Health Care,1284.4, 19-Feb-2013
739,Revenue,CCHD,Frenchay Hospital Purchasing,Nursing Homes,Four Seasons Health Care,1343.4, 19-Feb-2013
740,Revenue,CCHD,Bed Purchasing - Elderly - North,Nursing Homes,Four Seasons Health Care,1027.36, 19-Feb-2013
741,Revenue,CCHD,Bed Purchasing - Elderly - North,Residential Homes,Four Seasons Health Care,670.04, 19-Feb-2013
742,Revenue,CCHD,Frenchay Hospital Purchasing,Nursing Homes,Four Seasons Health Care,1522.72, 19-Feb-2013
743,Revenue,CCHD,Bed purchasing - Elderly MH - North,Residential Homes,Four Seasons Health Care,1306.04, 19-Feb-2013
744,Revenue,CCHD,Bed Purchasing - Elderly - North,Nursing Homes,Four Seasons Health Care,1499.2, 19-Feb-2013
745,Revenue,CCHD,Southmead Hospital Purchasing,Nursing Homes,Four Seasons Health Care,578.56, 19-Feb-2013
746,Revenue,CCHD,Bed Purchasing - Elderly - North,Nursing Homes,Four Seasons Health Care,1363.2, 19-Feb-2013
747,Revenue,CCHD,Bed Purchasing - Elderly - North,Nursing Homes,Four Seasons Health Care,1431.8, 19-Feb-2013
748,Revenue,CCHD,Southmead Hospital Purchasing,Residential Homes,Four Seasons Health Care,705.16, 19-Feb-2013
749,Revenue,CCHD,Southmead Hospital Purchasing,Nursing Homes,Four Seasons Health Care,1442.32, 19-Feb-2013
750,Revenue,CCHD,Frenchay Hospital Purchasing,Nursing Homes,Four Seasons Health Care,1211.32, 19-Feb-2013
751,Revenue,CCHD,Southmead Hospital Purchasing,Nursing Homes,Four Seasons Health Care,1535.2, 19-Feb-2013
752,Revenue,CCHD,Bed Purchasing - Elderly - North,Nursing Homes,Four Seasons Health Care,1519.32, 19-Feb-2013
753,Revenue,CCHD,Bed Purchasing - Elderly - North,Nursing Homes,Four Seasons Health Care,1437.14, 19-Feb-2013
754,Revenue,CCHD,Bed Purchasing - Elderly - North,Nursing Homes,Four Seasons Health Care,1535.2, 19-Feb-2013
755,Revenue,CCHD,Bed purchasing - Elderly MH - North,Residential Homes,Four Seasons Health Care,1197.16, 19-Feb-2013
756,Revenue,CCHD,Bed Purchasing - Elderly - North,Nursing Homes,Four Seasons Health Care,1940.14, 19-Feb-2013
757,Revenue,CCHD,Southmead Hospital Purchasing,Residential Homes,Four Seasons Health Care,1239.2, 19-Feb-2013
758,Revenue,CCHD,Bed purchasing - Elderly MH - North,Residential Homes,Four Seasons Health Care,1366.04, 19-Feb-2013
759,Revenue,CCHD,Bed Purchasing - Elderly - North,Nursing Homes,Four Seasons Health Care,1346.6, 19-Feb-2013
760,Revenue,CCHD,Southmead Hospital Purchasing,Nursing Homes,Four Seasons Health Care,1207.08, 19-Feb-2013
761,Revenue,CCHD,Bed purchasing - Elderly MH - North,Nursing Homes,Four Seasons Health Care,1025.24, 19-Feb-2013
762,Revenue,CCHD,Bed Purchasing - Elderly - North,Nursing Homes,Four Seasons Health Care,1363.2, 19-Feb-2013
763,Revenue,CCHD,Bed Purchasing - Elderly - North,Residential Homes,Four Seasons Health Care,1263.2, 19-Feb-2013
764,Revenue,CCHD,Bed Purchasing - Elderly - North,Residential Homes,Four Seasons Health Care,6513.85, 19-Feb-2013
765,Revenue,CCHD,Bed Purchasing - Elderly - North,Nursing Homes,Four Seasons Health Care,2164.73, 19-Feb-2013
766,Revenue,CCHD,Bed Purchasing - Elderly - North,Residential Homes,Four Seasons Health Care,1023.76, 19-Feb-2013
767,Revenue,CCHD,Frenchay Hospital Purchasing,Residential Homes,Four Seasons Health Care,1239.2, 19-Feb-2013
768,Revenue,CCHD,Frenchay Hospital Purchasing,Nursing Homes,Four Seasons Health Care,1204.44, 19-Feb-2013
769,Revenue,CCHD,South Glos Users in South Glos Homes,Nursing Homes,Four Seasons Health Care,931.71, 19-Feb-2013
770,Revenue,CCHD,Frenchay Hospital Purchasing,Nursing Homes,Four Seasons Health Care,1363.2, 19-Feb-2013
771,Revenue,CCHD,Frenchay Hospital Purchasing,Nursing Homes,Four Seasons Health Care,1363.2, 19-Feb-2013
772,Revenue,CCHD,Bed Purchasing - Elderly - North,Nursing Homes,Four Seasons Health Care,1023.36, 19-Feb-2013
773,Revenue,CCHD,South Glos Users in South Glos Homes,Nursing Homes,Four Seasons Health Care,916.19, 19-Feb-2013
774,Revenue,CCHD,Bed Purchasing - Elderly - North,Nursing Homes,Four Seasons Health Care,5014.63, 19-Feb-2013
775,Revenue,CCHD,Bed Purchasing - Elderly - North,Nursing Homes,Four Seasons Health Care,1363.2, 19-Feb-2013
776,Revenue,CCHD,Frenchay Hospital Purchasing,Nursing Homes,Four Seasons Health Care,1363.2, 19-Feb-2013
777,Revenue,CCHD,Frenchay Hospital Purchasing,Nursing Homes,Four Seasons Health Care,1363.2, 19-Feb-2013
778,Revenue,CCHD,Southmead Hospital Purchasing,Nursing Homes,Four Seasons Health Care,605.72, 19-Feb-2013
779,Revenue,CCHD,Bed Purchasing - Elderly - North,Nursing Homes,Four Seasons Health Care,1070.48, 19-Feb-2013
780,Revenue,CCHD,Frenchay Hospital Purchasing,Nursing Homes,Four Seasons Health Care,1363.2, 19-Feb-2013
781,Revenue,CCHD,Southmead Hospital Purchasing,Nursing Homes,Four Seasons Health Care,758.2, 19-Feb-2013
782,Revenue,CCHD,Frenchay Hospital Purchasing,Nursing Homes,Four Seasons Health Care,1363.2, 19-Feb-2013
783,Revenue,CCHD,Frenchay Hospital Purchasing,Nursing Homes,Four Seasons Health Care,1379.2, 19-Feb-2013
784,Revenue,CCHD,Bed Purchasing - Elderly - South,Nursing Homes,Four Seasons Health Care,1060.72, 19-Feb-2013
785,Revenue,CCHD,Southmead Hospital Purchasing,Nursing Homes,Four Seasons Health Care,1286.4, 19-Feb-2013
786,Revenue,CCHD,Southmead Hospital Purchasing,Residential Homes,Four Seasons Health Care,1118.04, 19-Feb-2013
787,Revenue,CCHD,Southmead Hospital Purchasing,Nursing Homes,Four Seasons Health Care,1363.2, 19-Feb-2013
788,Revenue,CCHD,Frenchay Hospital Purchasing,Nursing Homes,Four Seasons Health Care,1359.2, 19-Feb-2013
789,Revenue,CCHD,Frenchay Hospital Purchasing,Nursing Homes,Four Seasons Health Care,1329.52, 19-Feb-2013
790,Revenue,CCHD,Southmead Hospital Purchasing,Nursing Homes,Four Seasons Health Care,1336.84, 19-Feb-2013
791,Revenue,CCHD,Bed Purchasing - Elderly - North,Residential Homes,Four Seasons Health Care,10368.88, 19-Feb-2013
792,Revenue,CCHD,Bed purchasing - Phys Dis - North,Nursing Homes,Four Seasons Health Care,1367.76, 19-Feb-2013
793,Revenue,CCHD,Bed Purchasing - Elderly - South,Residential Homes,Four Seasons Health Care,5644, 19-Feb-2013
794,Revenue,CCHD,Frenchay Hospital Purchasing,Nursing Homes,Four Seasons Health Care,1363.2, 19-Feb-2013
795,Revenue,CCHD,Southmead Hospital Purchasing,Nursing Homes,Four Seasons Health Care,1292.36, 19-Feb-2013
796,Revenue,CCHD,Bed purchasing - Elderly MH - North,Residential Homes,Four Seasons Health Care,1396.2, 19-Feb-2013
797,Revenue,CCHD,Southmead Hospital Purchasing,Residential Homes,Four Seasons Health Care,1163.68, 19-Feb-2013
798,Revenue,CCHD,Bed Purchasing - Elderly - South,Residential Homes,Four Seasons Health Care,1336, 19-Feb-2013
799,Revenue,CCHD,Bed Purchasing - Elderly - South,Residential Homes,Four Seasons Health Care,911.52, 19-Feb-2013
800,Revenue,CCHD,Bed Purchasing - Elderly - North,Residential Homes,Four Seasons Health Care,3924.8, 19-Feb-2013
801,Revenue,CCHD,Bed Purchasing - Elderly - North,Residential Homes,Four Seasons Health Care,1427.2, 19-Feb-2013
802,Revenue,CCHD,Frenchay Hospital Purchasing,Nursing Homes,Four Seasons Health Care,1225.56, 19-Feb-2013
803,Revenue,CCHD,Southmead Hospital Purchasing,Nursing Homes,Four Seasons Health Care,1840, 19-Feb-2013
804,Revenue,CCHD,Southmead Hospital Purchasing,Nursing Homes,Four Seasons Health Care,1840, 19-Feb-2013
805,Revenue,CCHD,Southmead Hospital Purchasing,Nursing Homes,Four Seasons Health Care,657.14, 19-Feb-2013
806,Revenue,CCHD,Bed purchasing - Elderly PWLD - South,Residential Homes,Four Seasons Health Care,1239.2, 19-Feb-2013
807,Revenue,CCHD,Frenchay Hospital Purchasing,Nursing Homes,Four Seasons Health Care,1363.2, 19-Feb-2013
808,Revenue,CCHD,Southmead Hospital Purchasing,Nursing Homes,Four Seasons Health Care,1103.76, 19-Feb-2013
809,Revenue,CCHD,Bed Purchasing - Elderly - South,Nursing Homes,Four Seasons Health Care,1286.52, 19-Feb-2013
810,Revenue,CCHD,Bed Purchasing - Elderly - North,Residential Homes,Four Seasons Health Care,1171.16, 19-Feb-2013
811,Revenue,CCHD,Southmead Hospital Purchasing,Nursing Homes,Four Seasons Health Care,1138.92, 19-Feb-2013
812,Revenue,CCHD,South Glos Users in South Glos Homes,Nursing Homes,Four Seasons Health Care,1024.89, 19-Feb-2013
813,Revenue,CCHD,Bed Purchasing - Elderly - South,Residential Homes,Four Seasons Health Care,865.28, 19-Feb-2013
814,Revenue,CCHD,Southmead Hospital Purchasing,Residential Homes,Four Seasons Health Care,1386, 19-Feb-2013
815,Revenue,CCHD,Southmead Hospital Purchasing,Residential Homes,Four Seasons Health Care,1441.28, 19-Feb-2013
816,Revenue,CCHD,South Glos Users in South Glos Homes,Nursing Homes,Four Seasons Health Care,1133.59, 19-Feb-2013
817,Revenue,CCHD,Frenchay Hospital Purchasing,Nursing Homes,Four Seasons Health Care,769.44, 19-Feb-2013
818,Revenue,CCHD,Bed Purchasing - Elderly - South,Nursing Homes,Four Seasons Health Care,947.2, 19-Feb-2013
819,Revenue,CCHD,Bed Purchasing - Elderly - South,Residential Homes,Four Seasons Health Care,1084.8, 19-Feb-2013
820,Revenue,CCHD,Bed purchasing - Elderly S117 - South,Nursing Homes,Four Seasons Health Care,1840, 19-Feb-2013
821,Revenue,CCHD,Frenchay Hospital Purchasing,Residential Homes,Four Seasons Health Care,1102.84, 19-Feb-2013
822,Revenue,CCHD,Southmead Hospital Purchasing,Residential Homes,Four Seasons Health Care,1323.96, 19-Feb-2013
823,Revenue,CCHD,Bed Purchasing - Elderly MH - South,Residential Homes,Four Seasons Health Care,936.64, 19-Feb-2013
824,Revenue,CCHD,Bed Purchasing - Elderly - North,Residential Homes,Four Seasons Health Care,2478.4, 19-Feb-2013
825,Revenue,CCHD,Southmead Hospital Purchasing,Nursing Homes,Four Seasons Health Care,1363.2, 19-Feb-2013
826,Revenue,CCHD,Frenchay Hospital Purchasing,Nursing Homes,Four Seasons Health Care,1109.56, 19-Feb-2013
827,Revenue,CCHD,Bed Purchasing - Elderly - South,Nursing Homes,Four Seasons Health Care,2562.86, 19-Feb-2013
828,Revenue,CCHD,Frenchay Hospital Purchasing,Nursing Homes,Four Seasons Health Care,1031.56, 19-Feb-2013
829,Revenue,CCHD,Frenchay Hospital Purchasing,Nursing Homes,Four Seasons Health Care,1063.96, 19-Feb-2013
830,Revenue,CCHD,Southmead Hospital Purchasing,Nursing Homes,Four Seasons Health Care,991.8, 19-Feb-2013
831,Revenue,CCHD,Southmead Hospital Purchasing,Nursing Homes,Four Seasons Health Care,871.84, 19-Feb-2013
832,Revenue,CCHD,Southmead Hospital Purchasing,Residential Homes,Four Seasons Health Care,1239.2, 19-Feb-2013
833,Revenue,CCHD,Frenchay Hospital Purchasing,Residential Homes,Four Seasons Health Care,1232.16, 19-Feb-2013
834,Revenue,CCHD,Bed Purchasing - Elderly - North,Nursing Homes,Four Seasons Health Care,1263.48, 19-Feb-2013
835,Revenue,CCHD,Bed Purchasing - Elderly - South,Nursing Homes,Four Seasons Health Care,1171.6, 19-Feb-2013
836,Revenue,CCHD,Bed Purchasing - Elderly S117- North,Residential Homes,Four Seasons Health Care,2011.04, 19-Feb-2013
837,Revenue,CCHD,Frenchay Hospital Purchasing,Residential Homes,Four Seasons Health Care,1515.84, 19-Feb-2013
838,Revenue,CCHD,Bed purchasing - Phys Dis - North,Nursing Homes,Four Seasons Health Care,845.76, 19-Feb-2013
839,Revenue,CCHD,Home Care - Elderly - South,Other Small Contracts,Freedom Social Care Recruitment,975.65, 08-Feb-2013
840,Revenue,CCHD,Home Care - Elderly - North,Other Small Contracts,Freedom Social Care Recruitment,2418.11, 08-Feb-2013
841,Revenue,CCHD,Home care - Elderly MH - North,Other Small Contracts,Freedom Social Care Recruitment,15.8, 08-Feb-2013
842,Revenue,CCHD,Home Care - Elderly - South,Other Small Contracts,Freedom Social Care Recruitment,1027, 08-Feb-2013
843,Revenue,CCHD,Home Care - Elderly - North,Other Small Contracts,Freedom Social Care Recruitment,2449.71, 08-Feb-2013
844,Revenue,CCHD,Home care - Elderly MH - North,Other Small Contracts,Freedom Social Care Recruitment,15.8, 08-Feb-2013
845,Revenue,CCHD,Home Care - Elderly - South,Other Small Contracts,Freedom Social Care Recruitment,1019.1, 28-Feb-2013
846,Revenue,CCHD,Home Care - Elderly - North,Other Small Contracts,Freedom Social Care Recruitment,2414.16, 28-Feb-2013
847,Revenue,CCHD,Home care - Elderly MH - North,Other Small Contracts,Freedom Social Care Recruitment,15.8, 28-Feb-2013
848,Revenue,CCHD,Home Care - Elderly - South,Other Small Contracts,Freedom Social Care Recruitment,1019.1, 14-Feb-2013
849,Revenue,CCHD,Home Care - Elderly - North,Other Small Contracts,Freedom Social Care Recruitment,2618.58, 14-Feb-2013
850,Revenue,CCHD,Home care - Elderly MH - North,Other Small Contracts,Freedom Social Care Recruitment,15.79, 14-Feb-2013
851,Revenue,CCHD,Home Care - Elderly - South,Other Small Contracts,Freedom Social Care Recruitment,900.6, 14-Feb-2013
852,Revenue,CCHD,Home Care - Elderly - North,Other Small Contracts,Freedom Social Care Recruitment,2576.11, 14-Feb-2013
853,Revenue,CCHD,Home care - Elderly MH - North,Other Small Contracts,Freedom Social Care Recruitment,15.8, 14-Feb-2013
854,Revenue,CCHD,Home Care - Elderly - South,Other Small Contracts,Freedom Social Care Recruitment,1023.05, 14-Feb-2013
855,Revenue,CCHD,Home Care - Elderly - North,Other Small Contracts,Freedom Social Care Recruitment,2647.21, 14-Feb-2013
856,Revenue,CCHD,Home care - Elderly MH - North,Other Small Contracts,Freedom Social Care Recruitment,15.8, 14-Feb-2013
857,Revenue,CCHD,Home Care - Elderly - South,Other Small Contracts,Freedom Social Care Recruitment,699.15, 28-Feb-2013
858,Revenue,CCHD,Home Care - Elderly - North,Other Small Contracts,Freedom Social Care Recruitment,2386.51, 28-Feb-2013
859,Revenue,CCHD,Home care - Elderly MH - North,Other Small Contracts,Freedom Social Care Recruitment,7.9, 28-Feb-2013
860,Revenue,CCHD,Freeways,Residential Homes,Freeways Trust Limited,44356.49, 12-Feb-2013
861,Revenue,CCHD,Purchase of Non-Res Care - KD,Private & Voluntary Day Care,Freeways Trust Limited,631.32, 04-Feb-2013
862,Revenue,CCHD,Purchase of Non-Res Care - KD,Private & Voluntary Day Care,Freeways Trust Limited,631.32, 01-Feb-2013
863,Revenue,CCHD,Purchase of Non-Res Care - KD,Private & Voluntary Day Care,Freeways Trust Limited,631.32, 04-Feb-2013
864,Revenue,CCHD,Purchase of Non-Res Care - KD,Private & Voluntary Day Care,Freeways Trust Limited,631.32, 04-Feb-2013
865,Revenue,CCHD,Purchase of Non-Res Care - KD,Private & Voluntary Day Care,Freeways Trust Limited,631.32, 04-Feb-2013
866,Revenue,CCHD,Supported Living - PS,Private & Voluntary Home Care,Freeways Trust Limited,1023.58, 04-Feb-2013
867,Revenue,CCHD,Purchase of Non-Res Care - KD,Private & Voluntary Day Care,Freeways Trust Limited,631.32, 14-Feb-2013
868,Revenue,CCHD,Bed purchasing - Under 65s PWLD - North,Residential Homes,Freeways Trust Ltd,2791.88, 19-Feb-2013
869,Revenue,CCHD,Bed purchasing - S28A Under 65 - South,Residential Homes,Freeways Trust Ltd,2876.4, 19-Feb-2013
870,Revenue,CCHD,Bed purchasing - Under 65s PWLD - North,Residential Homes,Freeways Trust Ltd,2657.64, 19-Feb-2013
871,Revenue,CCHD,Bed purchasing - Under 65s PWLD - North,Residential Homes,Freeways Trust Ltd,2232.52, 19-Feb-2013
872,Revenue,CCHD,Bed purchasing - Under 65s PWLD - North,Residential Homes,Freeways Trust Ltd,2666.28, 19-Feb-2013
873,Revenue,CCHD,Bed Purchasing - Under 65s PWLD - South,Residential Homes,Freeways Trust Ltd,3259.12, 19-Feb-2013
874,Revenue,CCHD,Bed purchasing - Elderly PWLD - North,Residential Homes,Freeways Trust Ltd,2219.24, 19-Feb-2013
875,Revenue,CCHD,Bed Purchasing - Under 65s PWLD - South,Residential Homes,Freeways Trust Ltd,2364.28, 19-Feb-2013
876,Revenue,CCHD,Bed purchasing - Under 65s PWLD - North,Residential Homes,Freeways Trust Ltd,2666.28, 19-Feb-2013
877,Revenue,CCHD,Bed purchasing - Elderly PWLD - North,Residential Homes,Freeways Trust Ltd,2492.24, 19-Feb-2013
878,Revenue,CCHD,Section 117 Placements MH Younger,Residential Homes,Freeways Trust Ltd,3292.4, 19-Feb-2013
879,Revenue,CCHD,Bed Purchasing - Under 65s PWLD - South,Residential Homes,Freeways Trust Ltd,6060.6, 19-Feb-2013
880,Revenue,CCHD,Bed Purchasing - Under 65s PWLD - South,Residential Homes,Glasallt Fawr,4505.4, 19-Feb-2013
881,Revenue,CCHD,Bed Purchasing - Elderly - North,Nursing Homes,Glebe House Nursing Home,1381.88, 19-Feb-2013
882,Revenue,CCHD,Bed purchasing - Elderly MH - North,Residential Homes,Glebe House Nursing Home,782.8, 19-Feb-2013
883,Revenue,CCHD,Bed Purchasing - Elderly - South,Nursing Homes,Glebe House Nursing Home,766.3, 19-Feb-2013
884,Revenue,CCHD,South Glos Users in South Glos Homes,Nursing Homes,Glebe House Nursing Home,1350.99, 19-Feb-2013
885,Revenue,CCHD,South Glos Users in South Glos Homes,Nursing Homes,Glebe House Nursing Home,1288.87, 19-Feb-2013
886,Revenue,CCHD,Bed Purchasing - Elderly - South,Residential Homes,Glebe House Nursing Home,1963.52, 19-Feb-2013
887,Revenue,CCHD,Southmead Hospital Purchasing,Nursing Homes,Glebe House Nursing Home,1295.2, 19-Feb-2013
888,Revenue,CCHD,Bed Purchasing - Elderly - North,Residential Homes,Glebe House Nursing Home,2529.76, 19-Feb-2013
889,Revenue,CCHD,Bed Purchasing - Under 65s PWLD - South,Residential Homes,Gordena Care Home,2063.36, 19-Feb-2013
890,Revenue,CCHD,Bed purchasing - Elderly PWLD - South,Residential Homes,Gordena Care Home,4691.96, 19-Feb-2013
891,Revenue,CCHD,Bed purchasing - Elderly PWLD - South,Residential Homes,Gordena Care Home,2904.2, 19-Feb-2013
892,Revenue,CCHD,Bed Purchasing - Under 65s PWLD - South,Residential Homes,Gordena Care Home,1894.04, 19-Feb-2013
893,Revenue,CCHD,Bed Purchasing - Under 65s PWLD - South,Residential Homes,Gordena Care Limited,4119.84, 19-Feb-2013
894,Revenue,CCHD,Bed purchasing - S28A Under 65 - South,Residential Homes,Gordena Care Limited,4018.24, 19-Feb-2013
895,Revenue,CCHD,Bed purchasing - Under 65s PWLD - North,Residential Homes,Gordena Care Limited,3762.44, 19-Feb-2013
896,Revenue,CCHD,Bed Purchasing - Elderly - North,Residential Homes,Greensleeves,2611.12, 19-Feb-2013
897,Revenue,CCHD,Bed Purchasing - Elderly - South,Residential Homes,Gwendoline House,1480.12, 19-Feb-2013
898,Revenue,CCHD,Bed Purchasing - Elderly - South,Residential Homes,Gwendoline House,1158.88, 19-Feb-2013
899,Revenue,CCHD,Bed Purchasing - Elderly MH - South,Residential Homes,Gwendoline House,1263.36, 19-Feb-2013
900,Revenue,CCHD,Southmead Hospital Purchasing,Residential Homes,Gwendoline House,1675.2, 19-Feb-2013
901,Revenue,CCHD,Bed Purchasing - Elderly - South,Residential Homes,Gwendoline House,1123.12, 19-Feb-2013
902,Revenue,CCHD,Bed Purchasing - Elderly - South,Residential Homes,Gwendoline House,1558.44, 19-Feb-2013
903,Revenue,CCHD,Supporting People Programme,Grants to Voluntary Bodies,Habinteg Housing Association,1326, 01-Feb-2013
904,Revenue,CCHD,Bed Purchasing - Elderly - South,Residential Homes,Harefield Hall,1317.48, 19-Feb-2013
905,Revenue,CCHD,Bed Purchasing - Elderly - South,Residential Homes,Harefield Hall,1115.96, 19-Feb-2013
906,Revenue,CCHD,Bed Purchasing - Elderly - South,Residential Homes,Harefield Hall,1766.16, 19-Feb-2013
907,Revenue,CCHD,Bed Purchasing - Elderly MH - South,Residential Homes,Harefield Hall,1091.48, 19-Feb-2013
908,Revenue,CCHD,Newton House,Equipment Maintenance,Harvey Servicing & Engineering Limited,500.5, 28-Feb-2013
909,Revenue,CCHD,Southmead Hospital Purchasing,Nursing Homes,Haven Lodge,1371.08, 19-Feb-2013
910,Revenue,CCHD,Southmead Hospital Purchasing,Nursing Homes,Hc-One Ltd,1602.76, 19-Feb-2013
911,Revenue,CCHD,Bed Purchasing - Elderly - North,Nursing Homes,Hc-One Ltd,6666.3, 19-Feb-2013
912,Revenue,CCHD,Bed Purchasing - Elderly - North,Nursing Homes,Hc-One Ltd,1481.4, 19-Feb-2013
913,Revenue,CCHD,Bed Purchasing - Elderly - North,Nursing Homes,Hc-One Ltd,972.84, 19-Feb-2013
914,Revenue,CCHD,Bed purchasing - Elderly PWLD - South,Nursing Homes,Hc-One Ltd,1916.2, 19-Feb-2013
915,Revenue,CCHD,Bed purchasing - Elderly MH - North,Nursing Homes,Hc-One Ltd,1467.2, 19-Feb-2013
916,Revenue,CCHD,Bed purchasing - Elderly MH - North,Nursing Homes,Hc-One Ltd,1209.16, 19-Feb-2013
917,Revenue,CCHD,Frenchay Hospital Purchasing,Nursing Homes,Hc-One Ltd,1460.24, 19-Feb-2013
918,Revenue,CCHD,Frenchay Hospital Purchasing,Nursing Homes,Hc-One Ltd,1043.02, 19-Feb-2013
919,Revenue,CCHD,Bed purchasing - Elderly MH - North,Nursing Homes,Hc-One Ltd,1467.2, 19-Feb-2013
920,Revenue,CCHD,Bed purchasing - Elderly MH - North,Nursing Homes,Hc-One Ltd,1156.84, 19-Feb-2013
921,Revenue,CCHD,Frenchay Hospital Purchasing,Nursing Homes,Hc-One Ltd,1467.2, 19-Feb-2013
922,Revenue,CCHD,Bed Purchasing - Elderly S117- North,Nursing Homes,Hc-One Ltd,1929.2, 19-Feb-2013
923,Revenue,CCHD,Frenchay Hospital Purchasing,Nursing Homes,Hc-One Ltd,1563.6, 19-Feb-2013
924,Revenue,CCHD,Frenchay Hospital Purchasing,Nursing Homes,Hc-One Ltd,1412.28, 19-Feb-2013
925,Revenue,CCHD,Frenchay Hospital Purchasing,Residential Homes,Hc-One Ltd,1479.76, 19-Feb-2013
926,Revenue,CCHD,Frenchay Hospital Purchasing,Nursing Homes,Hc-One Ltd,1175.76, 19-Feb-2013
927,Revenue,CCHD,Supported Living - PS,Private & Voluntary Home Care,HFT,3722.08, 22-Feb-2013
928,Revenue,CCHD,Southmead Hospital Purchasing,Residential Homes,Highgate Studios,1167.44, 19-Feb-2013
929,Revenue,CCHD,Bed purchasing - Under 65s PWLD - North,Residential Homes,Holmleigh Care Homes Ltd,3962.92, 19-Feb-2013
930,Revenue,CCHD,Bed Purchasing - Under 65s PWLD - South,Residential Homes,Holmleigh Care Homes Ltd,4980.72, 19-Feb-2013
931,Revenue,CCHD,Southmead Hospital Purchasing,Nursing Homes,Holmwood House,1257.68, 19-Feb-2013
932,Revenue,CCHD,South Glos Users in South Glos Homes,Nursing Homes,Holmwood House,854.07, 19-Feb-2013
933,Revenue,CCHD,Southmead Hospital Purchasing,Nursing Homes,Holmwood House,1295.2, 19-Feb-2013
934,Revenue,CCHD,Bed purchasing - Under 65s PWLD - North,Residential Homes,Home Farm Trust Ltd  5-6 Brook Office Pa,2784.12, 19-Feb-2013
935,Revenue,CCHD,Bed purchasing - Elderly PWLD - South,Residential Homes,Home Farm Trust Ltd  5-6 Brook Office Pa,4285, 19-Feb-2013
936,Revenue,CCHD,Bed purchasing - Under 65s PWLD - North,Residential Homes,Home Farm Trust Ltd  5-6 Brook Office Pa,3367.08, 19-Feb-2013
937,Revenue,CCHD,Bed Purchasing - Under 65s PWLD - South,Residential Homes,Home Farm Trust Ltd  5-6 Brook Office Pa,4463, 19-Feb-2013
938,Revenue,CCHD,Bed purchasing - Under 65s PWLD - North,Residential Homes,Home From Home Care Ltd,8775.16, 19-Feb-2013
939,Revenue,CCHD,Bed purchasing - Under 65s PWLD - North,Residential Homes,Homes Caring For Autism Ltd  Churchill H,9662.72, 19-Feb-2013
940,Revenue,CCHD,Bed Purchasing - Under 65s PWLD - South,Residential Homes,Homes Caring For Autism Ltd  Churchill H,12596.88, 19-Feb-2013
941,Revenue,CCHD,Bed Purchasing - Elderly - South,Nursing Homes,Horfield Care Limited,4043.95, 08-Feb-2013
942,Revenue,CCHD,Bed Purchasing - Elderly - North,Nursing Homes,Horfield Care Limited,3279.93, 08-Feb-2013
943,Revenue,CCHD,Frenchay Hospital Purchasing,Nursing Homes,Horfield Care Limited,3536.35, 08-Feb-2013
944,Revenue,CCHD,Southmead Hospital Purchasing,Nursing Homes,Horfield Care Limited,7836.76, 08-Feb-2013
945,Revenue,CCHD,Home Care - Elderly - North,Private & Voluntary Home Care,Housing 21,37028.34, 08-Feb-2013
946,Revenue,CCHD,Supporting People Programme,Grants to Voluntary Bodies,Housing 21,912.61, 01-Feb-2013
947,Revenue,CCHD,Supporting People Programme,Grants to Voluntary Bodies,Housing 21,601.61, 01-Feb-2013
948,Revenue,CCHD,Home Care - Elderly - South,Private & Voluntary Home Care,Housing 21,22605.08, 01-Feb-2013
949,Revenue,CCHD,Management & Support costs,Other Supplies & Services,Hugh James,2500, 18-Feb-2013
950,Revenue,CCHD,Frenchay Hospital Purchasing,Nursing Homes,Ilsom House,3145.49, 18-Feb-2013
951,Revenue,CCHD,Frenchay Hospital Purchasing,Nursing Homes,Ilsom House,1295.2, 15-Feb-2013
952,Revenue,CCHD,Care Management Team - South,Agency Staff (Operational)/PCT Pay,IPE,5430, 07-Feb-2013
953,Revenue,CCHD,Care Management Team - South,Agency Staff (Operational)/PCT Pay,IPE,1755.01, 07-Feb-2013
954,Revenue,CCHD,Care Management Team - South,Agency Staff (Operational)/PCT Pay,IPE,1722.5, 08-Feb-2013
955,Revenue,CCHD,Care Management Team - South,Agency Staff (Operational)/PCT Pay,IPE,1770, 14-Feb-2013
956,Revenue,CCHD,Social Lettings Agency,Other Supplies & Services,Individual,655.41, 11-Feb-2013
957,Revenue,CCHD,Alexandra Way,Furniture & Fittings Loose,J&P Healthcare LLP,799.46, 14-Feb-2013
958,Revenue,CCHD,Bed Purchasing - Under 65s PWLD - South,Residential Homes,Julia Simone- Supp. Ind.,7058.48, 19-Feb-2013
959,Revenue,CCHD,Bed purchasing -S28A  Under 65 - North,Residential Homes,Julia Simone- Supp. Ind.,6822.32, 19-Feb-2013
960,Revenue,CCHD,Bed Purchasing - Elderly - South,Residential Homes,Karenza Ltd,1716, 19-Feb-2013
961,Revenue,CCHD,Bed Purchasing - Elderly - North,Residential Homes,Katherine House,1192.12, 19-Feb-2013
962,Revenue,CCHD,Day Care - North,Private & Voluntary Day Care,Kenver House,687.2, 22-Feb-2013
963,Revenue,CCHD,Bed purchasing - Elderly S117 - South,Residential Homes,Kenver House Residential Home,1879.04, 19-Feb-2013
964,Revenue,CCHD,Frenchay Hospital Purchasing,Residential Homes,Kenver House Residential Home,2114.96, 19-Feb-2013
965,Revenue,CCHD,Bed Purchasing - Elderly MH - South,Residential Homes,Kenver House Residential Home,1354.08, 19-Feb-2013
966,Revenue,CCHD,Southmead Hospital Purchasing,Residential Homes,Kenver House Residential Home,1638.16, 19-Feb-2013
967,Revenue,CCHD,Bed purchasing - Elderly S117 - South,Residential Homes,Kenver House Residential Home,1879.04, 19-Feb-2013
968,Revenue,CCHD,Bed Purchasing - Elderly MH - South,Residential Homes,Kenver House Residential Home,1273.72, 19-Feb-2013
969,Revenue,CCHD,Bed Purchasing - Elderly S117- North,Residential Homes,Kenver House Residential Home,1880, 19-Feb-2013
970,Revenue,CCHD,Southmead Hospital Purchasing,Residential Homes,Kenver House Residential Home,1638.16, 19-Feb-2013
971,Revenue,CCHD,Bed Purchasing - Elderly - South,Residential Homes,Kenver House Residential Home,1638.16, 19-Feb-2013
972,Revenue,CCHD,Southmead Hospital Purchasing,Residential Homes,Kenver House Residential Home,3516.96, 19-Feb-2013
973,Revenue,CCHD,Southmead Hospital Purchasing,Residential Homes,Kenver House Residential Home,1172.32, 19-Feb-2013
974,Revenue,CCHD,Frenchay Hospital Purchasing,Residential Homes,Kenver House Residential Home,1638.16, 19-Feb-2013
975,Revenue,CCHD,Bed Purchasing - Elderly MH - South,Residential Homes,Kenver House Residential Home,1184.36, 19-Feb-2013
976,Revenue,CCHD,Frenchay Hospital Purchasing,Residential Homes,Kenver House Residential Home,1410.6, 19-Feb-2013
977,Revenue,CCHD,Bed Purchasing - Elderly MH - South,Residential Homes,Kenver House Residential Home,1167.88, 19-Feb-2013
978,Revenue,CCHD,Bed Purchasing - Elderly MH - South,Residential Homes,Kenver House Residential Home,1402.24, 19-Feb-2013
979,Revenue,CCHD,Bed Purchasing - Elderly - South,Residential Homes,Kenver House Residential Home,1529.44, 19-Feb-2013
980,Revenue,CCHD,Frenchay Hospital Purchasing,Residential Homes,Kenver House Residential Home,1561.28, 19-Feb-2013
981,Revenue,CCHD,Bed Purchasing - Elderly - South,Residential Homes,Kenver House Residential Home,1638.16, 19-Feb-2013
982,Revenue,CCHD,Frenchay Hospital Purchasing,Residential Homes,Kenver House Residential Home,1522, 19-Feb-2013
983,Revenue,CCHD,Tenancy Start Up Scheme,Other Supplies & Services,Individual,1250, 28-Feb-2013
984,Revenue,CCHD,Supporting People Programme,Grants to Voluntary Bodies,Keyring Living Support Networks,2847.11, 01-Feb-2013
985,Revenue,CCHD,Supporting People Programme,Grants to Voluntary Bodies,Kingswood Young Homeless Project,17125, 01-Feb-2013
986,Revenue,CCHD,Bed purchasing - Under 65s PWLD - North,Residential Homes,Kisimul Group,11255.24, 19-Feb-2013
987,Revenue,CCHD,Supporting People Programme,Grants to Voluntary Bodies,Knightstone Housing Association Limited,1433.33, 01-Feb-2013
988,Revenue,CCHD,Supporting People Programme,Grants to Voluntary Bodies,Knightstone Housing Association Limited,28936.03, 01-Feb-2013
989,Revenue,CCHD,Supporting People Programme,Grants to Voluntary Bodies,Knightstone Housing Association Limited,2173.77, 01-Feb-2013
990,Revenue,CCHD,Supporting People Programme,Grants to Voluntary Bodies,Knightstone Housing Association Limited,4847.07, 01-Feb-2013
991,Revenue,CCHD,Supporting People Programme,Grants to Voluntary Bodies,Knightstone Housing Association Limited,1866, 01-Feb-2013
992,Revenue,CCHD,Home Care - Elderly - South,Other Small Contracts,Kumari Care Limited,3645.1, 06-Feb-2013
993,Revenue,CCHD,Home Care - Elderly - North,Other Small Contracts,Kumari Care Limited,827.13, 06-Feb-2013
994,Revenue,CCHD,Day Care - South,Private & Voluntary Day Care,Kumari Care Limited,106.96, 06-Feb-2013
995,Revenue,CCHD,Under 65s -MH  Home Care Purch,Other Small Contracts,Kumari Care Limited,141.34, 06-Feb-2013
996,Revenue,CCHD,PWLD Home Care - Under 65 - KH,Private & Voluntary Home Care,Kumari Care Limited,275.04, 06-Feb-2013
997,Revenue,CCHD,Home Care - Elderly - South,Other Small Contracts,Kumari Care Limited,3842.92, 06-Feb-2013
998,Revenue,CCHD,Home Care - Elderly - North,Other Small Contracts,Kumari Care Limited,827.13, 06-Feb-2013
999,Revenue,CCHD,Day Care - South,Private & Voluntary Day Care,Kumari Care Limited,164.26, 06-Feb-2013
1000,Revenue,CCHD,Under 65s -MH  Home Care Purch,Other Small Contracts,Kumari Care Limited,145.16, 06-Feb-2013
1001,Revenue,CCHD,PWLD Home Care - Under 65 - KH,Private & Voluntary Home Care,Kumari Care Limited,309.42, 06-Feb-2013
1002,Revenue,CCHD,Home Care - Elderly - South,Other Small Contracts,Kumari Care Limited,3693.94, 18-Feb-2013
1003,Revenue,CCHD,Home Care - Elderly - North,Other Small Contracts,Kumari Care Limited,827.13, 18-Feb-2013
1004,Revenue,CCHD,Day Care - South,Private & Voluntary Day Care,Kumari Care Limited,45.84, 18-Feb-2013
1005,Revenue,CCHD,Under 65s -MH  Home Care Purch,Other Small Contracts,Kumari Care Limited,148.98, 18-Feb-2013
1006,Revenue,CCHD,PWLD Home Care - Under 65 - KH,Private & Voluntary Home Care,Kumari Care Limited,72.58, 18-Feb-2013
1007,Revenue,CCHD,Home Care - Elderly - South,Other Small Contracts,Kumari Care Limited,3842.92, 25-Feb-2013
1008,Revenue,CCHD,Home Care - Elderly - North,Other Small Contracts,Kumari Care Limited,828.16, 25-Feb-2013
1009,Revenue,CCHD,Day Care - South,Private & Voluntary Day Care,Kumari Care Limited,168.08, 25-Feb-2013
1010,Revenue,CCHD,Under 65s -MH  Home Care Purch,Other Small Contracts,Kumari Care Limited,219.71, 25-Feb-2013
1011,Revenue,CCHD,PWLD Home Care - Under 65 - KH,Private & Voluntary Home Care,Kumari Care Limited,305.06, 25-Feb-2013
1012,Revenue,CCHD,Management & Support costs,Other Supplies & Services,Laing & Buisson (Publications) Limited,950, 01-Feb-2013
1013,Revenue,CCHD,Social Lettings Agency,Other Supplies & Services,Individual,565, 07-Feb-2013
1014,Revenue,CCHD,Social Lettings Agency,Other Supplies & Services,Individual,565, 18-Feb-2013
1015,Revenue,CCHD,Bed purchasing - Phys Dis - North,Nursing Homes,Leonard Cheshire  National Account Centr,24553.86, 19-Feb-2013
1016,Revenue,CCHD,Bed purchasing - Phys Dis - North,Nursing Homes,Leonard Cheshire  National Account Centr,4915.84, 19-Feb-2013
1017,Revenue,CCHD,Bed purchasing - Phys Dis - North,Residential Homes,Leonard Cheshire  National Account Centr,31362.91, 19-Feb-2013
1018,Revenue,CCHD,Bed purchasing - Phys Dis - North,Residential Homes,Leonard Cheshire  National Account Centr,6308.96, 19-Feb-2013
1019,Revenue,CCHD,Bed purchasing - Phys Dis - North,Residential Homes,Leonard Cheshire  National Account Centr,2917.48, 19-Feb-2013
1020,Revenue,CCHD,Bed Purchasing - Under 65s PWLD - South,Residential Homes,Leonard Cheshire  National Account Centr,2932.12, 19-Feb-2013
1021,Revenue,CCHD,Bed Purchasing - Elderly - North,Nursing Homes,Leonard Cheshire  National Account Centr,3436.6, 19-Feb-2013
1022,Revenue,CCHD,Bed purchasing - Phys Dis - North,Nursing Homes,Leonard Cheshire  National Account Centr,2736.6, 19-Feb-2013
1023,Revenue,CCHD,Bed Purchasing - Elderly - North,Residential Homes,Leonard Cheshire  National Account Centr,3122.24, 19-Feb-2013
1024,Revenue,CCHD,Bed purchasing - Under 65s PWLD - North,Residential Homes,Leonard Cheshire  National Account Centr,5817.08, 19-Feb-2013
1025,Revenue,CCHD,Bed purchasing - Under 65s PWLD - North,Residential Homes,Leonard Cheshire  National Account Centr,5815.56, 19-Feb-2013
1026,Revenue,CCHD,Bed Purchasing - Elderly - South,Residential Homes,Leonard Cheshire  National Account Centr,4398.92, 19-Feb-2013
1027,Revenue,CCHD,Bed purchasing - Phys Dis - North,Nursing Homes,Leonard Cheshire  National Account Centr,2812.44, 19-Feb-2013
1028,Revenue,CCHD,Bed purchasing - Phys Dis - North,Nursing Homes,Leonard Cheshire  National Account Centr,3183.12, 19-Feb-2013
1029,Revenue,CCHD,Bed purchasing - Phys Dis - North,Residential Homes,Leonard Cheshire  National Account Centr,2862.72, 19-Feb-2013
1030,Revenue,CCHD,Bed Purchasing - Elderly - North,Nursing Homes,Leonard Cheshire  National Account Centr,3521.32, 19-Feb-2013
1031,Revenue,CCHD,Bed purchasing - Phys Dis - North,Nursing Homes,Leonard Cheshire  National Account Centr,3193.16, 19-Feb-2013
1032,Revenue,CCHD,Bed purchasing - Phys Dis - South,Nursing Homes,Leonard Cheshire  National Account Centr,6056.64, 19-Feb-2013
1033,Revenue,CCHD,Bed purchasing - Phys Dis - North,Nursing Homes,Leonard Cheshire  National Account Centr,5468.84, 19-Feb-2013
1034,Revenue,CCHD,Bed Purchasing - Elderly - South,Nursing Homes,Leonard Cheshire  National Account Centr,2841.24, 19-Feb-2013
1035,Revenue,CCHD,Southmead Hospital Purchasing,Nursing Homes,Leonard Cheshire  National Account Centr,2977.88, 19-Feb-2013
1036,Revenue,CCHD,South Glos Users in all other LA Homes,Nursing Homes,Leonard Cheshire  National Account Centr,598.4, 19-Feb-2013
1037,Revenue,CCHD,Bed purchasing - Phys Dis - North,Nursing Homes,Leonard Cheshire  National Account Centr,3278.52, 19-Feb-2013
1038,Revenue,CCHD,Frenchay Hospital Purchasing,Residential Homes,Leonard Cheshire  National Account Centr,3738.32, 19-Feb-2013
1039,Revenue,CCHD,Bed Purchasing - Elderly - South,Nursing Homes,Leonard Cheshire  National Account Centr,4327.48, 19-Feb-2013
1040,Revenue,CCHD,Bed Purchasing - Elderly - South,Nursing Homes,Leonard Elms Care Home,1528.76, 19-Feb-2013
1041,Revenue,CCHD,Supported Living - KD,Private & Voluntary Home Care,Lifeways Community Care (Gloucester) Ltd,8792, 21-Feb-2013
1042,Revenue,CCHD,Tenancy Start Up Scheme,Other Supplies & Services,Lisa-Marie Letting & Property Management,1300, 04-Feb-2013
1043,Revenue,CCHD,Bed Purchasing - Elderly - South,Residential Homes,Little Croft,1239.2, 19-Feb-2013
1044,Revenue,CCHD,Bed Purchasing - Elderly - South,Residential Homes,Little Croft,1996.36, 19-Feb-2013
1045,Revenue,CCHD,Bed Purchasing - Elderly - South,Residential Homes,Little Croft,1431.48, 19-Feb-2013
1046,Revenue,CCHD,Bed Purchasing - Elderly - South,Residential Homes,Little Croft,1838.36, 19-Feb-2013
1047,Revenue,CCHD,Bed Purchasing - Elderly - South,Residential Homes,Little Croft,1250.72, 19-Feb-2013
1048,Revenue,CCHD,Frenchay Hospital Purchasing,Residential Homes,Little Croft,1059.32, 19-Feb-2013
1049,Revenue,CCHD,Bed Purchasing - Elderly MH - South,Residential Homes,Little Croft,1172.88, 19-Feb-2013
1050,Revenue,CCHD,Southmead Hospital Purchasing,Residential Homes,Little Croft,1202.52, 19-Feb-2013
1051,Revenue,CCHD,Bed Purchasing - Elderly - South,Residential Homes,Little Croft,1596.08, 19-Feb-2013
1052,Revenue,CCHD,Bed Purchasing - Elderly - North,Residential Homes,Little Croft,1103.14, 19-Feb-2013
1053,Revenue,CCHD,Bed purchasing - Under 65s PWLD - North,Residential Homes,Littlecroft Residential Homes  Longcroft,6524.44, 19-Feb-2013
1054,Revenue,CCHD,Supported Living - KD,Private & Voluntary Home Care,Lloyds TSB Commercial Finance Limited,5310.36, 04-Feb-2013
1055,Revenue,CCHD,Supported Living - PS,Private & Voluntary Home Care,Lloyds TSB Commercial Finance Limited,3864.58, 15-Feb-2013
1056,Revenue,CCHD,Supported Living - PS,Private & Voluntary Home Care,Lloyds TSB Commercial Finance Limited,3833.86, 15-Feb-2013
1057,Revenue,CCHD,Supported Living - PS,Private & Voluntary Home Care,Lloyds TSB Commercial Finance Limited,3764.37, 20-Feb-2013
1058,Revenue,CCHD,Supported Living - PS,Private & Voluntary Home Care,Lloyds TSB Commercial Finance Limited,6163.34, 15-Feb-2013
1059,Revenue,CCHD,Supported Living - PS,Private & Voluntary Home Care,Lloyds TSB Commercial Finance Limited,3896.67, 19-Feb-2013
1060,Revenue,CCHD,Supported Living - PS,Private & Voluntary Home Care,Lloyds TSB Commercial Finance Limited,4151.66, 15-Feb-2013
1061,Revenue,CCHD,Home Care - Elderly - South,Other Small Contracts,Lloyds TSB Commercial Finance Limited,758.52, 28-Feb-2013
1062,Revenue,CCHD,Home Care - Elderly - North,Other Small Contracts,Lloyds TSB Commercial Finance Limited,6149.43, 28-Feb-2013
1063,Revenue,CCHD,Day Care - South,Private & Voluntary Day Care,Lloyds TSB Commercial Finance Limited,216.72, 28-Feb-2013
1064,Revenue,CCHD,Day Care - North,Private & Voluntary Day Care,Lloyds TSB Commercial Finance Limited,251.55, 28-Feb-2013
1065,Revenue,CCHD,Home Care - Elderly - South,Other Small Contracts,Lloyds TSB Commercial Finance Limited,681.12, 25-Feb-2013
1066,Revenue,CCHD,Home Care - Elderly - North,Other Small Contracts,Lloyds TSB Commercial Finance Limited,5383.17, 25-Feb-2013
1067,Revenue,CCHD,Day Care - South,Private & Voluntary Day Care,Lloyds TSB Commercial Finance Limited,255.42, 25-Feb-2013
1068,Revenue,CCHD,Day Care - North,Private & Voluntary Day Care,Lloyds TSB Commercial Finance Limited,216.72, 25-Feb-2013
1069,Revenue,CCHD,Home Care - Elderly - South,Other Small Contracts,Lloyds TSB Commercial Finance Limited,812.7, 25-Feb-2013
1070,Revenue,CCHD,Home Care - Elderly - North,Other Small Contracts,Lloyds TSB Commercial Finance Limited,5553.45, 25-Feb-2013
1071,Revenue,CCHD,Day Care - South,Private & Voluntary Day Care,Lloyds TSB Commercial Finance Limited,247.68, 25-Feb-2013
1072,Revenue,CCHD,Day Care - North,Private & Voluntary Day Care,Lloyds TSB Commercial Finance Limited,205.11, 25-Feb-2013
1073,Revenue,CCHD,Supported Living - PS,Private & Voluntary Home Care,Lloyds TSB Commercial Finance Limited,3666.7, 15-Feb-2013
1074,Revenue,CCHD,Supported Living - PS,Private & Voluntary Home Care,Lloyds TSB Commercial Finance Limited,3832.42, 15-Feb-2013
1075,Revenue,CCHD,Supported Living - PS,Private & Voluntary Home Care,Lloyds TSB Commercial Finance Limited,3647.62, 15-Feb-2013
1076,Revenue,CCHD,Supported Living - KD,Private & Voluntary Home Care,Lloyds TSB Commercial Finance Limited,3538.41, 15-Feb-2013
1077,Revenue,CCHD,Supported Living - PS,Private & Voluntary Home Care,Lloyds TSB Commercial Finance Limited,3510.82, 15-Feb-2013
1078,Revenue,CCHD,Bed Purchasing - Under 65s PWLD - South,Residential Homes,Longton Court,9508.88, 19-Feb-2013
1079,Revenue,CCHD,Social Lettings Agency,Other Supplies & Services,Individual,565, 01-Feb-2013
1080,Revenue,CCHD,TSG Practice Placements,Training Expenses,M Harris,750.5, 22-Feb-2013
1081,Revenue,CCHD,Southmead Hospital Purchasing,Nursing Homes,Majestic 3 Limited,1001.96, 19-Feb-2013
1082,Revenue,CCHD,Section 117 Placements MH Younger,Residential Homes,Manor Community Care Home,13191.14, 19-Feb-2013
1083,Revenue,CCHD,Frenchay Hospital Purchasing,Residential Homes,Manor Cottage,696.6, 19-Feb-2013
1084,Revenue,CCHD,Bed Purchasing - Elderly - South,Residential Homes,Manor Cottage,1424.84, 19-Feb-2013
1085,Revenue,CCHD,Southmead Hospital Purchasing,Residential Homes,Manor Cottage,1239.2, 19-Feb-2013
1086,Revenue,CCHD,Southmead Hospital Purchasing,Residential Homes,Manor Cottage,619.6, 19-Feb-2013
1087,Revenue,CCHD,Bed Purchasing - Elderly - South,Residential Homes,Manor Cottage,1437.28, 19-Feb-2013
1088,Revenue,CCHD,Bed Purchasing - Elderly - North,Residential Homes,Manton Hall Residential Home,1484.32, 19-Feb-2013
1089,Revenue,CCHD,Section 117 Placements MH Younger,Private & Voluntary Day Care,Maples Community Care Limited,1797.88, 11-Feb-2013
1090,Revenue,CCHD,Section 117 Placements MH Younger,Private & Voluntary Day Care,Maples Community Care Limited,1797.88, 11-Feb-2013
1091,Revenue,CCHD,Section 117 Placements MH Younger,Private & Voluntary Day Care,Maples Community Care Limited,1797.88, 11-Feb-2013
1092,Revenue,CCHD,Supporting People Programme,Grants to Voluntary Bodies,Maples Community Housing Limited,2652.15, 01-Feb-2013
1093,Revenue,CCHD,Supported Living - KD,Private & Voluntary Home Care,Maples Comunity Care Limited,690.3, 28-Feb-2013
1094,Revenue,CCHD,Section 117 Placements MH Younger,Private & Voluntary Day Care,Maples Comunity Care Limited,1894.2, 18-Feb-2013
1095,Revenue,CCHD,Social Lettings Agency,Other Supplies & Services,Individual,655.41, 20-Feb-2013
1096,Revenue,CCHD,Tenancy Start Up Scheme,Other Supplies & Services,Individual,625, 18-Feb-2013
1097,Revenue,CCHD,Tenancy Start Up Scheme,Other Supplies & Services,Individual,1250, 28-Feb-2013
1098,Revenue,CCHD,Bed Purchasing - Under 65s PWLD - South,Residential Homes,Marsden Healthcare Limited,894.48, 15-Feb-2013
1099,Revenue,CCHD,Bed purchasing - Elderly PWLD - South,Residential Homes,Marsden Healthcare Limited,3177.12, 15-Feb-2013
1100,Revenue,CCHD,Bed purchasing - Elderly PWLD - South,Residential Homes,Marsden Healthcare Limited,1496.2, 15-Feb-2013
1101,Revenue,CCHD,Home Care - Elderly - South,Private & Voluntary Home Care,Mears Care,48154.25, 28-Feb-2013
1102,Revenue,CCHD,Home Care - Elderly - South,Other Small Contracts,Mears Care,578.28, 22-Feb-2013
1103,Revenue,CCHD,Home Care - Elderly - North,Other Small Contracts,Mears Care,6939.36, 22-Feb-2013
1104,Revenue,CCHD,Day Care - South,Private & Voluntary Day Care,Mears Care,87.84, 22-Feb-2013
1105,Revenue,CCHD,Day Care - North,Private & Voluntary Day Care,Mears Care,245.22, 22-Feb-2013
1106,Revenue,CCHD,Under 65s -MH  Home Care Purch,Other Small Contracts,Mears Care,109.8, 22-Feb-2013
1107,Revenue,CCHD,Home care - Elderly MH - North,Other Small Contracts,Mears Care,270.84, 22-Feb-2013
1108,Revenue,CCHD,Home Care - Elderly LD - KH,Private & Voluntary Home Care,Mears Care,51.24, 22-Feb-2013
1109,Revenue,CCHD,Home Care - Elderly - South,Other Small Contracts,Mears Care,603.9, 22-Feb-2013
1110,Revenue,CCHD,Home Care - Elderly - North,Other Small Contracts,Mears Care,6434.28, 22-Feb-2013
1111,Revenue,CCHD,Day Care - South,Private & Voluntary Day Care,Mears Care,91.5, 22-Feb-2013
1112,Revenue,CCHD,Day Care - North,Private & Voluntary Day Care,Mears Care,248.88, 22-Feb-2013
1113,Revenue,CCHD,Under 65s -MH  Home Care Purch,Other Small Contracts,Mears Care,109.8, 22-Feb-2013
1114,Revenue,CCHD,Home care - Elderly MH - North,Other Small Contracts,Mears Care,519.72, 22-Feb-2013
1115,Revenue,CCHD,Home Care - Elderly LD - KH,Private & Voluntary Home Care,Mears Care,54.9, 22-Feb-2013
1116,Revenue,CCHD,Home Care - Elderly - South,Other Small Contracts,Mears Care,494.1, 01-Feb-2013
1117,Revenue,CCHD,Home Care - Elderly - North,Other Small Contracts,Mears Care,6115.86, 01-Feb-2013
1118,Revenue,CCHD,Day Care - South,Private & Voluntary Day Care,Mears Care,91.5, 01-Feb-2013
1119,Revenue,CCHD,Day Care - North,Private & Voluntary Day Care,Mears Care,168.36, 01-Feb-2013
1120,Revenue,CCHD,Under 65s -MH  Home Care Purch,Other Small Contracts,Mears Care,95.16, 01-Feb-2013
1121,Revenue,CCHD,Home care - Elderly MH - North,Other Small Contracts,Mears Care,680.76, 01-Feb-2013
1122,Revenue,CCHD,Home Care - Elderly LD - KH,Private & Voluntary Home Care,Mears Care,51.24, 01-Feb-2013
1123,Revenue,CCHD,Home Care - Elderly - South,Other Small Contracts,Mears Care,527.04, 01-Feb-2013
1124,Revenue,CCHD,Home Care - Elderly - North,Other Small Contracts,Mears Care,6778.32, 01-Feb-2013
1125,Revenue,CCHD,Day Care - South,Private & Voluntary Day Care,Mears Care,91.5, 01-Feb-2013
1126,Revenue,CCHD,Day Care - North,Private & Voluntary Day Care,Mears Care,190.32, 01-Feb-2013
1127,Revenue,CCHD,Under 65s -MH  Home Care Purch,Other Small Contracts,Mears Care,109.8, 01-Feb-2013
1128,Revenue,CCHD,Home care - Elderly MH - North,Other Small Contracts,Mears Care,688.08, 01-Feb-2013
1129,Revenue,CCHD,Home Care - Elderly LD - KH,Private & Voluntary Home Care,Mears Care,51.24, 01-Feb-2013
1130,Revenue,CCHD,Home Care - Elderly - South,Other Small Contracts,Mears Care,603.9, 11-Feb-2013
1131,Revenue,CCHD,Home Care - Elderly - North,Other Small Contracts,Mears Care,6811.26, 11-Feb-2013
1132,Revenue,CCHD,Day Care - South,Private & Voluntary Day Care,Mears Care,43.92, 11-Feb-2013
1133,Revenue,CCHD,Day Care - North,Private & Voluntary Day Care,Mears Care,190.32, 11-Feb-2013
1134,Revenue,CCHD,Under 65s -MH  Home Care Purch,Other Small Contracts,Mears Care,109.8, 11-Feb-2013
1135,Revenue,CCHD,Home care - Elderly MH - North,Other Small Contracts,Mears Care,607.56, 11-Feb-2013
1136,Revenue,CCHD,Home Care - Elderly LD - KH,Private & Voluntary Home Care,Mears Care,54.9, 11-Feb-2013
1137,Revenue,CCHD,Home Care - Elderly - South,Other Small Contracts,Mears Care,592.92, 22-Feb-2013
1138,Revenue,CCHD,Home Care - Elderly - North,Other Small Contracts,Mears Care,7096.74, 22-Feb-2013
1139,Revenue,CCHD,Day Care - South,Private & Voluntary Day Care,Mears Care,43.92, 22-Feb-2013
1140,Revenue,CCHD,Day Care - North,Private & Voluntary Day Care,Mears Care,234.24, 22-Feb-2013
1141,Revenue,CCHD,Under 65s -MH  Home Care Purch,Other Small Contracts,Mears Care,113.46, 22-Feb-2013
1142,Revenue,CCHD,Home Care - Elderly LD - KH,Private & Voluntary Home Care,Mears Care,51.24, 22-Feb-2013
1143,Revenue,CCHD,Woodleaze,Prop.Serv. General Repairs,Mechanical Engineering Svcs (Avon) Ltd,600, 14-Feb-2013
1144,Revenue,CCHD,Home Care - Elderly - North,Other Small Contracts,Medacs Home Care,660.86, 11-Feb-2013
1145,Revenue,CCHD,Home care - Elderly MH - North,Other Small Contracts,Medacs Home Care,114.18, 11-Feb-2013
1146,Revenue,CCHD,Home Care - Elderly - North,Other Small Contracts,Medacs Home Care,702.2, 11-Feb-2013
1147,Revenue,CCHD,Home care - Elderly MH - North,Other Small Contracts,Medacs Home Care,124.56, 11-Feb-2013
1148,Revenue,CCHD,Home Care - Elderly - North,Other Small Contracts,Medacs Home Care,667.78, 11-Feb-2013
1149,Revenue,CCHD,Home care - Elderly MH - North,Other Small Contracts,Medacs Home Care,124.56, 11-Feb-2013
1150,Revenue,CCHD,Home Care - Elderly - North,Other Small Contracts,Medacs Home Care,650.3, 11-Feb-2013
1151,Revenue,CCHD,Home care - Elderly MH - North,Other Small Contracts,Medacs Home Care,121.1, 11-Feb-2013
1152,Revenue,CCHD,Home Care - Elderly - North,Other Small Contracts,Medacs Home Care,473.9, 11-Feb-2013
1153,Revenue,CCHD,Home care - Elderly MH - North,Other Small Contracts,Medacs Home Care,96.88, 11-Feb-2013
1154,Revenue,CCHD,Home Care - Elderly - North,Other Small Contracts,Medacs Home Care,626.08, 11-Feb-2013
1155,Revenue,CCHD,Home care - Elderly MH - North,Other Small Contracts,Medacs Home Care,117.64, 11-Feb-2013
1156,Revenue,CCHD,NRS Contract,Daily Living Equipment,Medequip Assistive Technology Ltd,1413, 01-Feb-2013
1157,Revenue,CCHD,NRS Contract,Daily Living Equipment,Medequip Assistive Technology Ltd,925, 01-Feb-2013
1158,Revenue,CCHD,NRS Contract,Daily Living Equipment,Medequip Assistive Technology Ltd,24845.34, 22-Feb-2013
1159,Revenue,CCHD,NRS Contract,Daily Living Equipment,Medequip Assistive Technology Ltd,82947.08, 22-Feb-2013
1160,Revenue,CCHD,Bed Purchasing - Under 65s PWLD - South,Residential Homes,Mencap,2198.88, 19-Feb-2013
1161,Revenue,CCHD,Learning Difficulties Development Fund,Other Supplies & Services,Mencap Employment,2912, 12-Feb-2013
1162,Revenue,CCHD,Supporting People Programme,Grants to Voluntary Bodies,Merlin Housing Society,1016.8, 01-Feb-2013
1163,Revenue,CCHD,Supporting People Programme,Grants to Voluntary Bodies,Merlin Housing Society,15252, 01-Feb-2013
1164,Revenue,CCHD,Supporting People Programme,Grants to Voluntary Bodies,Merlin Housing Society,2399.99, 01-Feb-2013
1165,Revenue,CCHD,Supporting People Programme,Grants to Voluntary Bodies,Merlin Housing Society,50840, 01-Feb-2013
1166,Revenue,CCHD,Frenchay Hospital Purchasing,Residential Homes,Milburn Finance,1035.6, 19-Feb-2013
1167,Revenue,CCHD,Home Care - Elderly - South,Other Small Contracts,Milestones Outreach Dementia Services,1222.4, 13-Feb-2013
1168,Revenue,CCHD,Home Care - Elderly - North,Other Small Contracts,Milestones Outreach Dementia Services,382, 13-Feb-2013
1169,Revenue,CCHD,Day Care - South,Private & Voluntary Day Care,Milestones Outreach Dementia Services,122.24, 13-Feb-2013
1170,Revenue,CCHD,Day Care - North,Private & Voluntary Day Care,Milestones Outreach Dementia Services,164.16, 13-Feb-2013
1171,Revenue,CCHD,Home care - Elderly MH - North,Other Small Contracts,Milestones Outreach Dementia Services,84.04, 13-Feb-2013
1172,Revenue,CCHD,Elderly MH Day Care North,Private & Voluntary Day Care,Milestones Outreach Dementia Services,152.8, 13-Feb-2013
1173,Revenue,CCHD,Home Care - Elderly - South,Other Small Contracts,Milestones Outreach Dementia Services,1344.64, 13-Feb-2013
1174,Revenue,CCHD,Home Care - Elderly - North,Other Small Contracts,Milestones Outreach Dementia Services,359.08, 13-Feb-2013
1175,Revenue,CCHD,Day Care - South,Private & Voluntary Day Care,Milestones Outreach Dementia Services,122.24, 13-Feb-2013
1176,Revenue,CCHD,Day Care - North,Private & Voluntary Day Care,Milestones Outreach Dementia Services,168.72, 13-Feb-2013
1177,Revenue,CCHD,Home care - Elderly MH - North,Other Small Contracts,Milestones Outreach Dementia Services,84.04, 13-Feb-2013
1178,Revenue,CCHD,Elderly MH Day Care North,Private & Voluntary Day Care,Milestones Outreach Dementia Services,152.8, 13-Feb-2013
1179,Revenue,CCHD,Supported Living - KD,Private & Voluntary Home Care,Milestones Trust,659.13, 01-Feb-2013
1180,Revenue,CCHD,Supported Living (S28a) North,Private & Voluntary Home Care,Milestones Trust,5296.81, 26-Feb-2013
1181,Revenue,CCHD,Supported Living (S28a) North,Private & Voluntary Home Care,Milestones Trust,783.75, 07-Feb-2013
1182,Revenue,CCHD,Supported Living (S28a) North,Private & Voluntary Home Care,Milestones Trust,3625.45, 07-Feb-2013
1183,Revenue,CCHD,Supported Living (S28a) North,Private & Voluntary Home Care,Milestones Trust,3479.2, 07-Feb-2013
1184,Revenue,CCHD,Supported Living (S28a) North,Private & Voluntary Home Care,Milestones Trust,3479.2, 07-Feb-2013
1185,Revenue,CCHD,Supported Living - KD,Private & Voluntary Home Care,Milestones Trust,1218.58, 04-Feb-2013
1186,Revenue,CCHD,Supported Living (S28a) South,Private & Voluntary Home Care,Milestones Trust,613.81, 07-Feb-2013
1187,Revenue,CCHD,Supported Living (S28a) North,Private & Voluntary Home Care,Milestones Trust,3936.2, 07-Feb-2013
1188,Revenue,CCHD,Supported Living (S28a) North,Private & Voluntary Home Care,Milestones Trust,3936.2, 07-Feb-2013
1189,Revenue,CCHD,Supported Living - PS,Private & Voluntary Home Care,Milestones Trust,776.25, 01-Feb-2013
1190,Revenue,CCHD,Day Care - South,Private & Voluntary Day Care,Milestones Trust,871.29, 27-Feb-2013
1191,Revenue,CCHD,Supported Living - PS,Private & Voluntary Home Care,Milestones Trust,940.17, 01-Feb-2013
1192,Revenue,CCHD,Supported Living (S28a) South,Private & Voluntary Home Care,Milestones Trust,4096.16, 07-Feb-2013
1193,Revenue,CCHD,Supported Living (S28a) North,Private & Voluntary Home Care,Milestones Trust,9204.71, 07-Feb-2013
1194,Revenue,CCHD,Supported Living (S28a) North,Private & Voluntary Home Care,Milestones Trust,5028.19, 07-Feb-2013
1195,Revenue,CCHD,Supported Living (S28a) South,Private & Voluntary Home Care,Milestones Trust,3053.34, 07-Feb-2013
1196,Revenue,CCHD,Supported Living (S28a) South,Private & Voluntary Home Care,Milestones Trust,2790.95, 07-Feb-2013
1197,Revenue,CCHD,Supported Living - PS,Private & Voluntary Home Care,Milestones Trust,2556.89, 01-Feb-2013
1198,Revenue,CCHD,Supported Living (S28a) South,Private & Voluntary Home Care,Milestones Trust,3012.09, 07-Feb-2013
1199,Revenue,CCHD,Supported Living - PS,Private & Voluntary Home Care,Milestones Trust,1857.46, 04-Feb-2013
1200,Revenue,CCHD,Supported Living - PS,Private & Voluntary Home Care,Milestones Trust,648.4, 01-Feb-2013
1201,Revenue,CCHD,Supported Living - PS,Private & Voluntary Home Care,Milestones Trust,1806.03, 04-Feb-2013
1202,Revenue,CCHD,Supported Living - PS,Private & Voluntary Home Care,Milestones Trust,633.64, 04-Feb-2013
1203,Revenue,CCHD,Supported Living (S28a) South,Private & Voluntary Home Care,Milestones Trust,507.91, 07-Feb-2013
1204,Revenue,CCHD,Purchase of Non-Res Care - PS,Private & Voluntary Day Care,Milestones Trust,960.72, 07-Feb-2013
1205,Revenue,CCHD,Purchase of Non-Res Care - PS,Private & Voluntary Day Care,Milestones Trust,538.51, 07-Feb-2013
1206,Revenue,CCHD,Purchase of Non-Res Care - PS,Private & Voluntary Day Care,Milestones Trust,1196.66, 19-Feb-2013
1207,Revenue,CCHD,Purchase of Non-Res Care - PS,Private & Voluntary Day Care,Milestones Trust,995.1, 07-Feb-2013
1208,Revenue,CCHD,Purchase of Non-Res Care - PS,Private & Voluntary Day Care,Milestones Trust,1272.33, 07-Feb-2013
1209,Revenue,CCHD,Supported Living - PS,Private & Voluntary Home Care,Milestones Trust,565.51, 07-Feb-2013
1210,Revenue,CCHD,Purchase of Non-Res Care - PS,Private & Voluntary Day Care,Milestones Trust,1304.9, 07-Feb-2013
1211,Revenue,CCHD,Purchase of Non-Res Care - PS,Private & Voluntary Day Care,Milestones Trust,1698.17, 07-Feb-2013
1212,Revenue,CCHD,Purchase of Non-Res Care - PS,Private & Voluntary Day Care,Milestones Trust,1692.75, 07-Feb-2013
1213,Revenue,CCHD,Purchase of Non-Res Care - PS,Private & Voluntary Day Care,Milestones Trust,1306.39, 19-Feb-2013
1214,Revenue,CCHD,Purchase of Non-Res Care - PS,Private & Voluntary Day Care,Milestones Trust,536.41, 07-Feb-2013
1215,Revenue,CCHD,Purchase of Non-Res Care - PS,Private & Voluntary Day Care,Milestones Trust,1908.87, 19-Feb-2013
1216,Revenue,CCHD,Purchase of Non-Res Care - PS,Private & Voluntary Day Care,Milestones Trust,1406.95, 19-Feb-2013
1217,Revenue,CCHD,Purchase of Non-Res Care - PS,Private & Voluntary Day Care,Milestones Trust,1114.06, 07-Feb-2013
1218,Revenue,CCHD,Supported Living - PS,Private & Voluntary Home Care,Milestones Trust,1665.01, 07-Feb-2013
1219,Revenue,CCHD,Purchase of Non-Res Care - PS,Private & Voluntary Day Care,Milestones Trust,1237.3, 19-Feb-2013
1220,Revenue,CCHD,Supported Living (S28a) North,Private & Voluntary Home Care,Milestones Trust,3269.22, 15-Feb-2013
1221,Revenue,CCHD,Supported Living (S28a) North,Private & Voluntary Home Care,Milestones Trust,3269.22, 15-Feb-2013
1222,Revenue,CCHD,Supported Living (S28a) North,Private & Voluntary Home Care,Milestones Trust,3120.9, 15-Feb-2013
1223,Revenue,CCHD,Supported Living (S28a) North,Private & Voluntary Home Care,Milestones Trust,3120.9, 15-Feb-2013
1224,Revenue,CCHD,Supported Living - PS,Private & Voluntary Home Care,Milestones Trust,17719.01, 22-Feb-2013
1225,Revenue,CCHD,Elderly MH Day Care North,Private & Voluntary Day Care,Milestones Trust,520, 27-Feb-2013
1226,Revenue,CCHD,Supported Living (S28a) North,Private & Voluntary Home Care,Milestones Trust,1353.75, 26-Feb-2013
1227,Revenue,CCHD,Supported Living (S28a) North,Private & Voluntary Home Care,Milestones Trust,4712.75, 26-Feb-2013
1228,Revenue,CCHD,Supported Living (S28a) North,Private & Voluntary Home Care,Milestones Trust,4349, 26-Feb-2013
1229,Revenue,CCHD,Supported Living (S28a) North,Private & Voluntary Home Care,Milestones Trust,4349, 26-Feb-2013
1230,Revenue,CCHD,Purchase of Non-Res Care - PS,Private & Voluntary Day Care,Milestones Trust,551.14, 26-Feb-2013
1231,Revenue,CCHD,Supported Living (S28a) South,Private & Voluntary Home Care,Milestones Trust,6498.61, 26-Feb-2013
1232,Revenue,CCHD,Supported Living - PS,Private & Voluntary Home Care,Milestones Trust,1649.95, 26-Feb-2013
1233,Revenue,CCHD,Supported Living - PS,Private & Voluntary Home Care,Milestones Trust,555, 26-Feb-2013
1234,Revenue,CCHD,Supported Living (S28a) South,Private & Voluntary Home Care,Milestones Trust,762, 26-Feb-2013
1235,Revenue,CCHD,Supported Living - PS,Private & Voluntary Home Care,Milestones Trust,586.68, 26-Feb-2013
1236,Revenue,CCHD,Supported Living (S28a) North,Private & Voluntary Home Care,Milestones Trust,4920.25, 26-Feb-2013
1237,Revenue,CCHD,Supported Living (S28a) North,Private & Voluntary Home Care,Milestones Trust,4920.25, 26-Feb-2013
1238,Revenue,CCHD,Supported Living (S28a) North,Private & Voluntary Home Care,Milestones Trust,6449.86, 26-Feb-2013
1239,Revenue,CCHD,Supported Living (S28a) North,Private & Voluntary Home Care,Milestones Trust,6449.86, 26-Feb-2013
1240,Revenue,CCHD,Supported Living - PS,Private & Voluntary Home Care,Milestones Trust,663.25, 26-Feb-2013
1241,Revenue,CCHD,Purchase of Non-Res Care - PS,Private & Voluntary Day Care,Milestones Trust,717.92, 26-Feb-2013
1242,Revenue,CCHD,Supported Living - PS,Private & Voluntary Day Care,Milestones Trust,1134.7, 26-Feb-2013
1243,Revenue,CCHD,Purchase of Non-Res Care - PS,Private & Voluntary Day Care,Milestones Trust,566.25, 26-Feb-2013
1244,Revenue,CCHD,Supported Living - PS,Private & Voluntary Home Care,Milestones Trust,1301.74, 26-Feb-2013
1245,Revenue,CCHD,Supported Living (S28a) North,Private & Voluntary Home Care,Milestones Trust,9204.71, 26-Feb-2013
1246,Revenue,CCHD,Supported Living (S28a) North,Private & Voluntary Home Care,Milestones Trust,19863, 26-Feb-2013
1247,Revenue,CCHD,Supported Living (S28a) North,Private & Voluntary Home Care,Milestones Trust,5295.24, 26-Feb-2013
1248,Revenue,CCHD,Supported Living (S28a) South,Private & Voluntary Home Care,Milestones Trust,4023.2, 26-Feb-2013
1249,Revenue,CCHD,Supported Living (S28a) South,Private & Voluntary Home Care,Milestones Trust,3564.25, 26-Feb-2013
1250,Revenue,CCHD,Supported Living - PS,Private & Voluntary Home Care,Milestones Trust,3222.56, 26-Feb-2013
1251,Revenue,CCHD,Supported Living (S28a) South,Private & Voluntary Home Care,Milestones Trust,3744.69, 26-Feb-2013
1252,Revenue,CCHD,Supported Living - PS,Private & Voluntary Home Care,Milestones Trust,2300.62, 26-Feb-2013
1253,Revenue,CCHD,Supported Living - PS,Private & Voluntary Home Care,Milestones Trust,810.5, 26-Feb-2013
1254,Revenue,CCHD,Supported Living - PS,Private & Voluntary Day Care,Milestones Trust,829.28, 26-Feb-2013
1255,Revenue,CCHD,Supported Living (S28a) South,Private & Voluntary Home Care,Milestones Trust,601.98, 26-Feb-2013
1256,Revenue,CCHD,Bed purchasing - Elderly S117 - South,Nursing Homes,Mimosa Healthcare Holdings Ltd,1919.72, 19-Feb-2013
1257,Revenue,CCHD,Frenchay Hospital Purchasing,Nursing Homes,Mimosa Healthcare Holdings Ltd,1295.2, 19-Feb-2013
1258,Revenue,CCHD,Bed purchasing - Elderly MH - North,Nursing Homes,Mimosa Healthcare Holdings Ltd,862.52, 19-Feb-2013
1259,Revenue,CCHD,Bed Purchasing - Elderly - South,Nursing Homes,Mimosa Healthcare Holdings Ltd,959.72, 19-Feb-2013
1260,Revenue,CCHD,Frenchay Hospital Purchasing,Nursing Homes,Mimosa Healthcare Holdings Ltd,1295.2, 19-Feb-2013
1261,Revenue,CCHD,Southmead Hospital Purchasing,Residential Homes,Mimosa Healthcare Holdings Ltd,1403.2, 19-Feb-2013
1262,Revenue,CCHD,Southmead Hospital Purchasing,Nursing Homes,Mimosa Healthcare Holdings Ltd,1366.88, 19-Feb-2013
1263,Revenue,CCHD,Frenchay Hospital Purchasing,Nursing Homes,Mimosa Healthcare Holdings Ltd,2868.49, 19-Feb-2013
1264,Revenue,CCHD,Bed Purchasing - LD S28A- Over 65- South,Nursing Homes,Mortimer House Nursing Home,2996.52, 15-Feb-2013
1265,Revenue,CCHD,Bed Purchasing - LD S28A- Over 65- South,Nursing Homes,Mortimer House Nursing Home,2553.84, 15-Feb-2013
1266,Revenue,CCHD,Bed Purchasing - LD S28A- Over 65- South,Nursing Homes,Mortimer House Nursing Home,3271.92, 15-Feb-2013
1267,Revenue,CCHD,Bed Purchasing - S28A - Over 65- North,Nursing Homes,Mortimer House Nursing Home,3619.2, 15-Feb-2013
1268,Revenue,CCHD,Bed Purchasing - S28A - Over 65- North,Nursing Homes,Mortimer House Nursing Home,3619.2, 15-Feb-2013
1269,Revenue,CCHD,Bed purchasing - Elderly S117 - South,Residential Homes,Mostyn Lodge Residential Home,1880, 19-Feb-2013
1270,Revenue,CCHD,Frenchay Hospital Purchasing,Residential Homes,Mostyn Lodge Residential Home,622.96, 19-Feb-2013
1271,Revenue,CCHD,Social Lettings Agency,Other Supplies & Services,Individual,565, 22-Feb-2013
1272,Revenue,CCHD,Social Lettings Agency,Other Supplies & Services,Individual,850, 12-Feb-2013
1273,Revenue,CCHD,Bed Purchasing - Under 65s PWLD - South,Residential Homes,Mr J Davis & Mrs S Davis,958.76, 26-Feb-2013
1274,Revenue,CCHD,Social Lettings Agency,Other Supplies & Services,Individual,565, 08-Feb-2013
1275,Revenue,CCHD,Social Lettings Agency,Other Supplies & Services,Individual,632.81, 20-Feb-2013
1276,Revenue,CCHD,Social Lettings Agency,Other Supplies & Services,Individual,551.44, 08-Feb-2013
1277,Revenue,CCHD,Social Lettings Agency,Other Supplies & Services,Individual,565, 01-Feb-2013
1278,Revenue,CCHD,Social Lettings Agency,Other Supplies & Services,Individual,672.8, 15-Feb-2013
1279,Revenue,CCHD,Social Lettings Agency,Other Supplies & Services,Individual,632.81, 12-Feb-2013
1280,Revenue,CCHD,Tenancy Start Up Scheme,Other Supplies & Services,Individual,1500, 15-Feb-2013
1281,Revenue,CCHD,Supported Living - PS,Private & Voluntary Home Care,Mrs B Kimber,1580.49, 01-Feb-2013
1282,Revenue,CCHD,Supported Living - PS,Private & Voluntary Home Care,Mrs B Kimber,8618.72, 20-Feb-2013
1283,Revenue,CCHD,Supported Living - PS,Private & Voluntary Home Care,Mrs B Kimber,10723.81, 20-Feb-2013
1284,Revenue,CCHD,Elderly MH Day Care South,Private & Voluntary Day Care,Mrs B Kimber,572.57, 15-Feb-2013
1285,Revenue,CCHD,Purchase of Non-Res Care - PS,Private & Voluntary Day Care,Mrs B Kimber,1329.18, 20-Feb-2013
1286,Revenue,CCHD,Day Care - South,Private & Voluntary Day Care,Mrs B Kimber,808.09, 15-Feb-2013
1287,Revenue,CCHD,Day Care - North,Private & Voluntary Day Care,Mrs B Kimber,603, 19-Feb-2013
1288,Revenue,CCHD,Day Care - North,Private & Voluntary Day Care,Mrs B Kimber,814.86, 19-Feb-2013
1289,Revenue,CCHD,Home Care - Elderly - South,Other Small Contracts,Mrs B Kimber - Stepping Stones,4519.27, 06-Feb-2013
1290,Revenue,CCHD,Home Care - Elderly - North,Other Small Contracts,Mrs B Kimber - Stepping Stones,3328.3, 06-Feb-2013
1291,Revenue,CCHD,Day Care - South,Private & Voluntary Day Care,Mrs B Kimber - Stepping Stones,549.37, 06-Feb-2013
1292,Revenue,CCHD,Day Care - North,Private & Voluntary Day Care,Mrs B Kimber - Stepping Stones,72.18, 06-Feb-2013
1293,Revenue,CCHD,Home care - Elderly MH - North,Other Small Contracts,Mrs B Kimber - Stepping Stones,124.31, 06-Feb-2013
1294,Revenue,CCHD,Elderly MH Day Care North,Private & Voluntary Day Care,Mrs B Kimber - Stepping Stones,96.24, 06-Feb-2013
1295,Revenue,CCHD,Home care - Elderly MH - South,Other Small Contracts,Mrs B Kimber - Stepping Stones,216.54, 06-Feb-2013
1296,Revenue,CCHD,Supported Living - KD,Private & Voluntary Home Care,Mrs B Kimber - Stepping Stones,689.72, 06-Feb-2013
1297,Revenue,CCHD,Home Care - LD Under 65 - North,Private & Voluntary Home Care,Mrs B Kimber - Stepping Stones,48.12, 06-Feb-2013
1298,Revenue,CCHD,PWLD Home Care - Under 65 - KH,Private & Voluntary Home Care,Mrs B Kimber - Stepping Stones,84.21, 06-Feb-2013
1299,Revenue,CCHD,Home Care - Elderly LD - North,Private & Voluntary Home Care,Mrs B Kimber - Stepping Stones,1030.57, 06-Feb-2013
1300,Revenue,CCHD,Home Care - Elderly - South,Other Small Contracts,Mrs B Kimber - Stepping Stones,5846.58, 14-Feb-2013
1301,Revenue,CCHD,Home Care - Elderly - North,Other Small Contracts,Mrs B Kimber - Stepping Stones,3576.92, 14-Feb-2013
1302,Revenue,CCHD,Day Care - South,Private & Voluntary Day Care,Mrs B Kimber - Stepping Stones,549.37, 14-Feb-2013
1303,Revenue,CCHD,Day Care - North,Private & Voluntary Day Care,Mrs B Kimber - Stepping Stones,80.2, 14-Feb-2013
1304,Revenue,CCHD,Home care - Elderly MH - North,Other Small Contracts,Mrs B Kimber - Stepping Stones,116.29, 14-Feb-2013
1305,Revenue,CCHD,Elderly MH Day Care North,Private & Voluntary Day Care,Mrs B Kimber - Stepping Stones,96.24, 14-Feb-2013
1306,Revenue,CCHD,Home care - Elderly MH - South,Other Small Contracts,Mrs B Kimber - Stepping Stones,220.55, 14-Feb-2013
1307,Revenue,CCHD,Supported Living - KD,Private & Voluntary Home Care,Mrs B Kimber - Stepping Stones,802, 14-Feb-2013
1308,Revenue,CCHD,Home Care - LD Under 65 - North,Private & Voluntary Home Care,Mrs B Kimber - Stepping Stones,48.12, 14-Feb-2013
1309,Revenue,CCHD,PWLD Home Care - Under 65 - KH,Private & Voluntary Home Care,Mrs B Kimber - Stepping Stones,88.22, 14-Feb-2013
1310,Revenue,CCHD,Home Care - Elderly LD - North,Private & Voluntary Home Care,Mrs B Kimber - Stepping Stones,926.31, 14-Feb-2013
1311,Revenue,CCHD,Home Care - Elderly - South,Other Small Contracts,Mrs B Kimber - Stepping Stones,5662.12, 18-Feb-2013
1312,Revenue,CCHD,Home Care - Elderly - North,Other Small Contracts,Mrs B Kimber - Stepping Stones,3460.63, 18-Feb-2013
1313,Revenue,CCHD,Day Care - South,Private & Voluntary Day Care,Mrs B Kimber - Stepping Stones,501.25, 18-Feb-2013
1314,Revenue,CCHD,Day Care - North,Private & Voluntary Day Care,Mrs B Kimber - Stepping Stones,100.25, 18-Feb-2013
1315,Revenue,CCHD,Home care - Elderly MH - North,Other Small Contracts,Mrs B Kimber - Stepping Stones,124.31, 18-Feb-2013
1316,Revenue,CCHD,Elderly MH Day Care North,Private & Voluntary Day Care,Mrs B Kimber - Stepping Stones,96.24, 18-Feb-2013
1317,Revenue,CCHD,Home care - Elderly MH - South,Other Small Contracts,Mrs B Kimber - Stepping Stones,216.54, 18-Feb-2013
1318,Revenue,CCHD,Supported Living - KD,Private & Voluntary Home Care,Mrs B Kimber - Stepping Stones,793.98, 18-Feb-2013
1319,Revenue,CCHD,Home Care - LD Under 65 - North,Private & Voluntary Home Care,Mrs B Kimber - Stepping Stones,32.08, 18-Feb-2013
1320,Revenue,CCHD,PWLD Home Care - Under 65 - KH,Private & Voluntary Home Care,Mrs B Kimber - Stepping Stones,88.22, 18-Feb-2013
1321,Revenue,CCHD,Home Care - Elderly LD - North,Private & Voluntary Home Care,Mrs B Kimber - Stepping Stones,954.38, 18-Feb-2013
1322,Revenue,CCHD,Social Lettings Agency,Other Supplies & Services,Individual,632.81, 12-Feb-2013
1323,Revenue,CCHD,Social Lettings Agency,Other Supplies & Services,Individual,565, 22-Feb-2013
1324,Revenue,CCHD,Supported Living - KD,Residential Homes,Mrs I M Bowerman,1533.36, 05-Feb-2013
1325,Revenue,CCHD,Social Lettings Agency,Other Supplies & Services,Individual,565, 12-Feb-2013
1326,Revenue,CCHD,Supported Living - KD,Residential Homes,Mrs Julie Taylor,730.68, 08-Feb-2013
1327,Revenue,CCHD,Social Lettings Agency,Other Supplies & Services,Individual,655.41, 15-Feb-2013
1328,Revenue,CCHD,Purchase of Non-Res Care - KD,Private & Voluntary Day Care,Mrs W Thompson,1187.52, 07-Feb-2013
1329,Revenue,CCHD,Purchase of Non-Res Care - KD,Private & Voluntary Day Care,Mrs W Thompson,563.28, 07-Feb-2013
1330,Revenue,CCHD,Social Lettings Agency,Other Supplies & Services,Individual,858.8, 11-Feb-2013
1331,Revenue,CCHD,Community Care Contact Centre,Furniture & Fittings Loose,Muzzell Healthcare,760, 15-Feb-2013
1332,Revenue,CCHD,Alexandra Way,Cleaning & Domestic Services,Muzzell Healthcare,746.5, 21-Feb-2013
1333,Revenue,CCHD,Younger MH non-res purchasing,Private & Voluntary Day Care,NAS Services Limited,725.8, 08-Feb-2013
1334,Revenue,CCHD,Younger MH non-res purchasing,Private & Voluntary Day Care,NAS Services Limited,592.68, 21-Feb-2013
1335,Revenue,CCHD,Younger MH non-res purchasing,Private & Voluntary Day Care,NAS Services Limited,611.2, 21-Feb-2013
1336,Revenue,CCHD,Younger MH non-res purchasing,Private & Voluntary Day Care,NAS Services Limited,745.33, 21-Feb-2013
1337,Revenue,CCHD,Younger MH non-res purchasing,Other Small Contracts,NAS Services Limited,525.25, 22-Feb-2013
1338,Revenue,CCHD,Younger MH non-res purchasing,Private & Voluntary Day Care,NAS Services Limited,668.5, 22-Feb-2013
1339,Revenue,CCHD,Bed Purchasing - Under 65s PWLD - South,Residential Homes,National Star College,4547.72, 19-Feb-2013
1340,Revenue,CCHD,Purchase of Non-Res Care - KD,Private & Voluntary Day Care,Natureworks Training Community Interest,2169.7, 07-Feb-2013
1341,Revenue,CCHD,Younger MH non-res purchasing,Private & Voluntary Day Care,Natureworks Training Community Interest,1125, 22-Feb-2013
1342,Revenue,CCHD,Home Care - Elderly - South,Other Small Contracts,Network Health & Social Care,1493.8, 11-Feb-2013
1343,Revenue,CCHD,Home Care - Elderly - North,Other Small Contracts,Network Health & Social Care,5657.4, 11-Feb-2013
1344,Revenue,CCHD,Day Care - North,Private & Voluntary Day Care,Network Health & Social Care,30.8, 11-Feb-2013
1345,Revenue,CCHD,Home Care - Elderly - South,Other Small Contracts,Network Health & Social Care,1441, 28-Feb-2013
1346,Revenue,CCHD,Home Care - Elderly - North,Other Small Contracts,Network Health & Social Care,5530.26, 28-Feb-2013
1347,Revenue,CCHD,Day Care - North,Private & Voluntary Day Care,Network Health & Social Care,30.8, 28-Feb-2013
1348,Revenue,CCHD,Home Care - Elderly - South,Other Small Contracts,Network Health & Social Care,1455.3, 28-Feb-2013
1349,Revenue,CCHD,Home Care - Elderly - North,Other Small Contracts,Network Health & Social Care,5514.87, 28-Feb-2013
1350,Revenue,CCHD,Day Care - North,Private & Voluntary Day Care,Network Health & Social Care,38.5, 28-Feb-2013
1351,Revenue,CCHD,Home Care - Elderly - South,Other Small Contracts,Network Health & Social Care,1289.75, 28-Feb-2013
1352,Revenue,CCHD,Home Care - Elderly - North,Other Small Contracts,Network Health & Social Care,5753.57, 28-Feb-2013
1353,Revenue,CCHD,Day Care - North,Private & Voluntary Day Care,Network Health & Social Care,26.95, 28-Feb-2013
1354,Revenue,CCHD,Home Care - Elderly - South,Other Small Contracts,Network Health & Social Care,1151.15, 28-Feb-2013
1355,Revenue,CCHD,Home Care - Elderly - North,Other Small Contracts,Network Health & Social Care,6027, 28-Feb-2013
1356,Revenue,CCHD,Home Care - Elderly - South,Other Small Contracts,Network Health & Social Care,1112.65, 28-Feb-2013
1357,Revenue,CCHD,Home Care - Elderly - North,Other Small Contracts,Network Health & Social Care,6188.7, 28-Feb-2013
1358,Revenue,CCHD,Day Care - North,Private & Voluntary Day Care,Network Health & Social Care,26.95, 28-Feb-2013
1359,Revenue,CCHD,Home Care - Elderly - South,Other Small Contracts,Network Health & Social Care,1228.15, 28-Feb-2013
1360,Revenue,CCHD,Home Care - Elderly - North,Other Small Contracts,Network Health & Social Care,6392.75, 28-Feb-2013
1361,Revenue,CCHD,Day Care - North,Private & Voluntary Day Care,Network Health & Social Care,19.25, 28-Feb-2013
1362,Revenue,CCHD,Home Care - Elderly - South,Other Small Contracts,Network Health & Social Care,1039.5, 28-Feb-2013
1363,Revenue,CCHD,Home Care - Elderly - North,Other Small Contracts,Network Health & Social Care,5999.38, 28-Feb-2013
1364,Revenue,CCHD,Day Care - North,Private & Voluntary Day Care,Network Health & Social Care,26.95, 28-Feb-2013
1365,Revenue,CCHD,Home Care - Elderly - South,Other Small Contracts,Network Health & Social Care,1224.3, 28-Feb-2013
1366,Revenue,CCHD,Home Care - Elderly - North,Other Small Contracts,Network Health & Social Care,6485.15, 28-Feb-2013
1367,Revenue,CCHD,Day Care - North,Private & Voluntary Day Care,Network Health & Social Care,26.95, 28-Feb-2013
1368,Revenue,CCHD,Social Lettings Agency,Other Supplies & Services,Individual,565, 04-Feb-2013
1369,Revenue,CCHD,Assessment Team,"Holidays, Outings & Visits",Neville Williams,1008, 28-Feb-2013
1370,Revenue,CCHD,Bed Purchasing - Under 65s PWLD - South,Residential Homes,Nightingale Nursing Home,3076.64, 19-Feb-2013
1371,Revenue,CCHD,Information Systems - Software,Software Support & Maintenance,Northgate Information Solutions UK Limited,14000, 27-Feb-2013
1372,Revenue,CCHD,Bed Purchasing - Under 65s PWLD - South,Residential Homes,Norwood   Broadway House,4853.64, 19-Feb-2013
1373,Revenue,CCHD,Bed Purchasing - Elderly MH - South,Residential Homes,Notaro Homes Ltd  Queensmead Court,1839.64, 19-Feb-2013
1374,Revenue,CCHD,Southmead Hospital Purchasing,Residential Homes,Notaro Homes Ltd  Queensmead Court,1362.84, 19-Feb-2013
1375,Revenue,CCHD,Bed purchasing - Elderly MH - North,Residential Homes,Notaro Homes Ltd  Queensmead Court,8142.86, 19-Feb-2013
1376,Revenue,CCHD,Home Care - Elderly - South,Other Small Contracts,Nursing Solutions Limited,710.24, 12-Feb-2013
1377,Revenue,CCHD,Home Care - Elderly - South,Other Small Contracts,Nursing Solutions Limited,725.68, 12-Feb-2013
1378,Revenue,CCHD,Home Care - Elderly - South,Other Small Contracts,Nursing Solutions Limited,775.86, 12-Feb-2013
1379,Revenue,CCHD,Home Care - Elderly - South,Other Small Contracts,Nursing Solutions Limited,1154.14, 28-Feb-2013
1380,Revenue,CCHD,Planning and Partnerships procurement,Conference Expenses,Nurture Development,866.71, 18-Feb-2013
1381,Revenue,CCHD,Bed Purchasing - Elderly - South,Residential Homes,Oaktree Lodge,1267.76, 19-Feb-2013
1382,Revenue,CCHD,Day Care - North,Private & Voluntary Day Care,Oakwood Court College,515.52, 28-Feb-2013
1383,Revenue,CCHD,Woodleaze,Refuse Collection Charges,OCS Group UK Ltd,468.51, 14-Feb-2013
1384,Revenue,CCHD,Kingswood Centre - Maples Suite,Contract Hire & Operational Leases,OCS Group UK Ltd,483.6, 01-Feb-2013
1385,Revenue,CCHD,Home Care - Elderly - South,Other Small Contracts,On the Up,270.36, 18-Feb-2013
1386,Revenue,CCHD,Day Care - South,Private & Voluntary Day Care,On the Up,506.16, 18-Feb-2013
1387,Revenue,CCHD,Day Care - North,Private & Voluntary Day Care,On the Up,305.52, 18-Feb-2013
1388,Revenue,CCHD,Younger MH non-res purchasing,Private & Voluntary Day Care,On the Up,145.92, 18-Feb-2013
1389,Revenue,CCHD,Elderly MH Day Care North,Private & Voluntary Day Care,On the Up,61.12, 18-Feb-2013
1390,Revenue,CCHD,Home Care - Elderly - South,Other Small Contracts,On the Up,550.46, 18-Feb-2013
1391,Revenue,CCHD,Day Care - South,Private & Voluntary Day Care,On the Up,599.94, 18-Feb-2013
1392,Revenue,CCHD,Day Care - North,Private & Voluntary Day Care,On the Up,456, 18-Feb-2013
1393,Revenue,CCHD,Younger MH non-res purchasing,Private & Voluntary Day Care,On the Up,177.84, 18-Feb-2013
1394,Revenue,CCHD,Elderly MH Day Care North,Private & Voluntary Day Care,On the Up,61.12, 18-Feb-2013
1395,Revenue,CCHD,Bed purchasing -S28A  Under 65 - North,Residential Homes,Orchard End Limited,7580.16, 19-Feb-2013
1396,Revenue,CCHD,Bed Purchasing - Elderly S117- North,Residential Homes,Osbourne Court,1879.04, 19-Feb-2013
1397,Revenue,CCHD,Bed Purchasing - Elderly - North,Residential Homes,Osbourne Court,2619.2, 19-Feb-2013
1398,Revenue,CCHD,Bed Purchasing - Elderly - North,Residential Homes,Osbourne Court,2395.2, 19-Feb-2013
1399,Revenue,CCHD,Bed purchasing - Elderly MH - North,Residential Homes,Osbourne Court,3060, 19-Feb-2013
1400,Revenue,CCHD,Bed Purchasing - Elderly S117- North,Residential Homes,Osbourne Court,1716, 19-Feb-2013
1401,Revenue,CCHD,Bed Purchasing - Elderly S117- North,Residential Homes,Osbourne Court,1880, 19-Feb-2013
1402,Revenue,CCHD,Southmead Hospital Purchasing,Residential Homes,Osbourne Court,860.6, 19-Feb-2013
1403,Revenue,CCHD,Bed Purchasing - Elderly - North,Residential Homes,Osbourne Court,1899.67, 19-Feb-2013
1404,Revenue,CCHD,Bed Purchasing - Under 65s PWLD - South,Residential Homes,Osprey Court,7564.96, 19-Feb-2013
1405,Revenue,CCHD,Bed purchasing - S28A Under 65 - South,Residential Homes,Osprey Court,4219.68, 19-Feb-2013
1406,Revenue,CCHD,Bed purchasing - S28A Under 65 - South,Residential Homes,Osprey Court,6249.96, 19-Feb-2013
1407,Revenue,CCHD,Southmead Hospital Purchasing,Nursing Homes,Palm Court Nursing Home,5071.3, 19-Feb-2013
1408,Revenue,CCHD,Bed Purchasing - Elderly MH - South,Residential Homes,Park Farm House,1330.8, 19-Feb-2013
1409,Revenue,CCHD,Bed Purchasing - Elderly - South,Residential Homes,Park Farm House,1769.4, 19-Feb-2013
1410,Revenue,CCHD,Bed Purchasing - Elderly - South,Residential Homes,Park Farm House,1880, 19-Feb-2013
1411,Revenue,CCHD,Bed Purchasing - Elderly MH - South,Residential Homes,Park Farm House,1582.64, 19-Feb-2013
1412,Revenue,CCHD,Bed Purchasing - Under 65s PWLD - South,Residential Homes,Park Hall,5500, 19-Feb-2013
1413,Revenue,CCHD,Bed purchasing - Under 65s PWLD - North,Residential Homes,Park Hall,5082.32, 19-Feb-2013
1414,Revenue,CCHD,Bed Purchasing - Under 65s PWLD - South,Residential Homes,Park Hall,4894.68, 19-Feb-2013
1415,Revenue,CCHD,Bed Purchasing - Under 65s PWLD - South,Residential Homes,Park Hall,2173.96, 19-Feb-2013
1416,Revenue,CCHD,Bed purchasing - Elderly PWLD - South,Residential Homes,Park Hall,2501.56, 19-Feb-2013
1417,Revenue,CCHD,Bed Purchasing - Under 65s PWLD - South,Residential Homes,Park Hall,3788.6, 19-Feb-2013
1418,Revenue,CCHD,Bed purchasing - Elderly PWLD - North,Residential Homes,Park Hall,4855.8, 19-Feb-2013
1419,Revenue,CCHD,Bed purchasing - S28A Under 65 - South,Residential Homes,Park Hall,4571.08, 19-Feb-2013
1420,Revenue,CCHD,Bed Purchasing - Under 65s PWLD - South,Residential Homes,Park Hall,4871.2, 19-Feb-2013
1421,Revenue,CCHD,Bed purchasing - Under 65s PWLD - North,Residential Homes,Park Hall,4274.52, 19-Feb-2013
1422,Revenue,CCHD,Bed Purchasing - S28A - Over 65- North,Residential Homes,Park Hall,5240.84, 19-Feb-2013
1423,Revenue,CCHD,Bed Purchasing - Under 65s PWLD - South,Residential Homes,Park Hall,10510.04, 19-Feb-2013
1424,Revenue,CCHD,Bed purchasing -S28A  Under 65 - North,Residential Homes,Park Hall,5789.4, 19-Feb-2013
1425,Revenue,CCHD,Bed purchasing - S28A Under 65 - South,Residential Homes,Park Hall,5529.44, 19-Feb-2013
1426,Revenue,CCHD,Bed Purchasing - Under 65s PWLD - South,Residential Homes,Penleigh House Care Home,4451.6, 19-Feb-2013
1427,Revenue,CCHD,Bed Purchasing - Under 65s PWLD - South,Residential Homes,Penleigh House Care Home,5175.52, 19-Feb-2013
1428,Revenue,CCHD,Bed purchasing - Elderly PWLD - South,Residential Homes,Penleigh House Care Home,4222.56, 19-Feb-2013
1429,Revenue,CCHD,Bed Purchasing - Under 65s PWLD - South,Residential Homes,Penleigh House Care Home,4599.76, 19-Feb-2013
1430,Revenue,CCHD,Bed purchasing - S28A Under 65 - South,Residential Homes,Penleigh House Care Home,5366.32, 19-Feb-2013
1431,Revenue,CCHD,Bed Purchasing - Under 65s PWLD - South,Residential Homes,Penleigh House Care Home,4847.56, 19-Feb-2013
1432,Revenue,CCHD,Supporting People Programme,Grants to Voluntary Bodies,Places for People,1107, 01-Feb-2013
1433,Revenue,CCHD,Bed and Breakfast,Bed & Breakfast,Pleasant Bed & Breakfast Limited,588, 01-Feb-2013
1434,Revenue,CCHD,Bed and Breakfast,Bed & Breakfast,Pleasant Bed & Breakfast Limited,588, 08-Feb-2013
1435,Revenue,CCHD,Bed and Breakfast,Bed & Breakfast,Pleasant Bed & Breakfast Limited,588, 15-Feb-2013
1436,Revenue,CCHD,Bed and Breakfast,Bed & Breakfast,Pleasant Bed & Breakfast Limited,504, 22-Feb-2013
1437,Revenue,CCHD,Home Care - Elderly - South,Other Small Contracts,Premier Homecare Limited,757.68, 06-Feb-2013
1438,Revenue,CCHD,Home Care - Elderly - North,Other Small Contracts,Premier Homecare Limited,5614.95, 06-Feb-2013
1439,Revenue,CCHD,Day Care - North,Private & Voluntary Day Care,Premier Homecare Limited,121.77, 06-Feb-2013
1440,Revenue,CCHD,Younger MH non-res purchasing,Private & Voluntary Day Care,Premier Homecare Limited,27.06, 06-Feb-2013
1441,Revenue,CCHD,Home care - Elderly MH - North,Other Small Contracts,Premier Homecare Limited,162.36, 06-Feb-2013
1442,Revenue,CCHD,Elderly MH Day Care North,Private & Voluntary Day Care,Premier Homecare Limited,157.85, 06-Feb-2013
1443,Revenue,CCHD,Home Care - Elderly - South,Other Small Contracts,Premier Homecare Limited,983.18, 11-Feb-2013
1444,Revenue,CCHD,Home Care - Elderly - North,Other Small Contracts,Premier Homecare Limited,4848.25, 11-Feb-2013
1445,Revenue,CCHD,Day Care - North,Private & Voluntary Day Care,Premier Homecare Limited,90.2, 11-Feb-2013
1446,Revenue,CCHD,Younger MH non-res purchasing,Private & Voluntary Day Care,Premier Homecare Limited,27.06, 11-Feb-2013
1447,Revenue,CCHD,Home care - Elderly MH - North,Other Small Contracts,Premier Homecare Limited,162.36, 11-Feb-2013
1448,Revenue,CCHD,Elderly MH Day Care North,Private & Voluntary Day Care,Premier Homecare Limited,198.44, 11-Feb-2013
1449,Revenue,CCHD,Home Care - Elderly - South,Other Small Contracts,Premier Homecare Limited,1046.32, 20-Feb-2013
1450,Revenue,CCHD,Home Care - Elderly - North,Other Small Contracts,Premier Homecare Limited,5747.6, 20-Feb-2013
1451,Revenue,CCHD,Day Care - North,Private & Voluntary Day Care,Premier Homecare Limited,99.22, 20-Feb-2013
1452,Revenue,CCHD,Younger MH non-res purchasing,Private & Voluntary Day Care,Premier Homecare Limited,27.06, 20-Feb-2013
1453,Revenue,CCHD,Home care - Elderly MH - North,Other Small Contracts,Premier Homecare Limited,162.36, 20-Feb-2013
1454,Revenue,CCHD,Elderly MH Day Care North,Private & Voluntary Day Care,Premier Homecare Limited,207.46, 20-Feb-2013
1455,Revenue,CCHD,Home Care - Elderly - South,Other Small Contracts,Premier Homecare Limited,956.12, 26-Feb-2013
1456,Revenue,CCHD,Home Care - Elderly - North,Other Small Contracts,Premier Homecare Limited,5601.42, 26-Feb-2013
1457,Revenue,CCHD,Younger MH non-res purchasing,Private & Voluntary Day Care,Premier Homecare Limited,27.06, 26-Feb-2013
1458,Revenue,CCHD,Home care - Elderly MH - North,Other Small Contracts,Premier Homecare Limited,171.38, 26-Feb-2013
1459,Revenue,CCHD,Elderly MH Day Care North,Private & Voluntary Day Care,Premier Homecare Limited,207.46, 26-Feb-2013
1460,Revenue,CCHD,Home Care - Elderly - South,Other Small Contracts,Prestige Nursing,439.81, 11-Feb-2013
1461,Revenue,CCHD,Home Care - Elderly - North,Other Small Contracts,Prestige Nursing,1123.01, 11-Feb-2013
1462,Revenue,CCHD,Day Care - South,Private & Voluntary Day Care,Prestige Nursing,269.01, 11-Feb-2013
1463,Revenue,CCHD,Day Care - North,Private & Voluntary Day Care,Prestige Nursing,670.39, 11-Feb-2013
1464,Revenue,CCHD,Home care - Elderly MH - North,Other Small Contracts,Prestige Nursing,392.84, 11-Feb-2013
1465,Revenue,CCHD,Elderly MH Day Care North,Private & Voluntary Day Care,Prestige Nursing,290.36, 11-Feb-2013
1466,Revenue,CCHD,Home Care - Elderly - South,Other Small Contracts,Prestige Nursing,405.65, 12-Feb-2013
1467,Revenue,CCHD,Home Care - Elderly - North,Other Small Contracts,Prestige Nursing,943.67, 12-Feb-2013
1468,Revenue,CCHD,Day Care - South,Private & Voluntary Day Care,Prestige Nursing,213.5, 12-Feb-2013
1469,Revenue,CCHD,Day Care - North,Private & Voluntary Day Care,Prestige Nursing,461.16, 12-Feb-2013
1470,Revenue,CCHD,Home care - Elderly MH - North,Other Small Contracts,Prestige Nursing,354.41, 12-Feb-2013
1471,Revenue,CCHD,Elderly MH Day Care North,Private & Voluntary Day Care,Prestige Nursing,239.12, 12-Feb-2013
1472,Revenue,CCHD,Home Care - Elderly - South,Other Small Contracts,Prestige Nursing,516.67, 12-Feb-2013
1473,Revenue,CCHD,Home Care - Elderly - North,Other Small Contracts,Prestige Nursing,1216.95, 12-Feb-2013
1474,Revenue,CCHD,Day Care - South,Private & Voluntary Day Care,Prestige Nursing,324.52, 12-Feb-2013
1475,Revenue,CCHD,Day Care - North,Private & Voluntary Day Care,Prestige Nursing,572.18, 12-Feb-2013
1476,Revenue,CCHD,Home care - Elderly MH - North,Other Small Contracts,Prestige Nursing,380.03, 12-Feb-2013
1477,Revenue,CCHD,Elderly MH Day Care North,Private & Voluntary Day Care,Prestige Nursing,341.6, 12-Feb-2013
1478,Revenue,CCHD,Training - Adult Services,Training Expenses,Qualsafe.com,950, 22-Feb-2013
1479,Revenue,CCHD,Training - Adult Services,Training Expenses,Quantum Property Partnership,472.25, 15-Feb-2013
1480,Revenue,CCHD,Bed purchasing - Elderly MH - North,Nursing Homes,Ravenswood,1265.84, 19-Feb-2013
1481,Revenue,CCHD,Bed Purchasing - Elderly - South,Residential Homes,Ravenswood,3781.68, 19-Feb-2013
1482,Revenue,CCHD,Bed Purchasing - Elderly - North,Nursing Homes,Ravenswood,1534.96, 19-Feb-2013
1483,Revenue,CCHD,Bed Purchasing - PWLD S 117 Placements,Residential Homes,Real Life Options,7904.04, 19-Feb-2013
1484,Revenue,CCHD,Supporting People Programme,Grants to Voluntary Bodies,Redland Housing Association Ltd,720.16, 01-Feb-2013
1485,Revenue,CCHD,Bed Purchasing - Elderly - South,Residential Homes,Regent House,11751.84, 19-Feb-2013
1486,Revenue,CCHD,Bed Purchasing - Elderly - South,Residential Homes,Regent House,2208.4, 19-Feb-2013
1487,Revenue,CCHD,Bed Purchasing - Elderly - South,Nursing Homes,Regent House,1637.96, 19-Feb-2013
1488,Revenue,CCHD,Bed Purchasing - Elderly MH - South,Nursing Homes,Regent House,1980.12, 19-Feb-2013
1489,Revenue,CCHD,Bed Purchasing - Elderly - South,Nursing Homes,Regent House,1686.16, 19-Feb-2013
1490,Revenue,CCHD,Bed Purchasing - Elderly - South,Nursing Homes,Regent House,2029.8, 19-Feb-2013
1491,Revenue,CCHD,Bed Purchasing - Elderly - South,Nursing Homes,Regent House,1961.92, 19-Feb-2013
1492,Revenue,CCHD,South Glos Users in South Glos Homes,Nursing Homes,Regent House,1195.7, 19-Feb-2013
1493,Revenue,CCHD,South Glos Users in South Glos Homes,Nursing Homes,Regent House,3990.84, 19-Feb-2013
1494,Revenue,CCHD,Bed Purchasing - Elderly - South,Nursing Homes,Regent House,1796.8, 19-Feb-2013
1495,Revenue,CCHD,Bed Purchasing - Elderly - South,Nursing Homes,Regent House,1637.96, 19-Feb-2013
1496,Revenue,CCHD,Bed Purchasing - Elderly - South,Nursing Homes,Regent House,632.92, 19-Feb-2013
1497,Revenue,CCHD,Bed Purchasing - Elderly - South,Nursing Homes,Regent House,2035.48, 19-Feb-2013
1498,Revenue,CCHD,Bed Purchasing - Elderly - South,Nursing Homes,Regent House,1017.74, 19-Feb-2013
1499,Revenue,CCHD,Southmead Hospital Purchasing,Nursing Homes,Regent House,1379.88, 19-Feb-2013
1500,Revenue,CCHD,Bed Purchasing - Elderly - South,Nursing Homes,Regent House,1423.28, 19-Feb-2013
1501,Revenue,CCHD,Bed Purchasing - Elderly - South,Nursing Homes,Regent House,1635.28, 19-Feb-2013
1502,Revenue,CCHD,Bed Purchasing - Elderly MH - South,Nursing Homes,Regent House,1195.08, 19-Feb-2013
1503,Revenue,CCHD,Bed purchasing - Elderly MH - North,Nursing Homes,Regent House,1276.8, 19-Feb-2013
1504,Revenue,CCHD,Bed Purchasing - Elderly - South,Nursing Homes,Regent House,2581.2, 19-Feb-2013
1505,Revenue,CCHD,Bed Purchasing - Under 65s PWLD - South,Residential Homes,Ridgeway House,3418.56, 19-Feb-2013
1506,Revenue,CCHD,Bed Purchasing - Under 65s PWLD - South,Residential Homes,Riverside House,3524.88, 19-Feb-2013
1507,Revenue,CCHD,Bed Purchasing - Elderly - South,Nursing Homes,Riversway Nursing Home,1156.6, 19-Feb-2013
1508,Revenue,CCHD,Bed Purchasing - Elderly - South,Nursing Homes,Riversway Nursing Home,1243.21, 19-Feb-2013
1509,Revenue,CCHD,Bed Purchasing - Elderly - South,Nursing Homes,Riversway Nursing Home,1953.92, 19-Feb-2013
1510,Revenue,CCHD,Bed purchasing - Elderly PWLD - South,Residential Homes,Rockleaze,2159.92, 19-Feb-2013
1511,Revenue,CCHD,Bed purchasing - Elderly PWLD - South,Residential Homes,Rockleaze,1399.76, 19-Feb-2013
1512,Revenue,CCHD,Bed Purchasing - LD S28A- Over 65- South,Residential Homes,Rockleaze,2039.28, 19-Feb-2013
1513,Revenue,CCHD,Bed Purchasing - Under 65s PWLD - South,Residential Homes,Rockleaze,2364.24, 19-Feb-2013
1514,Revenue,CCHD,Bed purchasing - Elderly PWLD - South,Residential Homes,Rockleaze,1399.76, 19-Feb-2013
1515,Revenue,CCHD,Bed Purchasing - Under 65s PWLD - South,Nursing Homes,Room K4,4930.56, 19-Feb-2013
1516,Revenue,CCHD,Bed Purchasing - LD S28A- Over 65- South,Residential Homes,Room K4,3170.04, 19-Feb-2013
1517,Revenue,CCHD,Bed Purchasing - Under 65s PWLD - South,Residential Homes,Room K4,11325.76, 19-Feb-2013
1518,Revenue,CCHD,Bed Purchasing - Under 65s PWLD - South,Residential Homes,Room K4,3939.8, 19-Feb-2013
1519,Revenue,CCHD,Bed purchasing - Under 65s PWLD - North,Residential Homes,Room K4,5182.6, 19-Feb-2013
1520,Revenue,CCHD,Bed purchasing - Elderly PWLD - South,Residential Homes,Room K4,3384.16, 19-Feb-2013
1521,Revenue,CCHD,Bed Purchasing - LD S28A- Over 65- South,Residential Homes,Room K4,3835.12, 19-Feb-2013
1522,Revenue,CCHD,Bed Purchasing - Under 65s PWLD - South,Nursing Homes,Room K4,4922.36, 19-Feb-2013
1523,Revenue,CCHD,Bed purchasing - S28A Under 65 - South,Nursing Homes,Room K4,5249.04, 19-Feb-2013
1524,Revenue,CCHD,Bed purchasing - S28A Under 65 - South,Residential Homes,Room K4,4790.52, 19-Feb-2013
1525,Revenue,CCHD,Bed purchasing - S28A Under 65 - South,Nursing Homes,Room K4,5249.04, 19-Feb-2013
1526,Revenue,CCHD,Bed Purchasing - LD S28A- Over 65- South,Nursing Homes,Room K4,5083.64, 19-Feb-2013
1527,Revenue,CCHD,Bed Purchasing - LD S28A- Over 65- South,Nursing Homes,Room K4,4750.08, 19-Feb-2013
1528,Revenue,CCHD,Bed Purchasing - Under 65s PWLD - South,Residential Homes,Room K4,3336.6, 19-Feb-2013
1529,Revenue,CCHD,Bed Purchasing - S28A - Over 65- North,Nursing Homes,Room K4,5369.72, 19-Feb-2013
1530,Revenue,CCHD,Bed purchasing - S28A Under 65 - South,Residential Homes,Room K4,5078.48, 19-Feb-2013
1531,Revenue,CCHD,Bed purchasing - S28A Under 65 - South,Residential Homes,Room K4,5132.8, 19-Feb-2013
1532,Revenue,CCHD,Bed Purchasing - S28A - Over 65- North,Residential Homes,Room K4,7213.64, 19-Feb-2013
1533,Revenue,CCHD,Bed purchasing - S28A Under 65 - South,Nursing Homes,Room K4,5249.04, 19-Feb-2013
1534,Revenue,CCHD,Bed purchasing - S28A Under 65 - South,Nursing Homes,Room K4,5249.04, 19-Feb-2013
1535,Revenue,CCHD,Bed purchasing -S28A  Under 65 - North,Nursing Homes,Room K4,4234.16, 19-Feb-2013
1536,Revenue,CCHD,Bed purchasing - S28A Under 65 - South,Residential Homes,Room K4,5132.8, 19-Feb-2013
1537,Revenue,CCHD,Bed Purchasing - LD S28A- Over 65- South,Residential Homes,Room K4,4641.6, 19-Feb-2013
1538,Revenue,CCHD,Bed Purchasing - Under 65s PWLD - South,Residential Homes,Rosewood Lodge & Brook House,4460.6, 19-Feb-2013
1539,Revenue,CCHD,Bed Purchasing - Elderly MH - South,Residential Homes,Ross Healthcare,1280.12, 19-Feb-2013
1540,Revenue,CCHD,Day Care - North,Private & Voluntary Day Care,Royal National Institute For Deaf People,568.31, 04-Feb-2013
1541,Revenue,CCHD,Bed Purchasing - Elderly - South,Nursing Homes,Saffron Gardens,1955.84, 19-Feb-2013
1542,Revenue,CCHD,Southmead Hospital Purchasing,Nursing Homes,Saffron Gardens,700.52, 19-Feb-2013
1543,Revenue,CCHD,Southmead Hospital Purchasing,Residential Homes,Saffron Gardens,1239.36, 19-Feb-2013
1544,Revenue,CCHD,Bed Purchasing - Elderly MH - South,Nursing Homes,Saffron Gardens,2029.8, 19-Feb-2013
1545,Revenue,CCHD,South Glos Users in South Glos Homes,Nursing Homes,Saffron Gardens,1956.6, 19-Feb-2013
1546,Revenue,CCHD,Bed Purchasing - Elderly - North,Nursing Homes,Saffron Gardens,1371, 19-Feb-2013
1547,Revenue,CCHD,Bed Purchasing - Elderly - North,Nursing Homes,Saffron Gardens,928.57, 19-Feb-2013
1548,Revenue,CCHD,Bed Purchasing - Elderly - South,Residential Homes,Saffron Gardens,1269.4, 19-Feb-2013
1549,Revenue,CCHD,Bed Purchasing - Under 65s PWLD - South,Residential Homes,Salters Hill Barn,1995.2, 19-Feb-2013
1550,Revenue,CCHD,Learning Difficulties PSL,Rent,Individual,1400, 01-Feb-2013
1551,Revenue,CCHD,Bed purchasing - Under 65s PWLD - North,Residential Homes,Scope   Accounts Dept,4910.2, 19-Feb-2013
1552,Revenue,CCHD,Bed Purchasing - Under 65s PWLD - South,Residential Homes,Scope   Accounts Dept,2999.88, 19-Feb-2013
1553,Revenue,CCHD,Supported Living - KD,Private & Voluntary Home Care,SeeAbility,4633.57, 04-Feb-2013
1554,Revenue,CCHD,Supported Living - KD,Private & Voluntary Home Care,SeeAbility,4484.1, 04-Feb-2013
1555,Revenue,CCHD,Southmead Hospital Purchasing,Nursing Homes,Sefton Hall Res. & Nursing Home,1944, 19-Feb-2013
1556,Revenue,CCHD,Supported Living - PS,Private & Voluntary Home Care,Selborne Care Ltd,6587.68, 19-Feb-2013
1557,Revenue,CCHD,Supported Living - PS,Private & Voluntary Home Care,Selborne Care Ltd,823.46, 19-Feb-2013
1558,Revenue,CCHD,Supported Living - PS,Private & Voluntary Home Care,Selborne Care Ltd,1734.8, 20-Feb-2013
1559,Revenue,CCHD,Supported Living - PS,Private & Voluntary Home Care,Selborne Care Ltd,2634.96, 20-Feb-2013
1560,Revenue,CCHD,Supported Living - PS,Private & Voluntary Home Care,Selborne Care Ltd,1020.16, 20-Feb-2013
1561,Revenue,CCHD,Purchase of Non-Res Care - KD,Private & Voluntary Day Care,Selborne Care Ltd,1322.4, 26-Feb-2013
1562,Revenue,CCHD,Supported Living - PS,Private & Voluntary Home Care,Selborne Care Ltd,5080.44, 20-Feb-2013
1563,Revenue,CCHD,Purchase of Non-Res Care - KD,Private & Voluntary Day Care,Selborne Care Ltd,892.64, 21-Feb-2013
1564,Revenue,CCHD,Supported Living - PS,Private & Voluntary Home Care,Selborne Care Ltd,1147.8, 20-Feb-2013
1565,Revenue,CCHD,Purchase of Non-Res Care - KD,Private & Voluntary Day Care,Selborne Care Ltd,725.88, 28-Feb-2013
1566,Revenue,CCHD,Supported Living - PS,Private & Voluntary Home Care,Selborne Care Ltd,510.08, 20-Feb-2013
1567,Revenue,CCHD,Supported Living - PS,Private & Voluntary Home Care,Selborne Care Ltd,4573.44, 20-Feb-2013
1568,Revenue,CCHD,Purchase of Non-Res Care - KD,Private & Voluntary Day Care,Selborne Care Ltd,673.72, 26-Feb-2013
1569,Revenue,CCHD,Supported Living - PS,Private & Voluntary Home Care,Selborne Care Ltd,549.4, 20-Feb-2013
1570,Revenue,CCHD,Supported Living - PS,Private & Voluntary Home Care,Selborne Care Ltd,1821.33, 20-Feb-2013
1571,Revenue,CCHD,Purchase of Non-Res Care - KD,Private & Voluntary Day Care,Selborne Care Ltd,523.28, 26-Feb-2013
1572,Revenue,CCHD,Supported Living - PS,Private & Voluntary Home Care,Selborne Care Ltd,3293.84, 20-Feb-2013
1573,Revenue,CCHD,Home Energy Conservation Act Activities,Other Supplies & Services,Severn Wye Energy Agency Ltd,5000, 15-Feb-2013
1574,Revenue,CCHD,Home Energy Conservation Act Activities,Other Supplies & Services,Severn Wye Energy Agency Ltd,3000, 15-Feb-2013
1575,Revenue,CCHD,Bed purchasing - Elderly PWLD - South,Nursing Homes,Shaw Healthcare Limited,7507.2, 19-Feb-2013
1576,Revenue,CCHD,Southmead Hospital Purchasing,Nursing Homes,Shaw Healthcare Ltd,1467.2, 19-Feb-2013
1577,Revenue,CCHD,Bed Purchasing - Elderly - South,Nursing Homes,Shaw Healthcare Ltd,1531.09, 19-Feb-2013
1578,Revenue,CCHD,Bed Purchasing - Elderly S117- North,Nursing Homes,Shaw Healthcare Ltd,1944, 19-Feb-2013
1579,Revenue,CCHD,Bed purchasing - Elderly S117 - South,Nursing Homes,Shaw Healthcare Ltd,1973.2, 19-Feb-2013
1580,Revenue,CCHD,Bed purchasing - Elderly MH - North,Nursing Homes,Shaw Healthcare Ltd,1226.36, 19-Feb-2013
1581,Revenue,CCHD,Bed purchasing - S28A Under 65 - South,Residential Homes,Shaw Healthcare Ltd,10408.68, 19-Feb-2013
1582,Revenue,CCHD,Bed purchasing - S28A Under 65 - South,Residential Homes,Shaw Healthcare Ltd,10410.04, 19-Feb-2013
1583,Revenue,CCHD,Bed purchasing - S28A Under 65 - South,Residential Homes,Shaw Healthcare Ltd,10243.28, 19-Feb-2013
1584,Revenue,CCHD,S117 Placements PCT,Residential Homes,Shaw Healthcare Ltd,15360.76, 19-Feb-2013
1585,Revenue,CCHD,Bed Purchasing - Under 65s PWLD - South,Nursing Homes,Shaw Healthcare Ltd,9662.08, 19-Feb-2013
1586,Revenue,CCHD,Bed Purchasing - Under 65s PWLD - South,Residential Homes,Shaw Healthcare Ltd,8892.88, 19-Feb-2013
1587,Revenue,CCHD,Bed purchasing - Elderly PWLD - South,Residential Homes,Shaw Healthcare Ltd,3875.12, 19-Feb-2013
1588,Revenue,CCHD,Bed purchasing - S28A Under 65 - South,Residential Homes,Shaw Healthcare Ltd,10295.84, 19-Feb-2013
1589,Revenue,CCHD,Bed purchasing - S28A Under 65 - South,Residential Homes,Shaw Healthcare Ltd,11942.52, 19-Feb-2013
1590,Revenue,CCHD,Bed Purchasing - S28A - Over 65- North,Residential Homes,Shaw Healthcare Ltd,4203.2, 19-Feb-2013
1591,Revenue,CCHD,Bed purchasing -S28A  Under 65 - North,Residential Homes,Shaw Healthcare Ltd,4218.4, 19-Feb-2013
1592,Revenue,CCHD,Bed Purchasing - LD S28A- Over 65- South,Residential Homes,Shaw Healthcare Ltd,4722.48, 19-Feb-2013
1593,Revenue,CCHD,Bed Purchasing - Under 65s PWLD - South,Nursing Homes,Shaw Healthcare Ltd,9995.92, 19-Feb-2013
1594,Revenue,CCHD,Bed Purchasing - Elderly - South,Residential Homes,Shaw Healthcare Ltd,6595.34, 19-Feb-2013
1595,Revenue,CCHD,Bed Purchasing - Elderly - South,Residential Homes,Shaw Healthcare Ltd,618.31, 19-Feb-2013
1596,Revenue,CCHD,Bed Purchasing - LD S28A- Over 65- South,Residential Homes,Shaw Healthcare Ltd,4404, 19-Feb-2013
1597,Revenue,CCHD,Bed Purchasing - LD S28A- Over 65- South,Residential Homes,Shaw Healthcare Ltd,4411.68, 19-Feb-2013
1598,Revenue,CCHD,Bed purchasing -S28A  Under 65 - North,Residential Homes,Shaw Healthcare Ltd,9087.56, 19-Feb-2013
1599,Revenue,CCHD,Bed Purchasing - S28A - Over 65- North,Residential Homes,Shaw Healthcare Ltd,8894.24, 19-Feb-2013
1600,Revenue,CCHD,Southmead Hospital Purchasing,Residential Homes,Shaw Healthcare Ltd,874.8, 19-Feb-2013
1601,Revenue,CCHD,Bed Purchasing - Elderly - North,Residential Homes,Shaw Healthcare Ltd,1271.56, 19-Feb-2013
1602,Revenue,CCHD,Frenchay Hospital Purchasing,Residential Homes,Shaw Healthcare Ltd,1117.2, 19-Feb-2013
1603,Revenue,CCHD,Purchase of Non-Res Care - KD,Private & Voluntary Day Care,Shaw Healthcare Specialist Services Limited,678.4, 06-Feb-2013
1604,Revenue,CCHD,Supported Living - PS,Private & Voluntary Home Care,Silva Care Limited,29964.54, 20-Feb-2013
1605,Revenue,CCHD,Supported Living - PS,Private & Voluntary Home Care,Silva Care Limited,4415.44, 12-Feb-2013
1606,Revenue,CCHD,Day Care - North,Private & Voluntary Day Care,Silva Care Limited,983.46, 25-Feb-2013
1607,Revenue,CCHD,Bed purchasing - Under 65s PWLD - North,Residential Homes,Small House Homes Limited,17585.6, 19-Feb-2013
1608,Revenue,CCHD,Day Care - South,Private & Voluntary Day Care,Smile Independent Living Support Limited,751.74, 14-Feb-2013
1609,Revenue,CCHD,Purchase of Non-Res Care - PS,Private & Voluntary Day Care,Smile Independent Living Support Limited,756.94, 20-Feb-2013
1610,Revenue,CCHD,Supported Living - KD,Private & Voluntary Home Care,Smile Independent Living Support Limited,3261.51, 20-Feb-2013
1611,Revenue,CCHD,Purchase of Non-Res Care - KD,Private & Voluntary Day Care,Smile Independent Living Support Limited,1253, 28-Feb-2013
1612,Revenue,CCHD,Supported Living - KD,Private & Voluntary Home Care,Smile Independent Living Support Limited,3362.26, 28-Feb-2013
1613,Revenue,CCHD,Purchase of Non-Res Care - KD,Private & Voluntary Day Care,Smile Independent Living Support Limited,1208.08, 28-Feb-2013
1614,Revenue,CCHD,Purchase of Non-Res Care - KD,Private & Voluntary Day Care,Smile Independent Living Support Limited,586.56, 21-Feb-2013
1615,Revenue,CCHD,Purchase of Non-Res Care - KD,Private & Voluntary Day Care,Smile Independent Living Support Limited,1378.44, 15-Feb-2013
1616,Revenue,CCHD,Purchase of Non-Res Care - KD,Private & Voluntary Day Care,Smile Independent Living Support Limited,971.21, 21-Feb-2013
1617,Revenue,CCHD,Purchase of Non-Res Care - KD,Private & Voluntary Day Care,Smile Independent Living Support Limited,610.52, 21-Feb-2013
1618,Revenue,CCHD,Supported Living - KD,Private & Voluntary Home Care,Smile Independent Living Support Limited,2633.33, 28-Feb-2013
1619,Revenue,CCHD,User Involvement,Other Supplies & Services,Snap Surveys Limited,1125, 04-Feb-2013
1620,Revenue,CCHD,Newton House,Cleaning & Domestic Services,Spot On Supplies (Hygiene) Limited,518.5, 21-Feb-2013
1621,Revenue,CCHD,Bed Purchasing - Under 65s PWLD - South,Residential Homes,St Brigas,2036.8, 19-Feb-2013
1622,Revenue,CCHD,Bed Purchasing - Under 65s PWLD - South,Residential Homes,St Brigas,2944.64, 19-Feb-2013
1623,Revenue,CCHD,Bed Purchasing - Under 65s PWLD - South,Residential Homes,St Brigas,1985.08, 19-Feb-2013
1624,Revenue,CCHD,Frenchay Hospital Purchasing,Nursing Homes,St George Nursing Home,1295.2, 19-Feb-2013
1625,Revenue,CCHD,Bed Purchasing - Elderly - South,Nursing Homes,St George Nursing Home,1295.2, 19-Feb-2013
1626,Revenue,CCHD,Frenchay Hospital Purchasing,Nursing Homes,St George Nursing Home,885.49, 19-Feb-2013
1627,Revenue,CCHD,Frenchay Hospital Purchasing,Nursing Homes,St George Nursing Home,1040.12, 19-Feb-2013
1628,Revenue,CCHD,Frenchay Hospital Purchasing,Nursing Homes,St George Nursing Home,1295.2, 19-Feb-2013
1629,Revenue,CCHD,Bed Purchasing - Elderly - North,Nursing Homes,St Monicas Trust,2768.4, 19-Feb-2013
1630,Revenue,CCHD,Bed Purchasing - Elderly - South,Nursing Homes,St Roses School,3944.36, 15-Feb-2013
1631,Revenue,CCHD,Bed Purchasing - Under 65s PWLD - South,Residential Homes,Stepping Stones Re-Sett. Unit,8597.28, 19-Feb-2013
1632,Revenue,CCHD,Section 117 Placements MH Younger,Private & Voluntary Day Care,Supported Independence Ltd,3530.04, 01-Feb-2013
1633,Revenue,CCHD,Younger MH non-res purchasing,Private & Voluntary Day Care,Supported Independence Ltd,634.56, 15-Feb-2013
1634,Revenue,CCHD,Younger MH non-res purchasing,Private & Voluntary Day Care,Supported Independence Ltd,951.84, 15-Feb-2013
1635,Revenue,CCHD,Supported Living - PS,Private & Voluntary Home Care,Supported Independence Ltd,713.88, 01-Feb-2013
1636,Revenue,CCHD,Younger MH non-res purchasing,Private & Voluntary Day Care,Supported Independence Ltd,2348.96, 12-Feb-2013
1637,Revenue,CCHD,Section 117 Placements MH Younger,Private & Voluntary Day Care,Supported Independence Ltd,3385.2, 15-Feb-2013
1638,Revenue,CCHD,Supported Living - KD,Private & Voluntary Home Care,Supported Independence Ltd,822.95, 15-Feb-2013
1639,Revenue,CCHD,Section 117 Placements MH Younger,Private & Voluntary Day Care,Supported Independence Ltd,879.52, 22-Feb-2013
1640,Revenue,CCHD,Supporting People Programme,Grants to Voluntary Bodies,Supported Independence Ltd,2958.54, 01-Feb-2013
1641,Revenue,CCHD,Supporting People Programme,Grants to Voluntary Bodies,Supported Independence Ltd,6117.49, 01-Feb-2013
1642,Revenue,CCHD,Supporting People Programme,Grants to Voluntary Bodies,Supported Independent Living Schemes,10545.66, 01-Feb-2013
1643,Revenue,CCHD,Supported Living - PS,Private & Voluntary Home Care,Supported Independent Living Schemes,642.96, 13-Feb-2013
1644,Revenue,CCHD,Supported Living - PS,Private & Voluntary Home Care,Supporting Options,800.42, 20-Feb-2013
1645,Revenue,CCHD,Younger MH non-res purchasing,Private & Voluntary Day Care,Supporting Options,538.88, 20-Feb-2013
1646,Revenue,CCHD,Younger MH non-res purchasing,Private & Voluntary Day Care,Supporting Options,602.28, 20-Feb-2013
1647,Revenue,CCHD,Younger MH non-res purchasing,Private & Voluntary Day Care,Supporting Options,610.2, 20-Feb-2013
1648,Revenue,CCHD,Supported Living - PS,Private & Voluntary Home Care,Supporting Options,729.1, 20-Feb-2013
1649,Revenue,CCHD,Younger MH non-res purchasing,Private & Voluntary Day Care,Supporting Options,546.8, 20-Feb-2013
1650,Revenue,CCHD,Younger MH non-res purchasing,Private & Voluntary Day Care,Supporting Options,622.09, 22-Feb-2013
1651,Revenue,CCHD,Supported Living - PS,Private & Voluntary Home Care,Supporting Options,840.05, 20-Feb-2013
1652,Revenue,CCHD,Bed Purchasing - Under 65s PWLD - South,Residential Homes,The Ann Coleman Centre,6046.48, 19-Feb-2013
1653,Revenue,CCHD,Southmead Hospital Purchasing,Residential Homes,The Beeches,696.6, 19-Feb-2013
1654,Revenue,CCHD,Southmead Hospital Purchasing,Residential Homes,The Beeches,1227.4, 19-Feb-2013
1655,Revenue,CCHD,Frenchay Hospital Purchasing,Residential Homes,The Beeches,1141.52, 19-Feb-2013
1656,Revenue,CCHD,Southmead Hospital Purchasing,Residential Homes,The Beeches,1239.2, 19-Feb-2013
1657,Revenue,CCHD,Bed purchasing - S28A Under 65 - South,Residential Homes,The Brandon Trust,27747.04, 14-Feb-2013
1658,Revenue,CCHD,Purchase of Non-Res Care - PS,Private & Voluntary Day Care,The Brandon Trust,573.1, 07-Feb-2013
1659,Revenue,CCHD,Day Care - North,Private & Voluntary Day Care,The Brandon Trust,687.72, 07-Feb-2013
1660,Revenue,CCHD,Purchase of Non-Res Care - PS,Private & Voluntary Day Care,The Brandon Trust,537.8, 25-Feb-2013
1661,Revenue,CCHD,Purchase of Non-Res Care - KD,Private & Voluntary Day Care,The Brandon Trust,5126.64, 11-Feb-2013
1662,Revenue,CCHD,Purchase of Non-Res Care - KD,Private & Voluntary Day Care,The Brandon Trust,822.51, 14-Feb-2013
1663,Revenue,CCHD,Younger MH non-res purchasing,Private & Voluntary Day Care,The Brandon Trust,949.05, 14-Feb-2013
1664,Revenue,CCHD,Purchase of Non-Res Care - PS,Private & Voluntary Day Care,The Brandon Trust,2188.2, 05-Feb-2013
1665,Revenue,CCHD,Purchase of Non-Res Care - PS,Private & Voluntary Day Care,The Brandon Trust,727.61, 25-Feb-2013
1666,Revenue,CCHD,Purchase of Non-Res Care - KD,Private & Voluntary Day Care,The Brandon Trust,870.07, 11-Feb-2013
1667,Revenue,CCHD,Purchase of Non-Res Care - KD,Private & Voluntary Day Care,The Brandon Trust,541.84, 11-Feb-2013
1668,Revenue,CCHD,Purchase of Non-Res Care - KD,Private & Voluntary Day Care,The Brandon Trust,1021.16, 11-Feb-2013
1669,Revenue,CCHD,Purchase of Non-Res Care - PS,Private & Voluntary Day Care,The Brandon Trust,759.24, 25-Feb-2013
1670,Revenue,CCHD,Purchase of Non-Res Care - KD,Private & Voluntary Day Care,The Brandon Trust,759.24, 14-Feb-2013
1671,Revenue,CCHD,Purchase of Non-Res Care - PS,Private & Voluntary Day Care,The Brandon Trust,727.61, 25-Feb-2013
1672,Revenue,CCHD,Purchase of Non-Res Care - KD,Private & Voluntary Day Care,The Brandon Trust,698.14, 11-Feb-2013
1673,Revenue,CCHD,Supported Living - PS,Private & Voluntary Home Care,The Brandon Trust,569.43, 07-Feb-2013
1674,Revenue,CCHD,Purchase of Non-Res Care - PS,Private & Voluntary Day Care,The Brandon Trust,569.43, 05-Feb-2013
1675,Revenue,CCHD,Purchase of Non-Res Care - PS,Private & Voluntary Day Care,The Brandon Trust,5105.8, 07-Feb-2013
1676,Revenue,CCHD,Supported Living - PS,Private & Voluntary Home Care,The Brandon Trust,692.93, 05-Feb-2013
1677,Revenue,CCHD,Purchase of Non-Res Care - PS,Private & Voluntary Day Care,The Brandon Trust,2886.34, 07-Feb-2013
1678,Revenue,CCHD,Purchase of Non-Res Care - PS,Private & Voluntary Day Care,The Brandon Trust,1423.87, 05-Feb-2013
1679,Revenue,CCHD,Purchase of Non-Res Care - PS,Private & Voluntary Home Care,The Brandon Trust,822.51, 07-Feb-2013
1680,Revenue,CCHD,Purchase of Non-Res Care - KD,Private & Voluntary Day Care,The Brandon Trust,583.52, 11-Feb-2013
1681,Revenue,CCHD,Supported Living - KD,Private & Voluntary Home Care,The Brandon Trust,9305.2, 14-Feb-2013
1682,Revenue,CCHD,Bed purchasing - Elderly MH - North,Residential Homes,The Cidermill,1403.2, 19-Feb-2013
1683,Revenue,CCHD,Bed purchasing - Elderly MH - North,Residential Homes,The Cidermill,1403.2, 19-Feb-2013
1684,Revenue,CCHD,Bed purchasing - Elderly MH - North,Residential Homes,The Cidermill,968.48, 19-Feb-2013
1685,Revenue,CCHD,Bed purchasing - Elderly MH - North,Nursing Homes,The Cidermill,1205.8, 19-Feb-2013
1686,Revenue,CCHD,Southmead Hospital Purchasing,Residential Homes,The Cidermill,933.6, 19-Feb-2013
1687,Revenue,CCHD,Southmead Hospital Purchasing,Residential Homes,The Gables Residential Home,1362.72, 19-Feb-2013
1688,Revenue,CCHD,Bed purchasing - Elderly S117 - South,Residential Homes,The Gables Residential Home,2193.08, 19-Feb-2013
1689,Revenue,CCHD,Bed Purchasing - Elderly - South,Residential Homes,The Gables Residential Home,1372.72, 19-Feb-2013
1690,Revenue,CCHD,Bed Purchasing - Elderly - South,Residential Homes,The Gables Residential Home,1174.72, 19-Feb-2013
1691,Revenue,CCHD,Bed Purchasing - Elderly - South,Residential Homes,The Gables Residential Home,1100, 19-Feb-2013
1692,Revenue,CCHD,Bed Purchasing - Elderly - South,Residential Homes,The Garden House,888.52, 19-Feb-2013
1693,Revenue,CCHD,Frenchay Hospital Purchasing,Residential Homes,The Garden House,1403.2, 19-Feb-2013
1694,Revenue,CCHD,Southmead Hospital Purchasing,Residential Homes,The Garden House,1342.76, 19-Feb-2013
1695,Revenue,CCHD,Frenchay Hospital Purchasing,Residential Homes,The Garden House,1232.84, 19-Feb-2013
1696,Revenue,CCHD,Bed Purchasing - Elderly - South,Residential Homes,The Garden House,1598.8, 19-Feb-2013
1697,Revenue,CCHD,Bed Purchasing - Elderly - South,Residential Homes,The Garden House,1483.2, 19-Feb-2013
1698,Revenue,CCHD,Bed Purchasing - Elderly S117- North,Residential Homes,The Garden House,1880, 19-Feb-2013
1699,Revenue,CCHD,Bed Purchasing - Elderly - North,Residential Homes,The Garden House,1241.36, 19-Feb-2013
1700,Revenue,CCHD,Southmead Hospital Purchasing,Residential Homes,The Garden House,1165.16, 19-Feb-2013
1701,Revenue,CCHD,Bed Purchasing - Elderly MH - South,Residential Homes,The Garden House,1209.88, 19-Feb-2013
1702,Revenue,CCHD,Bed Purchasing - Elderly - South,Residential Homes,The Garden House,1146.12, 19-Feb-2013
1703,Revenue,CCHD,Bed purchasing - Elderly MH - North,Residential Homes,The Garden House,1366.2, 19-Feb-2013
1704,Revenue,CCHD,Bed purchasing - Elderly MH - North,Residential Homes,The Grove,972.12, 19-Feb-2013
1705,Revenue,CCHD,Bed Purchasing - Elderly - North,Residential Homes,The Grove,1565.64, 19-Feb-2013
1706,Revenue,CCHD,Bed purchasing - Elderly MH - North,Residential Homes,The Grove,573.44, 19-Feb-2013
1707,Revenue,CCHD,Bed Purchasing - Elderly S117- North,Residential Homes,The Grove,2074.28, 19-Feb-2013
1708,Revenue,CCHD,Bed purchasing - Elderly MH - North,Residential Homes,The Grove,1607.72, 19-Feb-2013
1709,Revenue,CCHD,Southmead Hospital Purchasing,Residential Homes,The Grove,1403.2, 19-Feb-2013
1710,Revenue,CCHD,Bed purchasing - Elderly MH - North,Residential Homes,The Grove,1490.64, 19-Feb-2013
1711,Revenue,CCHD,Southmead Hospital Purchasing,Residential Homes,The Grove,1335.12, 19-Feb-2013
1712,Revenue,CCHD,Bed purchasing - Elderly MH - North,Residential Homes,The Grove,1499.52, 19-Feb-2013
1713,Revenue,CCHD,Supporting People Programme,Grants to Voluntary Bodies,The Hatch Camphill Community,2589.14, 01-Feb-2013
1714,Revenue,CCHD,Frenchay Hospital Purchasing,Nursing Homes,The Heathers,1295.2, 19-Feb-2013
1715,Revenue,CCHD,Bed Purchasing - Elderly - South,Nursing Homes,The Heathers,716.04, 19-Feb-2013
1716,Revenue,CCHD,Frenchay Hospital Purchasing,Nursing Homes,The Heathers,1311.2, 19-Feb-2013
1717,Revenue,CCHD,Frenchay Hospital Purchasing,Nursing Homes,The Heathers,936.57, 19-Feb-2013
1718,Revenue,CCHD,Frenchay Hospital Purchasing,Nursing Homes,The Heathers,1239.84, 19-Feb-2013
1719,Revenue,CCHD,South Glos Users in South Glos Homes,Nursing Homes,The Heathers,1506.27, 19-Feb-2013
1720,Revenue,CCHD,Frenchay Hospital Purchasing,Nursing Homes,The Heathers,691, 19-Feb-2013
1721,Revenue,CCHD,Southmead Hospital Purchasing,Nursing Homes,The Heathers,1267.08, 19-Feb-2013
1722,Revenue,CCHD,Frenchay Hospital Purchasing,Nursing Homes,The Heathers,1183.92, 19-Feb-2013
1723,Revenue,CCHD,Frenchay Hospital Purchasing,Nursing Homes,The Heathers,1295.2, 19-Feb-2013
1724,Revenue,CCHD,Bed Purchasing - Elderly - North,Nursing Homes,The Heathers,1298.68, 19-Feb-2013
1725,Revenue,CCHD,South Glos Users in South Glos Homes,Nursing Homes,The Heathers,1288.87, 19-Feb-2013
1726,Revenue,CCHD,Bed Purchasing - Elderly - North,Nursing Homes,The Heathers,1061.96, 19-Feb-2013
1727,Revenue,CCHD,Frenchay Hospital Purchasing,Nursing Homes,The Heathers,4098.11, 19-Feb-2013
1728,Revenue,CCHD,Frenchay Hospital Purchasing,Nursing Homes,The Heathers,989.2, 19-Feb-2013
1729,Revenue,CCHD,Frenchay Hospital Purchasing,Nursing Homes,The Heathers,1229.16, 19-Feb-2013
1730,Revenue,CCHD,Frenchay Hospital Purchasing,Nursing Homes,The Heathers,1211.96, 19-Feb-2013
1731,Revenue,CCHD,Southmead Hospital Purchasing,Nursing Homes,The Heathers,730.72, 19-Feb-2013
1732,Revenue,CCHD,Southmead Hospital Purchasing,Nursing Homes,The Heathers,1152.24, 19-Feb-2013
1733,Revenue,CCHD,Bed purchasing - Elderly MH - North,Residential Homes,The Hollies,1277.48, 19-Feb-2013
1734,Revenue,CCHD,Bed Purchasing - Elderly - North,Nursing Homes,The Hollies Nursing Home,1763.68, 19-Feb-2013
1735,Revenue,CCHD,Bed Purchasing - Under 65s PWLD - South,Residential Homes,The Manor House,8707.92, 19-Feb-2013
1736,Revenue,CCHD,Bed Purchasing - Under 65s PWLD - South,Residential Homes,The Manor House,2902.64, 19-Feb-2013
1737,Revenue,CCHD,Bed purchasing - Elderly PWLD - South,Residential Homes,The Manor House,2290.85, 19-Feb-2013
1738,Revenue,CCHD,Bed purchasing - Elderly PWLD - South,Residential Homes,The Manor House,654.52, 19-Feb-2013
1739,Revenue,CCHD,Bed Purchasing - Under 65s PWLD - South,Residential Homes,The Manor House,4848.44, 19-Feb-2013
1740,Revenue,CCHD,Bed Purchasing - Under 65s PWLD - South,Residential Homes,The Manor House,3443.84, 19-Feb-2013
1741,Revenue,CCHD,Bed Purchasing - Under 65s PWLD - South,Residential Homes,The Manor House,2649.08, 19-Feb-2013
1742,Revenue,CCHD,Bed purchasing - Under 65s PWLD - North,Residential Homes,The Manor House,2747.12, 19-Feb-2013
1743,Revenue,CCHD,Bed Purchasing - Under 65s PWLD - South,Residential Homes,The Manor House,3219.12, 19-Feb-2013
1744,Revenue,CCHD,Bed purchasing - Under 65s PWLD - North,Residential Homes,The Manor House,2790.24, 19-Feb-2013
1745,Revenue,CCHD,Bed Purchasing - Under 65s PWLD - South,Residential Homes,The Manor House,2649.08, 19-Feb-2013
1746,Revenue,CCHD,Bed Purchasing - Under 65s PWLD - South,Residential Homes,The Manor House,3292.6, 19-Feb-2013
1747,Revenue,CCHD,Bed Purchasing - Under 65s PWLD - South,Residential Homes,The Manor House,5937.48, 19-Feb-2013
1748,Revenue,CCHD,Bed purchasing - S28A Under 65 - South,Residential Homes,The Manor House,4791.52, 19-Feb-2013
1749,Revenue,CCHD,Bed Purchasing - Under 65s PWLD - South,Residential Homes,The Manor House,2688.84, 19-Feb-2013
1750,Revenue,CCHD,Bed Purchasing - Under 65s PWLD - South,Residential Homes,The Manor House,3361.48, 19-Feb-2013
1751,Revenue,CCHD,Bed Purchasing - Under 65s PWLD - South,Residential Homes,The Manor House,2945.16, 19-Feb-2013
1752,Revenue,CCHD,Bed Purchasing - Under 65s PWLD - South,Residential Homes,The Manor House,3645.36, 19-Feb-2013
1753,Revenue,CCHD,Bed Purchasing - Under 65s PWLD - South,Residential Homes,The Manor House,4868.52, 19-Feb-2013
1754,Revenue,CCHD,Bed Purchasing - Under 65s PWLD - South,Residential Homes,The Manor House,2865.96, 19-Feb-2013
1755,Revenue,CCHD,Bed Purchasing - Under 65s PWLD - South,Residential Homes,The Manor House,4383.48, 19-Feb-2013
1756,Revenue,CCHD,Bed purchasing - Under 65s PWLD - North,Residential Homes,The Manor House,4100.6, 19-Feb-2013
1757,Revenue,CCHD,Bed Purchasing - Under 65s PWLD - South,Residential Homes,The Manor House,4264.16, 19-Feb-2013
1758,Revenue,CCHD,Bed Purchasing - Under 65s PWLD - South,Residential Homes,The Manor House,3196.88, 19-Feb-2013
1759,Revenue,CCHD,Bed Purchasing - Under 65s PWLD - South,Residential Homes,The Manor House,1313.25, 19-Feb-2013
1760,Revenue,CCHD,Bed purchasing - Elderly PWLD - South,Residential Homes,The Manor House,2656.96, 19-Feb-2013
1761,Revenue,CCHD,Bed Purchasing - Under 65s PWLD - South,Residential Homes,The Manor House,3181.6, 19-Feb-2013
1762,Revenue,CCHD,Bed Purchasing - Under 65s PWLD - South,Residential Homes,The Manor House,1011.86, 19-Feb-2013
1763,Revenue,CCHD,Bed Purchasing - Under 65s PWLD - South,Residential Homes,The Manor House,522.43, 19-Feb-2013
1764,Revenue,CCHD,Bed Purchasing - Under 65s PWLD - South,Residential Homes,The Manor House,522.44, 19-Feb-2013
1765,Revenue,CCHD,Bed Purchasing - Under 65s PWLD - South,Residential Homes,The Manor House,4763.28, 19-Feb-2013
1766,Revenue,CCHD,Bed Purchasing - Under 65s PWLD - South,Residential Homes,The Manor House,4176.84, 19-Feb-2013
1767,Revenue,CCHD,Bed purchasing - Under 65s PWLD - North,Residential Homes,The Thomas Moore Project,1914.72, 19-Feb-2013
1768,Revenue,CCHD,Bed Purchasing - Elderly MH - South,Residential Homes,The Worthies,1405, 19-Feb-2013
1769,Revenue,CCHD,Bed Purchasing - Elderly MH - South,Residential Homes,The Worthies,1292.16, 19-Feb-2013
1770,Revenue,CCHD,Turnberries,Rent,Thornbury Community Building Trust,16447, 26-Feb-2013
1771,Revenue,CCHD,Turnberries,Rent,Thornbury Community Building Trust,16447, 07-Feb-2013
1772,Revenue,CCHD,Bed Purchasing - Elderly - South,Nursing Homes,Thornhill House,1890.32, 19-Feb-2013
1773,Revenue,CCHD,Bed purchasing - Under 65s PWLD - North,Residential Homes,Three Roses Home,1875.72, 19-Feb-2013
1774,Revenue,CCHD,Learning Difficulties PSL,Rent,Individual,650, 22-Feb-2013
1775,Revenue,CCHD,Learning Difficulties PSL,Rent,Individual,750, 22-Feb-2013
1776,Revenue,CCHD,Learning Difficulties PSL,Rent,Individual,488, 22-Feb-2013
1777,Revenue,CCHD,Bed Purchasing - Under 65s PWLD - South,Residential Homes,Tomlen,6484.72, 19-Feb-2013
1778,Revenue,CCHD,Bed purchasing - Phys Dis - North,Residential Homes,Tracs Care,6215.08, 19-Feb-2013
1779,Revenue,CCHD,Bed purchasing - Phys Dis - North,Residential Homes,Tracs Care,4531.28, 19-Feb-2013
1780,Revenue,CCHD,Bed Purchasing - Under 65s PWLD - South,Residential Homes,Tracs Group Ltd,6510.68, 19-Feb-2013
1781,Revenue,CCHD,Frenchay Hospital Purchasing,Residential Homes,Tracs Group Ltd,10096.55, 19-Feb-2013
1782,Revenue,CCHD,Training - Adult Services,Training Expenses,Tracy Packer,530, 06-Feb-2013
1783,Revenue,CCHD,Supported Living - PS,Private & Voluntary Day Care,Tunstall Healthcare (UK) Limited,827.86, 12-Feb-2013
1784,Revenue,CCHD,Telecare,Other Supplies & Services,Tunstall Healthcare (UK) Limited,5550, 14-Feb-2013
1785,Revenue,CCHD,Minor Adaptations Service,Premises Maintenance by Contractor,TVM Cheltenham Limited,669.6, 05-Feb-2013
1786,Revenue,CCHD,Minor Adaptations Service,Premises Maintenance by Contractor,TVM Cheltenham Limited,486.92, 05-Feb-2013
1787,Revenue,CCHD,Minor Adaptations Service,Premises Maintenance by Contractor,TVM Cheltenham Limited,657.23, 05-Feb-2013
1788,Revenue,CCHD,Minor Adaptations Service,Premises Maintenance by Contractor,TVM Cheltenham Limited,494.08, 05-Feb-2013
1789,Revenue,CCHD,Minor Adaptations Service,Premises Maintenance by Contractor,TVM Cheltenham Limited,534.14, 05-Feb-2013
1790,Revenue,CCHD,Minor Adaptations Service,Premises Maintenance by Contractor,TVM Cheltenham Limited,612.55, 05-Feb-2013
1791,Revenue,CCHD,Minor Adaptations Service,Premises Maintenance by Contractor,TVM Cheltenham Limited,467.4, 05-Feb-2013
1792,Revenue,CCHD,Minor Adaptations Service,Daily Living Equipment,TVM Cheltenham Limited,1274.25, 06-Feb-2013
1793,Revenue,CCHD,Minor Adaptations Service,Daily Living Equipment,TVM Cheltenham Limited,1497.25, 06-Feb-2013
1794,Revenue,CCHD,Minor Adaptations Service,Daily Living Equipment,TVM Cheltenham Limited,1236.75, 06-Feb-2013
1795,Revenue,CCHD,Minor Adaptations Service,Daily Living Equipment,TVM Cheltenham Limited,585, 06-Feb-2013
1796,Revenue,CCHD,Minor Adaptations Service,Preventative Assistance,TVM Cheltenham Limited,758.25, 07-Feb-2013
1797,Revenue,CCHD,Bed purchasing - Under 65s PWLD - North,Residential Homes,Ty Hafod Tudor,3839.36, 19-Feb-2013
